Departmental Family,Entity,Date,Expense Type,Expense Area,Supplier,Transaction Number,Amount
Department for Work and Pensions,Jobcentre Plus,28/02/2011,ACCOMMODATION,Jobcentre Plus,TELEREAL TRILLIUM,2019711332,"30,438,174.69"
Department for Work and Pensions,European Social Fund,11/02/2011,ESF NON-PREFUNDED EXPENDITURE,WWEG EUROPEAN SOCIAL FUND,LONDON SKILLS FUNDING AGENCY,5000000468,"12,041,188.00"
Department for Work and Pensions,Corporate,15/02/2011,HOSTING,Corporate IT ,HP ENTERPRISE SERVICES UK LTD,2019496557,"9,443,099.50"
Department for Work and Pensions,Corporate,14/02/2011,COMPUTER SERVICES,Corporate IT ,HP ENTERPRISE SERVICES UK LTD,2019487883,"6,771,613.69"
Department for Work and Pensions,European Social Fund,28/02/2011,ESF NON-PREFUNDED EXPENDITURE,WWEG EUROPEAN SOCIAL FUND,NORTH EAST LEARNING & SKILLS COUNCIL,5000000491,"5,920,102.00"
Department for Work and Pensions,Corporate,07/02/2011,BANKING AND ENCASHMENT COSTS,Group Finance,POST OFFICE LTD,1004630,"5,896,036.85"
Department for Work and Pensions,Corporate,22/02/2011,BANKING AND ENCASHMENT COSTS,Group Finance,POST OFFICE LTD,1004648,"5,634,000.58"
Department for Work and Pensions,Corporate,18/02/2011,NETWORK,Corporate IT ,BT GLOBAL SERVICES,2019589624,"5,576,402.97"
Department for Work and Pensions,Corporate,24/02/2011,Grant in Aid,Balance Sheet Payments,NEST CORPORTATION,2002454,"5,500,000.00"
Department for Work and Pensions,Corporate,28/02/2011,TRADE DEBTORS,Balance Sheet Payments,TELEREAL TRILLIUM,2019711332,"4,641,174.16"
Department for Work and Pensions,Jobcentre Plus,23/02/2011,CONTRACTED OUT SERVICES,Jobcentre Plus,DEPARTMENT OF SOCIAL DEVELOPMENT,1004649,"4,274,331.00"
Department for Work and Pensions,Jobcentre Plus,09/02/2011,MEDICAL SERVICES,Jobcentre Plus,ATOS ORIGIN MEDICAL SERVICES,2019400684,"4,134,181.20"
Department for Work and Pensions,Employment Programmes,11/02/2011,WORKING NEIGHBOURHOOD PILOTS,WWEG EMPLOYMENT PROGRAMMES,DCLG,2002420,"3,697,500.00"
Department for Work and Pensions,Corporate,15/02/2011,HOSTING,Corporate IT ,HP ENTERPRISE SERVICES UK LTD,2019496556,"3,516,303.19"
Department for Work and Pensions,Corporate,15/02/2011,COMPUTER SERVICES,Corporate IT ,HP ENTERPRISE SERVICES UK LTD,2019496557,"3,448,606.22"
Department for Work and Pensions,Corporate,15/02/2011,COMPUTER SERVICES,Corporate IT ,HP ENTERPRISE SERVICES UK LTD,2019496556,"3,194,715.41"
Department for Work and Pensions,Jobcentre Plus,15/02/2011,MEDICAL SERVICES,Jobcentre Plus,ATOS ORIGIN MEDICAL SERVICES,2019492699,"3,161,982.12"
Department for Work and Pensions,European Social Fund,11/02/2011,ESF NON-PREFUNDED EXPENDITURE,WWEG EUROPEAN SOCIAL FUND,SOUTH EAST SKILLS FUNDING AGENCY,5000000473,"3,032,063.00"
Department for Work and Pensions,European Social Fund,18/02/2011,ESF NON-PREFUNDED EXPENDITURE,WWEG EUROPEAN SOCIAL FUND,NORTH EAST LEARNING & SKILLS COUNCIL,5000000483,"2,994,453.00"
Department for Work and Pensions,Corporate,15/02/2011,HELP FOR UNEMPLOYED PEOPLE OTHER,WWG SUMMARY,INTERNATIONAL LABOUR ORGANISATION,3004211,"2,958,172.00"
Department for Work and Pensions,Jobcentre Plus,09/02/2011,AOS CONTRACTED OUT SERVICES,Jobcentre Plus,BALFOUR BEATTY WORKPLACE LTD,2019401988,"2,813,218.43"
Department for Work and Pensions,"Pension, Disability Carers Services",09/02/2011,Accomodation Costs,Pensions & Disability Carers Service ,TELEREAL TRILLIUM,2019466657,"2,663,555.12"
Department for Work and Pensions,"Pension, Disability Carers Services",28/02/2011,ACCOMMODATION,Pensions & Disability Carers Service ,TELEREAL TRILLIUM,2019711332,"2,509,790.11"
Department for Work and Pensions,Employment Programmes,22/02/2011,YOUNG PERSON'S GUARANTEE,WWEG EMPLOYMENT PROGRAMMES,SALFORD CITY COUNCIL,2019611051,"2,413,650.00"
Department for Work and Pensions,Corporate,18/02/2011,TOTAL SUPPLIES & SERVICES,Corporate IT ,CABINET OFFICE,2019589833,"2,360,000.00"
Department for Work and Pensions,Employment Programmes,03/02/2011,Grant in Aid,WWEG EMPLOYMENT PROGRAMMES,REMPLOY LIMITED,1004628,"2,000,000.00"
Department for Work and Pensions,Jobcentre Plus,28/02/2011,ACCOMMODATION,Jobcentre Plus,TELEREAL TRILLIUM,2019711335,"1,946,854.45"
Department for Work and Pensions,Jobcentre Plus,03/02/2011,EMPLOYMENT PROGRAMMES,Balance Sheet Payments,A4E LTD,2019364198,"1,877,399.75"
Department for Work and Pensions,Corporate,15/02/2011,SIAM,Corporate IT ,HP ENTERPRISE SERVICES UK LTD,2019496557,"1,813,926.70"
Department for Work and Pensions,Jobcentre Plus,14/02/2011,APPS DEV,Jobcentre Plus,ACCENTURE,2019485638,"1,800,664.00"
Department for Work and Pensions,Corporate,03/02/2011,Accomodation Costs,Group Finance,HM REVENUE & CUSTOMS,2002413,"1,755,030.09"
Department for Work and Pensions,Employment Programmes,10/02/2011,YOUNG PERSON'S GUARANTEE,WWEG EMPLOYMENT PROGRAMMES,SALFORD CITY COUNCIL,2019476000,"1,727,700.00"
Department for Work and Pensions,Employment Programmes,11/02/2011,Grant in Aid,WWEG EMPLOYMENT PROGRAMMES,REMPLOY LIMITED,1004640,"1,720,364.00"
Department for Work and Pensions,Jobcentre Plus,15/02/2011,MEDICAL SERVICES,Jobcentre Plus,ATOS ORIGIN MEDICAL SERVICES,2019492699,"1,625,934.88"
Department for Work and Pensions,Employment Programmes,16/02/2011,YOUNG PERSON'S GUARANTEE,WWEG EMPLOYMENT PROGRAMMES,KNOWSLEY METROPOLITAN BOROUGH COUNCIL,2019543243,"1,605,385.76"
Department for Work and Pensions,European Social Fund,15/02/2011,ESF NON-PREFUNDED EXPENDITURE,WWEG EUROPEAN SOCIAL FUND,LONDON DEVELOPMENT AGENCY,5000000476,"1,561,277.00"
Department for Work and Pensions,Corporate,21/02/2011,EMPLOYMENT ZONES,WWG SUMMARY,BRITISH COUNCIL,2019595732,"1,492,419.00"
Department for Work and Pensions,Corporate,11/02/2011,OTHER GOODS AND SERVICES,WWG SUMMARY,VALUATION OFFICE AGENCY,2002425,"1,420,000.00"
Department for Work and Pensions,Corporate,15/02/2011,COMPUTER SERVICES,Corporate IT ,HP ENTERPRISE SERVICES UK LTD,2019496556,"1,394,314.03"
Department for Work and Pensions,Corporate,17/02/2011,CONTRACTED OUT SERVICES,Group Finance,XEROX UK LTD 3W,2019586801,"1,391,231.00"
Department for Work and Pensions,Corporate,18/02/2011,POSTAGE,Group Finance,TNT UK LTD,2019593825,"1,290,168.48"
Department for Work and Pensions,Employment Programmes,24/02/2011,YOUNG PERSON'S GUARANTEE,WWEG EMPLOYMENT PROGRAMMES,NATIONAL SKILLS ACADEMY FOR SPORT & ACTIVE LEISURE,2019695310,"1,279,050.00"
Department for Work and Pensions,Employment Programmes,28/02/2011,YOUNG PERSON'S GUARANTEE,WWEG EMPLOYMENT PROGRAMMES,GROUNDWORK UK,2019709033,"1,261,500.00"
Department for Work and Pensions,Corporate,17/02/2011,NETWORK,Corporate IT ,BT GLOBAL SERVICES,2019581704,"1,247,988.32"
Department for Work and Pensions,Jobcentre Plus,03/02/2011,EMPLOYMENT PROGRAMMES,Balance Sheet Payments,INGEUS UK LTD,2019366672,"1,227,517.04"
Department for Work and Pensions,Employment Programmes,25/02/2011,YOUNG PERSON'S GUARANTEE,WWEG EMPLOYMENT PROGRAMMES,KNOWSLEY METROPOLITAN BOROUGH COUNCIL,2019702083,"1,195,123.84"
Department for Work and Pensions,Jobcentre Plus,03/02/2011,EMPLOYMENT PROGRAMMES,Balance Sheet Payments,BUSINESS EMPLOYMENT SERVICES TRAINING LTD,2019364405,"1,176,569.66"
Department for Work and Pensions,Corporate,28/02/2011,ACCOMMODATION,Group Finance,TELEREAL TRILLIUM,2019711332,"1,172,032.05"
Department for Work and Pensions,Corporate,23/02/2011,TELEPHONE AND POSTAGE,Group Finance,UK MAIL,2019685318,"1,167,115.27"
Department for Work and Pensions,Corporate,15/02/2011,COMPUTER SERVICES,Corporate IT ,CABLE & WIRELESS PLC,2019493594,"1,138,963.61"
Department for Work and Pensions,Corporate,15/02/2011,IS/IT,Corporate IT ,HP ENTERPRISE SERVICES UK LTD,2019496556,"1,132,435.20"
Department for Work and Pensions,Employment Programmes,23/02/2011,YOUNG PERSON'S GUARANTEE,WWEG EMPLOYMENT PROGRAMMES,SHEFFIELD CITY COUNCIL,2019681761,"1,127,250.00"
Department for Work and Pensions,Corporate,22/02/2011,COMPUTER SERVICES,Corporate IT ,BT GLOBAL SERVICES,2019602681,"1,112,325.25"
Department for Work and Pensions,Employment Programmes,22/02/2011,EP GENERIC PROVIDER PAYMENTS,WWEG EMPLOYMENT PROGRAMMES,A4E LTD,2019602346,"1,077,915.67"
Department for Work and Pensions,Corporate,08/02/2011,TELEPHONE AND POSTAGE,Group Finance,ROYAL MAIL GROUP PLC,2019391583,"1,075,047.60"
Department for Work and Pensions,Housing Benefits,14/02/2011,Housing Benefit Admin,WWG Housing Benefit,BIRMINGHAM CITY COUNCIL,2019484951,"1,067,809.00"
Department for Work and Pensions,Jobcentre Plus,28/02/2011,ACCOMMODATION,Jobcentre Plus,TELEREAL TRILLIUM,2019711332,"1,064,969.48"
Department for Work and Pensions,Jobcentre Plus,03/02/2011,EMPLOYMENT PROGRAMMES,Balance Sheet Payments,CAREERS DEVELOPMENT GROUP LTD,2019364663,"1,056,804.25"
Department for Work and Pensions,Jobcentre Plus,03/02/2011,EMPLOYMENT PROGRAMMES,Balance Sheet Payments,SHAW TRUST LTD,2019368883,"1,055,132.98"
Department for Work and Pensions,Corporate,16/02/2011,OTHER MAJOR CONTRACTS,Group Finance,SANTANDER,1004645,"1,013,694.00"
Department for Work and Pensions,Employment Programmes,22/02/2011,EP GENERIC PROVIDER PAYMENTS,WWEG EMPLOYMENT PROGRAMMES,SERCO LTD,2019611066,"1,013,347.50"
Department for Work and Pensions,Corporate,03/02/2011,Accomodation Costs,Group Finance,HM REVENUE & CUSTOMS,2002413,"993,721.01"
Department for Work and Pensions,Corporate,25/02/2011,Pensions Programme Costs,Corporate and Support Services,PENSION PROTECTION FUND,1004660,"989,000.00"
Department for Work and Pensions,Employment Programmes,22/02/2011,EP GENERIC PROVIDER PAYMENTS,WWEG EMPLOYMENT PROGRAMMES,CALDER UK LTD,2019603258,"969,432.10"
Department for Work and Pensions,Employment Programmes,11/02/2011,EP GENERIC PROVIDER PAYMENTS,WWEG EMPLOYMENT PROGRAMMES,A4E LTD,2019478888,"962,271.85"
Department for Work and Pensions,Jobcentre Plus,03/02/2011,EMPLOYMENT PROGRAMMES,Balance Sheet Payments,SEETEC BUSINESS TECHNOLOGY CENTRE LTD,2019368878,"957,852.02"
Department for Work and Pensions,Corporate,24/02/2011,COMPUTER SERVICES,Corporate IT ,ACCENTURE UK LTD,2019690812,"924,868.86"
Department for Work and Pensions,Jobcentre Plus,03/02/2011,EMPLOYMENT PROGRAMMES,Balance Sheet Payments,WORKING LINKS,2019369251,"879,810.95"
Department for Work and Pensions,Corporate,09/02/2011,PROFESSIONAL FEES,Corporate and Support Services,OFFICE FOR NATIONAL STATISTICS,2019448991,"870,000.00"
Department for Work and Pensions,Employment Programmes,25/02/2011,HELP FOR UNEMPLOYED PEOPLE OTHER,WWEG EMPLOYMENT PROGRAMMES,HEADS OF THE VALLEY PATHFINDER,2019701532,"869,602.50"
Department for Work and Pensions,Employment Programmes,03/02/2011,OTHER PROGRAMME COSTS,WWEG EMPLOYMENT PROGRAMMES,SKILLS FUNDING AGENCY,1004629,"869,470.83"
Department for Work and Pensions,Housing Benefits,14/02/2011,Housing Benefit Admin,WWG Housing Benefit,CITY OF GLASGOW,2019484999,"867,338.00"
Department for Work and Pensions,Corporate,16/02/2011,COMPUTER SERVICES,Corporate IT ,BT GLOBAL SERVICES,2019511758,"854,309.14"
Department for Work and Pensions,Corporate,02/02/2011,COMPUTER SERVICES,Corporate IT ,ACCENTURE UK LTD,2019292171,"828,246.37"
Department for Work and Pensions,Employment Programmes,23/02/2011,YOUNG PERSON'S GUARANTEE,WWEG EMPLOYMENT PROGRAMMES,NORTH TYNESIDE COUNCIL,2019667298,"810,900.00"
Department for Work and Pensions,Jobcentre Plus,15/02/2011,ACCOMMODATION,Jobcentre Plus,TELEREAL TRILLIUM,2019502339,"807,264.58"
Department for Work and Pensions,Corporate,16/02/2011,COMPUTER SERVICES,Corporate IT ,BT GLOBAL SERVICES,2019511758,"806,539.75"
Department for Work and Pensions,Employment Programmes,22/02/2011,EP GENERIC PROVIDER PAYMENTS,WWEG EMPLOYMENT PROGRAMMES,A4E LTD,2019602346,"789,902.67"
Department for Work and Pensions,Employment Programmes,22/02/2011,EP GENERIC PROVIDER PAYMENTS,WWEG EMPLOYMENT PROGRAMMES,WORKING LINKS,2019611678,"781,586.95"
Department for Work and Pensions,"Pension, Disability Carers Services",28/02/2011,OTHER GOODS AND SERVICES,Pensions & Disability Carers Service ,HM REVENUE & CUSTOMS,2002461,"773,371.75"
Department for Work and Pensions,Jobcentre Plus,03/02/2011,EMPLOYMENT PROGRAMMES,Balance Sheet Payments,SENCIA LTD,2019368880,"751,755.65"
Department for Work and Pensions,Corporate,24/02/2011,Grant in Aid,Corporate and Support Services,THE PENSIONS REGULATOR,1004653,"749,000.00"
Department for Work and Pensions,Employment Programmes,22/02/2011,EP GENERIC PROVIDER PAYMENTS,WWEG EMPLOYMENT PROGRAMMES,A4E LTD,2019602346,"747,654.33"
Department for Work and Pensions,Employment Programmes,22/02/2011,EP GENERIC PROVIDER PAYMENTS,WWEG EMPLOYMENT PROGRAMMES,DUDLEY MBC FUTURE SKILLS,2019605291,"746,609.67"
Department for Work and Pensions,Employment Programmes,07/02/2011,YOUNG PERSON'S GUARANTEE,WWEG EMPLOYMENT PROGRAMMES,SALFORD CITY COUNCIL,2019381510,"715,000.00"
Department for Work and Pensions,"Pension, Disability Carers Services",09/02/2011,AOS CONTRACTED OUT SERVICES,Pensions & Disability Carers Service ,BALFOUR BEATTY WORKPLACE LTD,2019401988,"708,632.39"
Department for Work and Pensions,Jobcentre Plus,03/02/2011,EMPLOYMENT PROGRAMMES,Balance Sheet Payments,SKILLS TRAINING UK LTD,2019368901,"705,911.32"
Department for Work and Pensions,Corporate,03/02/2011,PROFESSIONAL FEES,WWG SUMMARY,OFFICE FOR NATIONAL STATISTICS,2019368056,"704,310.00"
Department for Work and Pensions,Jobcentre Plus,03/02/2011,EMPLOYMENT PROGRAMMES,Balance Sheet Payments,CAREERS DEVELOPMENT GROUP,2019364662,"702,317.73"
Department for Work and Pensions,Employment Programmes,22/02/2011,EP GENERIC PROVIDER PAYMENTS,WWEG EMPLOYMENT PROGRAMMES,WORKING LINKS,2019611678,"697,742.26"
Department for Work and Pensions,Corporate,28/02/2011,ACCOMMODATION,Group Finance,TELEREAL TRILLIUM,2019711332,"680,201.46"
Department for Work and Pensions,Employment Programmes,22/02/2011,EP GENERIC PROVIDER PAYMENTS,WWEG EMPLOYMENT PROGRAMMES,WORKING LINKS,2019611678,"679,445.53"
Department for Work and Pensions,Corporate,24/02/2011,COMPUTER SERVICES,Corporate IT ,ATOS ORIGIN IT SERVICES UK LTD,2019690854,"674,050.05"
Department for Work and Pensions,Employment Programmes,22/02/2011,EP GENERIC PROVIDER PAYMENTS,WWEG EMPLOYMENT PROGRAMMES,A4E LTD,2019602346,"652,480.00"
Department for Work and Pensions,Corporate,11/02/2011,COMPUTER SERVICES,Corporate IT ,XEROX UK LTD 3W,2019483340,"648,660.25"
Department for Work and Pensions,Corporate,22/02/2011,HOSTING,Corporate IT ,HP ENTERPRISE SERVICES UK LTD,2019606122,"629,882.65"
Department for Work and Pensions,Jobcentre Plus,16/02/2011,AOS CONTRACTED OUT SERVICES,Jobcentre Plus,VERTEX DATA SCIENCE LIMITED,2019577207,"614,892.26"
Department for Work and Pensions,Employment Programmes,22/02/2011,EP GENERIC PROVIDER PAYMENTS,WWEG EMPLOYMENT PROGRAMMES,A4E LTD,2019602346,"614,416.17"
Department for Work and Pensions,Employment Programmes,01/02/2011,EMPLOYMENT INITIATIVES,WWEG EMPLOYMENT PROGRAMMES,REED IN PARTNERSHIP HACKNEY LTD,2019283467,"609,272.00"
Department for Work and Pensions,Housing Benefits,14/02/2011,Housing Benefit Admin,WWG Housing Benefit,LIVERPOOL CITY COUNCIL,2019485100,"608,982.00"
Department for Work and Pensions,Employment Programmes,22/02/2011,EP GENERIC PROVIDER PAYMENTS,WWEG EMPLOYMENT PROGRAMMES,INGEUS UK LTD,2019606241,"602,782.22"
Department for Work and Pensions,Employment Programmes,22/02/2011,EP GENERIC PROVIDER PAYMENTS,WWEG EMPLOYMENT PROGRAMMES,SEETEC BUSINESS TECHNOLOGY CENTRE LTD,2019611063,"598,372.85"
Department for Work and Pensions,Jobcentre Plus,10/02/2011,EMPLOYMENT PROGRAMMES,Balance Sheet Payments,INGEUS UK LTD,2019474013,"596,969.42"
Department for Work and Pensions,Employment Programmes,16/02/2011,YOUNG PERSON'S GUARANTEE,WWEG EMPLOYMENT PROGRAMMES,NATIONAL SKILLS ACADEMY FOR SPORT & ACTIVE LEISURE,2019557899,"593,400.00"
Department for Work and Pensions,Corporate,01/02/2011,IS/IT,Corporate IT ,SPECIALIST COMPUTER CENTRE PLC,2019284457,"580,574.14"
Department for Work and Pensions,Employment Programmes,22/02/2011,EP GENERIC PROVIDER PAYMENTS,WWEG EMPLOYMENT PROGRAMMES,SKILLS TRAINING UK LIMITED,2019611086,"579,110.75"
Department for Work and Pensions,Corporate,15/02/2011,COMPUTER SERVICES,Corporate IT ,HP ENTERPRISE SERVICES UK LTD,2019496556,"575,171.62"
Department for Work and Pensions,Corporate,17/02/2011,OTHER PROJECTS,Corporate and Support Services,BBC,2019581662,"569,862.39"
Department for Work and Pensions,Corporate,10/02/2011,IS/IT,CHANGE MANAGEMENT DIRECTORATE,SPECIALIST COMPUTER CENTRE PLC,2019476061,"564,569.11"
Department for Work and Pensions,Jobcentre Plus,24/02/2011,AOS CONTRACTED OUT SERVICES,Jobcentre Plus,VERTEX DATA SCIENCE LIMITED,2019696804,"563,397.43"
Department for Work and Pensions,Jobcentre Plus,10/02/2011,EMPLOYMENT PROGRAMMES,Balance Sheet Payments,A4E LTD,2019472091,"557,795.13"
Department for Work and Pensions,Corporate,25/02/2011,Pensions Programme Costs,Corporate and Support Services,PENSION PROTECTION FUND,1004660,"555,000.00"
Department for Work and Pensions,Jobcentre Plus,10/02/2011,EMPLOYMENT PROGRAMMES,Balance Sheet Payments,WORKING LINKS,2019476363,"548,743.01"
Department for Work and Pensions,Housing Benefits,14/02/2011,Housing Benefit Admin,WWG Housing Benefit,LEEDS CITY COUNCIL,2019485095,"547,795.00"
Department for Work and Pensions,Employment Programmes,21/02/2011,EMPLOYMENT INITIATIVES,WWEG EMPLOYMENT PROGRAMMES,REED IN PARTNERSHIP HACKNEY LTD,2019599802,"545,526.00"
Department for Work and Pensions,Corporate,07/02/2011,APPS DEV,CHANGE MANAGEMENT DIRECTORATE,ACCENTURE,2019377269,"544,755.15"
Department for Work and Pensions,Corporate,07/02/2011,COMPUTER SERVICES,Corporate IT ,HP ENTERPRISE SERVICES UK LTD,2019379483,"542,601.06"
Department for Work and Pensions,Housing Benefits,14/02/2011,Housing Benefit Admin,WWG Housing Benefit,MANCHESTER CITY COUNCIL,2019485133,"540,488.00"
Department for Work and Pensions,Employment Programmes,10/02/2011,JOBCENTRE PLUS PATHWAYS TO WORK,WWEG EMPLOYMENT PROGRAMMES,BARNSLEY PRIMARY CARE TRUST,2019472230,"532,325.00"
Department for Work and Pensions,Employment Programmes,02/02/2011,NDDP,WWEG EMPLOYMENT PROGRAMMES,SHAW TRUST LTD,2019355216,"530,843.06"
Department for Work and Pensions,Corporate,28/02/2011,ACCOMMODATION,SHARED SERVICES,TELEREAL TRILLIUM,2019711332,"526,986.96"
Department for Work and Pensions,Employment Programmes,22/02/2011,EP GENERIC PROVIDER PAYMENTS,WWEG EMPLOYMENT PROGRAMMES,INGEUS UK LTD,2019606241,"525,899.09"
Department for Work and Pensions,Corporate,28/02/2011,ACCOMMODATION,Group Finance,TELEREAL TRILLIUM,2019711332,"523,892.08"
Department for Work and Pensions,Corporate,28/02/2011,ACCOMMODATION,Group Finance,TELEREAL TRILLIUM,2019711332,"521,527.38"
Department for Work and Pensions,Corporate,14/02/2011,COMPUTER SERVICES,Corporate IT ,HP ENTERPRISE SERVICES UK LTD,2019487884,"519,957.23"
Department for Work and Pensions,European Social Fund,08/02/2011,ESF NON-PREFUNDED EXPENDITURE,WWEG EUROPEAN SOCIAL FUND,CORNWALL COLLEGE,5000000466,"513,365.00"
Department for Work and Pensions,Employment Programmes,01/02/2011,EMPLOYMENT INITIATIVES,WWEG EMPLOYMENT PROGRAMMES,REED IN PARTNERSHIP HACKNEY LTD,2019283467,"509,406.00"
Department for Work and Pensions,Employment Programmes,04/02/2011,YOUNG PERSON'S GUARANTEE,WWEG EMPLOYMENT PROGRAMMES,NATIONAL SKILLS ACADEMY FOR SPORT & ACTIVE LEISURE,2019374545,"497,900.00"
Department for Work and Pensions,Employment Programmes,21/02/2011,EMPLOYMENT INITIATIVES,WWEG EMPLOYMENT PROGRAMMES,REED IN PARTNERSHIP HACKNEY LTD,2019599802,"489,170.00"
Department for Work and Pensions,Employment Programmes,16/02/2011,YOUNG PERSON'S GUARANTEE,WWEG EMPLOYMENT PROGRAMMES,BIRMINGHAM CITY COUNCIL,2019511716,"486,300.00"
Department for Work and Pensions,Corporate,28/02/2011,TOTAL IT & EQUIPMENT COSTS,Corporate IT ,HP ENTERPRISE SERVICES UK LTD,2019709129,"483,000.00"
Department for Work and Pensions,Employment Programmes,15/02/2011,YOUNG PERSON'S GUARANTEE,WWEG EMPLOYMENT PROGRAMMES,NORTH LANARKSHIRE COUNCIL,2019499938,"479,700.00"
Department for Work and Pensions,Employment Programmes,22/02/2011,EP GENERIC PROVIDER PAYMENTS,WWEG EMPLOYMENT PROGRAMMES,THE WISE GROUP,2019611417,"478,842.33"
Department for Work and Pensions,Employment Programmes,22/02/2011,EP GENERIC PROVIDER PAYMENTS,WWEG EMPLOYMENT PROGRAMMES,SERCO LTD,2019611066,"472,365.17"
Department for Work and Pensions,Employment Programmes,22/02/2011,EP GENERIC PROVIDER PAYMENTS,WWEG EMPLOYMENT PROGRAMMES,SERCO LTD,2019611066,"470,488.83"
Department for Work and Pensions,Jobcentre Plus,03/02/2011,EMPLOYMENT PROGRAMMES,Balance Sheet Payments,WORKING LINKS,2019369249,"469,828.96"
Department for Work and Pensions,"Pension, Disability Carers Services",11/02/2011,APPS DEV,Pensions & Disability Carers Service ,HP ENTERPRISE SERVICES UK LTD,2019481032,"463,829.28"
Department for Work and Pensions,Housing Benefits,14/02/2011,Housing Benefit Admin,WWG Housing Benefit,DURHAM COUNCIL,2019485028,"456,042.00"
Department for Work and Pensions,Housing Benefits,14/02/2011,Housing Benefit Admin,WWG Housing Benefit,BRADFORD METROPOLITAN BOROUGH COUNCIL,2019484964,"454,773.00"
Department for Work and Pensions,Jobcentre Plus,03/02/2011,EMPLOYMENT PROGRAMMES,Balance Sheet Payments,TRIAGE CENTRAL LTD,2019369110,"453,067.59"
Department for Work and Pensions,Corporate,10/02/2011,BANKING AND ENCASHMENT COSTS,Group Finance,HSBC BANK,2019473970,"452,887.20"
Department for Work and Pensions,Employment Programmes,22/02/2011,EP GENERIC PROVIDER PAYMENTS,WWEG EMPLOYMENT PROGRAMMES,WORKING LINKS,2019611678,"443,844.23"
Department for Work and Pensions,Jobcentre Plus,03/02/2011,EMPLOYMENT PROGRAMMES,Balance Sheet Payments,TNG BUSINESS SUPPORT LTD.,2019369094,"436,386.18"
Department for Work and Pensions,Employment Programmes,21/02/2011,YOUNG PERSON'S GUARANTEE,WWEG EMPLOYMENT PROGRAMMES,MERTHYR TYDFIL COUNTY BOROUGH COUNCIL,2019601620,"435,900.00"
Department for Work and Pensions,"Pension, Disability Carers Services",11/02/2011,CONTRACTED OUT OFFICE SERVICES,Pensions & Disability Carers Service ,CAPITA BUSINESS SERVICES LTD,2019479258,"430,787.89"
Department for Work and Pensions,Jobcentre Plus,24/02/2011,EMPLOYMENT PROGRAMMES,Balance Sheet Payments,SHAW TRUST LTD,2019696425,"413,637.25"
Department for Work and Pensions,Jobcentre Plus,24/02/2011,EMPLOYMENT PROGRAMMES,Balance Sheet Payments,A4E LTD,2019690803,"410,924.92"
Department for Work and Pensions,Employment Programmes,01/02/2011,EMPLOYMENT INITIATIVES,WWEG EMPLOYMENT PROGRAMMES,REED IN PARTNERSHIP HACKNEY LTD,2019283467,"410,678.00"
Department for Work and Pensions,Employment Programmes,07/02/2011,YOUNG PERSON'S GUARANTEE,WWEG EMPLOYMENT PROGRAMMES,SCOTTISH COUNCIL FOR VOLUNTARY ORGANISATIONS,2019381522,"410,250.00"
Department for Work and Pensions,Corporate,14/02/2011,BANKING AND ENCASHMENT COSTS,Group Finance,HSBC,601513,"401,508.08"
Department for Work and Pensions,Corporate,28/02/2011,TRADE DEBTORS,Balance Sheet Payments,TELEREAL TRILLIUM,2019711335,"399,009.26"
Department for Work and Pensions,Employment Programmes,03/02/2011,JOBCENTRE PLUS PATHWAYS TO WORK,WWEG EMPLOYMENT PROGRAMMES,WIRRAL PCT,2019369235,"398,309.00"
Department for Work and Pensions,Housing Benefits,14/02/2011,Housing Benefit Admin,WWG Housing Benefit,LONDON BOROUGH OF LAMBETH,2019485118,"395,891.00"
Department for Work and Pensions,Corporate,01/02/2011,AOS CONTRACTED OUT SERVICES,SHARED SERVICES,CAPITA BUSINESS SERVICES LTD,2019276341,"393,729.08"
Department for Work and Pensions,"Pension, Disability Carers Services",22/02/2011,COMPUTER SERVICES,Pensions & Disability Carers Service ,ATOS ORIGIN IT SERVICES UK,2019602413,"393,647.35"
Department for Work and Pensions,Housing Benefits,14/02/2011,Housing Benefit Admin,WWG Housing Benefit,SHEFFIELD CITY COUNCIL,2019485213,"392,920.00"
Department for Work and Pensions,Housing Benefits,14/02/2011,Housing Benefit Admin,WWG Housing Benefit,LONDON BOROUGH OF TOWER HAMLETS,2019485126,"388,877.00"
Department for Work and Pensions,Housing Benefits,14/02/2011,Housing Benefit Admin,WWG Housing Benefit,BRISTOL CITY COUNCIL,2019484970,"387,917.00"
Department for Work and Pensions,Housing Benefits,14/02/2011,Housing Benefit Admin,WWG Housing Benefit,HACKNEY LBC,2019485067,"386,918.00"
Department for Work and Pensions,Employment Programmes,10/02/2011,YOUNG PERSON'S GUARANTEE,WWEG EMPLOYMENT PROGRAMMES,CITY & COUNTY OF SWANSEA,2019472524,"385,650.00"
Department for Work and Pensions,Employment Programmes,16/02/2011,YOUNG PERSON'S GUARANTEE,WWEG EMPLOYMENT PROGRAMMES,BRIGHTON & HOVE CITY COUNCIL,2019511747,"381,900.00"
Department for Work and Pensions,Housing Benefits,14/02/2011,Housing Benefit Admin,WWG Housing Benefit,CORNWALL COUNCIL,2019485008,"381,859.00"
Department for Work and Pensions,Employment Programmes,23/02/2011,JSP ESF DEL P COSTS,WWEG EMPLOYMENT PROGRAMMES,INGEUS UK LTD,2019640243,"381,599.14"
Department for Work and Pensions,Employment Programmes,11/02/2011,YOUNG PERSON'S GUARANTEE,WWEG EMPLOYMENT PROGRAMMES,3SC,2019478624,"378,450.00"
Department for Work and Pensions,Jobcentre Plus,03/02/2011,EMPLOYMENT PROGRAMMES,Balance Sheet Payments,BTCV ENTERPRISES LTD,2019364393,"377,569.05"
Department for Work and Pensions,Employment Programmes,01/02/2011,EMPLOYMENT INITIATIVES,WWEG EMPLOYMENT PROGRAMMES,REED IN PARTNERSHIP HACKNEY LTD,2019283467,"374,334.00"
Department for Work and Pensions,Jobcentre Plus,10/02/2011,EMPLOYMENT PROGRAMMES,Balance Sheet Payments,REED IN PARTNERSHIP,2019475614,"371,013.02"
Department for Work and Pensions,Jobcentre Plus,17/02/2011,EMPLOYMENT PROGRAMMES,Balance Sheet Payments,WORKING LINKS,2019586793,"370,825.35"
Department for Work and Pensions,Housing Benefits,14/02/2011,Housing Benefit Admin,WWG Housing Benefit,LONDON BOROUGH OF LEWISHAM,2019485119,"367,564.00"
Department for Work and Pensions,Employment Programmes,11/02/2011,EMPLOYMENT INITIATIVES,WWEG EMPLOYMENT PROGRAMMES,WORKING LINKS,2019483334,"365,870.00"
Department for Work and Pensions,Jobcentre Plus,03/02/2011,EMPLOYMENT PROGRAMMES,Balance Sheet Payments,TRAINING WEST LANCASHIRE LTD,2019369107,"359,197.28"
Department for Work and Pensions,Employment Programmes,21/02/2011,EMPLOYMENT INITIATIVES,WWEG EMPLOYMENT PROGRAMMES,REED IN PARTNERSHIP HACKNEY LTD,2019599802,"358,522.00"
Department for Work and Pensions,Housing Benefits,14/02/2011,Housing Benefit Admin,WWG Housing Benefit,LONDON BOROUGH OF SOUTHWARK,2019485124,"357,131.00"
Department for Work and Pensions,Housing Benefits,14/02/2011,Housing Benefit Admin,WWG Housing Benefit,LONDON BOROUGH OF NEWHAM,2019485121,"354,305.00"
Department for Work and Pensions,Employment Programmes,21/02/2011,NDDP,WWEG EMPLOYMENT PROGRAMMES,ACTION FOR EMPLOYMENTS,2019595602,"351,512.76"
Department for Work and Pensions,Employment Programmes,11/02/2011,EP GENERIC PROVIDER PAYMENTS,WWEG EMPLOYMENT PROGRAMMES,STANDGUIDE LTD,2019483061,"351,068.75"
Department for Work and Pensions,Corporate,25/02/2011,PROFESSIONAL FEES,EG SUMMARY,OFFICE FOR NATIONAL STATISTIC,2019702796,"350,433.00"
Department for Work and Pensions,Housing Benefits,14/02/2011,Housing Benefit Admin,WWG Housing Benefit,EDINBURGH DISTRICT COUNCIL,2019485045,"349,774.00"
Department for Work and Pensions,Employment Programmes,21/02/2011,EMPLOYMENT INITIATIVES,WWEG EMPLOYMENT PROGRAMMES,REED IN PARTNERSHIP HACKNEY LTD,2019599802,"339,640.00"
Department for Work and Pensions,Housing Benefits,14/02/2011,Housing Benefit Admin,WWG Housing Benefit,LONDON BOROUGH OF BRENT,2019485104,"335,730.00"
Department for Work and Pensions,Employment Programmes,23/02/2011,YOUNG PERSON'S GUARANTEE,WWEG EMPLOYMENT PROGRAMMES,LEEDS CITY COUNCIL,2019658491,"335,550.00"
Department for Work and Pensions,Employment Programmes,11/02/2011,YOUNG PERSON'S GUARANTEE,WWEG EMPLOYMENT PROGRAMMES,CSV,2019479311,"335,250.00"
Department for Work and Pensions,Housing Benefits,14/02/2011,Housing Benefit Admin,WWG Housing Benefit,LEICESTER CITY COUNCIL,2019485096,"333,774.00"
Department for Work and Pensions,Employment Programmes,03/02/2011,YOUNG PERSON'S GUARANTEE,WWEG EMPLOYMENT PROGRAMMES,BRADFORD METROPOLITAN DISTRICT COUNCIL,2019364378,"327,600.00"
Department for Work and Pensions,Housing Benefits,14/02/2011,Housing Benefit Admin,WWG Housing Benefit,KIRKLEES METROPOLITAN BOROUGH COUNCIL,2019485092,"327,532.00"
Department for Work and Pensions,"Pension, Disability Carers Services",15/02/2011,MEDICAL SERVICES,Pensions & Disability Carers Service ,ATOS ORIGIN IT SERVICES UK LTD,2019492698,"327,345.92"
Department for Work and Pensions,Corporate,15/02/2011,COMPUTER SERVICES,Corporate IT ,HP ENTERPRISE SERVICES UK LTD,2019496556,"326,402.99"
Department for Work and Pensions,Housing Benefits,14/02/2011,Housing Benefit Admin,WWG Housing Benefit,LONDON BOROUGH OF EALING,2019485107,"322,603.00"
Department for Work and Pensions,Housing Benefits,14/02/2011,Housing Benefit Admin,WWG Housing Benefit,SANDWELL BOROUGH COUNCIL,2019485206,"320,247.00"
Department for Work and Pensions,Jobcentre Plus,03/02/2011,EMPLOYMENT PROGRAMMES,Balance Sheet Payments,BTCV,2019364391,"319,174.00"
Department for Work and Pensions,Jobcentre Plus,17/02/2011,EMPLOYMENT PROGRAMMES,Balance Sheet Payments,SHAW TRUST LTD,2019586364,"315,728.24"
Department for Work and Pensions,Jobcentre Plus,17/02/2011,EMPLOYMENT PROGRAMMES,Balance Sheet Payments,INBIZ LTD,2019584018,"315,220.85"
Department for Work and Pensions,Housing Benefits,14/02/2011,Housing Benefit Admin,WWG Housing Benefit,LONDON BOROUGH OF ISLINGTON,2019485116,"311,891.00"
Department for Work and Pensions,Corporate,15/02/2011,TRADE DEBTORS,Balance Sheet Payments,TELEREAL TRILLIUM,2019502339,"309,225.80"
Department for Work and Pensions,Housing Benefits,14/02/2011,Housing Benefit Admin,WWG Housing Benefit,SUNDERLAND CITY COUNCIL,2019485252,"306,805.00"
Department for Work and Pensions,Employment Programmes,07/02/2011,YOUNG PERSON'S GUARANTEE,WWEG EMPLOYMENT PROGRAMMES,GROUNDWORK UK,2019379389,"305,500.00"
Department for Work and Pensions,Housing Benefits,14/02/2011,Housing Benefit Admin,WWG Housing Benefit,NOTTINGHAM CITY COUNCIL,2019485170,"304,683.00"
Department for Work and Pensions,Corporate,24/02/2011,PAYMENTS TO CSAS,Corporate and Support Services,ATOS ORIGIN IT SERVICES UK LTD,2019690854,"304,109.50"
Department for Work and Pensions,Employment Programmes,21/02/2011,HELP FOR UNEMPLOYED PEOPLE OTHER,WWEG EMPLOYMENT PROGRAMMES,EDINBURGH CITY STRATEGY PATHFINDER,2019598011,"303,001.00"
Department for Work and Pensions,Housing Benefits,14/02/2011,Housing Benefit Admin,WWG Housing Benefit,LONDON BOROUGH OF CAMDEN,2019485106,"301,988.00"
Department for Work and Pensions,Housing Benefits,14/02/2011,Housing Benefit Admin,WWG Housing Benefit,NORTH LANARKSHIRE COUNCIL,2019485160,"300,013.00"
Department for Work and Pensions,Employment Programmes,11/02/2011,Grant in Aid,WWEG EMPLOYMENT PROGRAMMES,REMPLOY LIMITED,1004640,"300,000.00"
Department for Work and Pensions,Employment Programmes,11/02/2011,EP GENERIC PROVIDER PAYMENTS,WWEG EMPLOYMENT PROGRAMMES,PERTEMPS,2019482451,"299,442.46"
Department for Work and Pensions,Housing Benefits,14/02/2011,Housing Benefit Admin,WWG Housing Benefit,LONDON BOROUGH OF HARINGEY,2019485111,"297,439.00"
Department for Work and Pensions,Housing Benefits,14/02/2011,Housing Benefit Admin,WWG Housing Benefit,CROYDON PEO%,2019485015,"297,249.00"
Department for Work and Pensions,Corporate,28/02/2011,ACCOMMODATION,Group Finance,TELEREAL TRILLIUM,2019711332,"297,211.19"
Department for Work and Pensions,Housing Benefits,14/02/2011,Housing Benefit Admin,WWG Housing Benefit,BRIGHTON & HOVE COUNCIL,2019484969,"296,963.00"
Department for Work and Pensions,Corporate,15/02/2011,AMS,Corporate IT ,HP ENTERPRISE SERVICES UK LTD,2019496556,"295,933.34"
Department for Work and Pensions,Corporate,08/02/2011,PROFESSIONAL FEES,LSPG,FIELD FISHER WATERHOUSE LLP,2019386910,"295,588.27"
Department for Work and Pensions,Housing Benefits,14/02/2011,Housing Benefit Admin,WWG Housing Benefit,CARDIFF CITY COUNCIL,2019484982,"295,577.00"
Department for Work and Pensions,Housing Benefits,14/02/2011,Housing Benefit Admin,WWG Housing Benefit,KINGSTON UPON HULL CITY COUNCIL,2019485091,"292,996.00"
Department for Work and Pensions,Housing Benefits,14/02/2011,Housing Benefit Admin,WWG Housing Benefit,WALSALL BOROUGH COUNCIL,2019485280,"292,792.00"
Department for Work and Pensions,Jobcentre Plus,21/02/2011,JOBCENTRE PLUS PATHWAYS TO WORK,Jobcentre Plus,NHS LANARKSHIRE,2019599430,"292,415.89"
Department for Work and Pensions,Housing Benefits,14/02/2011,Housing Benefit Admin,WWG Housing Benefit,LONDON BOROUGH OF ENFIELD,2019485108,"291,627.00"
Department for Work and Pensions,Housing Benefits,14/02/2011,Housing Benefit Admin,WWG Housing Benefit,WAKEFIELD METROPOLITAN DISTRICT COUNCIL,2019485279,"291,377.00"
Department for Work and Pensions,Housing Benefits,14/02/2011,Housing Benefit Admin,WWG Housing Benefit,COVENTRY CITY COUNCIL,2019485012,"290,752.00"
Department for Work and Pensions,Jobcentre Plus,03/02/2011,EMPLOYMENT PROGRAMMES,Balance Sheet Payments,WORKING LINKS EMPLOYMENT LIMITED,2019369253,"289,339.06"
Department for Work and Pensions,Housing Benefits,14/02/2011,Housing Benefit Admin,WWG Housing Benefit,FIFE COUNCIL,2019485054,"288,157.00"
Department for Work and Pensions,Jobcentre Plus,03/02/2011,EMPLOYMENT PROGRAMMES,Balance Sheet Payments,SHAW TRUST LTD,2019368886,"287,533.21"
Department for Work and Pensions,Housing Benefits,14/02/2011,Housing Benefit Admin,WWG Housing Benefit,WIRRAL BOROUGH COUNCIL,2019485302,"284,708.00"
Department for Work and Pensions,Employment Programmes,11/02/2011,EP GENERIC PROVIDER PAYMENTS,WWEG EMPLOYMENT PROGRAMMES,PINNACLE PEOPLE,2019482455,"281,726.58"
Department for Work and Pensions,Jobcentre Plus,03/02/2011,EMPLOYMENT PROGRAMMES,Balance Sheet Payments,TOMORROWS PEOPLE LTD,2019369102,"280,444.36"
Department for Work and Pensions,Corporate,07/02/2011,COMPUTER SERVICES,Corporate IT ,CABLE & WIRELESS PLC,2019377644,"278,693.80"
Department for Work and Pensions,Corporate,07/02/2011,COMPUTER SERVICES,Corporate IT ,SPECIALIST COMPUTER CENTRE PLC,2019381599,"277,685.72"
Department for Work and Pensions,Employment Programmes,17/02/2011,EMPLOYMENT INITIATIVES,WWEG EMPLOYMENT PROGRAMMES,THE WISE GROUP,2019586601,"276,970.00"
Department for Work and Pensions,Employment Programmes,11/02/2011,EP GENERIC PROVIDER PAYMENTS,WWEG EMPLOYMENT PROGRAMMES,A4E LTD,2019478888,"276,631.67"
Department for Work and Pensions,Employment Programmes,21/02/2011,EMPLOYMENT INITIATIVES,WWEG EMPLOYMENT PROGRAMMES,TNG WORKZONE LTD,2019600343,"275,955.00"
Department for Work and Pensions,Jobcentre Plus,10/02/2011,EMPLOYMENT PROGRAMMES,Balance Sheet Payments,WORKING LINKS EMPLOYMENT LIMITED,2019476364,"274,549.45"
Department for Work and Pensions,Housing Benefits,14/02/2011,Housing Benefit Admin,WWG Housing Benefit,LONDON BOROUGH OF GREENWICH,2019485109,"272,849.00"
Department for Work and Pensions,Corporate,28/02/2011,ACCOMMODATION,Group Finance,TELEREAL TRILLIUM,2019711332,"272,160.49"
Department for Work and Pensions,Employment Programmes,11/02/2011,EP GENERIC PROVIDER PAYMENTS,WWEG EMPLOYMENT PROGRAMMES,ESG HOLDINGS LTD,2019480763,"270,433.41"
Department for Work and Pensions,Housing Benefits,14/02/2011,Housing Benefit Admin,WWG Housing Benefit,LONDON BOROUGH OF WANDSWORTH,2019485128,"267,990.00"
Department for Work and Pensions,Housing Benefits,14/02/2011,Housing Benefit Admin,WWG Housing Benefit,WOLVERHAMPTON CITY COUNCIL,2019485305,"266,735.00"
Department for Work and Pensions,Corporate,24/02/2011,EMPLOYMENT ZONES,WWG SUMMARY,SPECIALIST SCHOOLS & ACADEMIES TRUST,2019696464,"265,882.00"
Department for Work and Pensions,Jobcentre Plus,24/02/2011,EMPLOYMENT PROGRAMMES,Balance Sheet Payments,INGEUS UK LTD,2019693633,"265,789.69"
Department for Work and Pensions,Employment Programmes,18/02/2011,YOUNG PERSON'S GUARANTEE,WWEG EMPLOYMENT PROGRAMMES,BRADFORD METROPOLITAN DISTRICT COUNCIL,2019589610,"263,250.00"
Department for Work and Pensions,Employment Programmes,22/02/2011,EMPLOYMENT INITIATIVES,WWEG EMPLOYMENT PROGRAMMES,INGEUS UK LTD,2019606240,"261,430.00"
Department for Work and Pensions,Jobcentre Plus,03/02/2011,EMPLOYMENT PROGRAMMES,Balance Sheet Payments,TNG NETWORK LTD,2019369099,"261,138.63"
Department for Work and Pensions,Jobcentre Plus,10/02/2011,EMPLOYMENT PROGRAMMES,Balance Sheet Payments,WORKING LINKS EMPLOYMENT LTD,2019476365,"258,262.86"
Department for Work and Pensions,Jobcentre Plus,03/02/2011,EMPLOYMENT PROGRAMMES,Balance Sheet Payments,ROYAL BRITISH LEGION INDUSTRIES LTD,2019368488,"257,786.92"
Department for Work and Pensions,Housing Benefits,14/02/2011,Housing Benefit Admin,WWG Housing Benefit,LONDON BOROUGH OF BARNET,2019485102,"257,064.00"
Department for Work and Pensions,Corporate,09/02/2011,AOS CONTRACTED OUT SERVICES,Group Finance,BALFOUR BEATTY WORKPLACE LTD,2019401988,"256,695.12"
Department for Work and Pensions,Housing Benefits,14/02/2011,Housing Benefit Admin,WWG Housing Benefit,DONCASTER METROPOLITAN BOROUGH COUNCIL,2019485023,"256,645.00"
Department for Work and Pensions,Employment Programmes,11/02/2011,EP GENERIC PROVIDER PAYMENTS,WWEG EMPLOYMENT PROGRAMMES,A4E LTD,2019478888,"255,321.19"
Department for Work and Pensions,Housing Benefits,14/02/2011,Housing Benefit Admin,WWG Housing Benefit,SOUTH LANARKSHIRE COUNCIL,2019485228,"255,246.00"
Department for Work and Pensions,Employment Programmes,01/02/2011,EMPLOYMENT INITIATIVES,WWEG EMPLOYMENT PROGRAMMES,INGEUS UK LTD,2019279445,"255,228.00"
Department for Work and Pensions,Employment Programmes,11/02/2011,EP GENERIC PROVIDER PAYMENTS,WWEG EMPLOYMENT PROGRAMMES,JHP GROUP LTD,2019481432,"253,734.83"
Department for Work and Pensions,Corporate,15/02/2011,COMPUTER SERVICES,Corporate IT ,HP ENTERPRISE SERVICES UK LTD,2019496556,"253,541.60"
Department for Work and Pensions,Employment Programmes,11/02/2011,EP GENERIC PROVIDER PAYMENTS,WWEG EMPLOYMENT PROGRAMMES,A4E LTD,2019478888,"252,843.20"
Department for Work and Pensions,Housing Benefits,14/02/2011,Housing Benefit Admin,WWG Housing Benefit,NEWCASTLE CITY COUNCIL,2019485150,"250,524.00"
Department for Work and Pensions,Corporate,15/02/2011,APPS DEV,CHANGE MANAGEMENT DIRECTORATE,HP ENTERPRISE SERVICES UK LTD,2019496556,"250,335.55"
Department for Work and Pensions,Employment Programmes,11/02/2011,EP GENERIC PROVIDER PAYMENTS,WWEG EMPLOYMENT PROGRAMMES,REED IN PARTNERSHIP,2019482640,"250,083.33"
Department for Work and Pensions,Housing Benefits,14/02/2011,Housing Benefit Admin,WWG Housing Benefit,SALFORD CITY COUNCIL,2019485205,"249,571.00"
Department for Work and Pensions,Employment Programmes,11/02/2011,EP GENERIC PROVIDER PAYMENTS,WWEG EMPLOYMENT PROGRAMMES,INGEUS UK LTD,2019481097,"248,306.51"
Department for Work and Pensions,Jobcentre Plus,03/02/2011,EMPLOYMENT PROGRAMMES,Balance Sheet Payments,WORKING LINKS,2019369247,"244,577.27"
Department for Work and Pensions,Housing Benefits,14/02/2011,Housing Benefit Admin,WWG Housing Benefit,LONDON BOROUGH OF WALTHAM FOREST,2019485127,"244,198.00"
Department for Work and Pensions,Corporate,01/02/2011,APPS DEV,SHARED SERVICES,FUJITSU SERVICES,2019278835,"243,305.00"
Department for Work and Pensions,Corporate,24/02/2011,IS/IT,Group Finance,COMPUTACENTER UK LTD,2019691397,"242,827.20"
Department for Work and Pensions,Housing Benefits,14/02/2011,Housing Benefit Admin,WWG Housing Benefit,CITY OF WESTMINSTER,2019485000,"242,253.00"
Department for Work and Pensions,Corporate,22/02/2011,CAPITAL GRANTS,Group Finance,PARK ROAD COMMUNITY CREDIT UNION LTD,2019609664,"242,000.00"
Department for Work and Pensions,Employment Programmes,18/02/2011,EMPLOYMENT INITIATIVES,WWEG EMPLOYMENT PROGRAMMES,SENCIA LTD,2019593655,"239,498.00"
Department for Work and Pensions,Employment Programmes,09/02/2011,YOUNG PERSON'S GUARANTEE,WWEG EMPLOYMENT PROGRAMMES,URBAN FUTURES LONDON LTD,2019466851,"237,984.53"
Department for Work and Pensions,Housing Benefits,14/02/2011,Housing Benefit Admin,WWG Housing Benefit,WILTSHIRE COUNCIL,2019485299,"237,896.00"
Department for Work and Pensions,Housing Benefits,14/02/2011,Housing Benefit Admin,WWG Housing Benefit,DUDLEY METROPOLITAN BOROUGH COUNCIL,2019485025,"237,479.00"
Department for Work and Pensions,Corporate,24/02/2011,PRINCES YOUTH TRUST,WWG SUMMARY,ESSEX COUNTY COUNCIL,1004657,"236,250.00"
Department for Work and Pensions,Employment Programmes,28/02/2011,YOUNG PERSON'S GUARANTEE,WWEG EMPLOYMENT PROGRAMMES,GROUNDWORK WEST MIDLANDS,2019709034,"235,500.00"
Department for Work and Pensions,Corporate,02/02/2011,AOS CONTRACTED OUT SERVICES,SHARED SERVICES,MINISTRY OF DEFENCE,2019337641,"234,927.57"
Department for Work and Pensions,Housing Benefits,14/02/2011,Housing Benefit Admin,WWG Housing Benefit,WIGAN BOROUGH COUNCIL,2019485298,"233,860.00"
Department for Work and Pensions,Employment Programmes,11/02/2011,EP GENERIC PROVIDER PAYMENTS,WWEG EMPLOYMENT PROGRAMMES,PINNACLE PEOPLE,2019482455,"233,101.08"
Department for Work and Pensions,"Pension, Disability Carers Services",28/02/2011,ACCOMMODATION,Pensions & Disability Carers Service ,TELEREAL TRILLIUM,2019711335,"231,848.66"
Department for Work and Pensions,Jobcentre Plus,18/02/2011,MEDICAL SERVICES,Jobcentre Plus,ATOS ORIGIN MEDICAL SERVICES,2019589515,"228,597.70"
Department for Work and Pensions,Housing Benefits,14/02/2011,Housing Benefit Admin,WWG Housing Benefit,STOKE ON TRENT CITY COUNCIL,2019485248,"228,040.00"
Department for Work and Pensions,European Social Fund,23/02/2011,MA ESF(D) LA NON-PREFUNDED EXPENDITURE,WWEG EUROPEAN SOCIAL FUND,KNOWSLEY METROPOLITIAN BOROUGH COUNCIL,5000000486,"226,107.00"
Department for Work and Pensions,Employment Programmes,03/02/2011,YOUNG PERSON'S GUARANTEE,WWEG EMPLOYMENT PROGRAMMES,THE INTRAINING GROUP,2019369065,"225,717.00"
Department for Work and Pensions,Employment Programmes,11/02/2011,EMPLOYMENT INITIATIVES,WWEG EMPLOYMENT PROGRAMMES,WORKING LINKS,2019483334,"225,555.00"
Department for Work and Pensions,Housing Benefits,14/02/2011,Housing Benefit Admin,WWG Housing Benefit,SEFTON METROPOLITAN BOROUGH COUNCIL,2019485210,"224,789.00"
Department for Work and Pensions,Corporate,11/02/2011,OTHER EXPENDITURE,Corporate and Support Services,CAPITA BUSINESS SERVICES LTD,2019479258,"223,829.79"
Department for Work and Pensions,Employment Programmes,04/02/2011,YOUNG PERSON'S GUARANTEE,WWEG EMPLOYMENT PROGRAMMES,KNOWSLEY METROPOLITAN BOROUGH COUNCIL,2019374040,"220,762.00"
Department for Work and Pensions,Employment Programmes,04/02/2011,NDDP,WWEG EMPLOYMENT PROGRAMMES,SHAW TRUST LTD,2019375160,"220,662.04"
Department for Work and Pensions,Jobcentre Plus,07/02/2011,COMPUTER SERVICES,Jobcentre Plus,AIRWAVE SOLUTIONS LTD,2019377285,"220,618.45"
Department for Work and Pensions,Housing Benefits,14/02/2011,Housing Benefit Admin,WWG Housing Benefit,LONDON BOROUGH OF HOUNSLOW,2019485115,"220,464.00"
Department for Work and Pensions,Jobcentre Plus,24/02/2011,EMPLOYMENT PROGRAMMES,Balance Sheet Payments,WORKING LINKS,2019696884,"220,416.62"
Department for Work and Pensions,"Pension, Disability Carers Services",09/02/2011,CONTRACTED OUT OFFICE SERVICES,Pensions & Disability Carers Service ,BALFOUR BEATTY WORKPLACE LTD,2019401988,"220,268.00"
Department for Work and Pensions,Corporate,09/02/2011,AOS CONTRACTED OUT SERVICES,SHARED SERVICES,BALFOUR BEATTY WORKPLACE LTD,2019401988,"219,115.58"
Department for Work and Pensions,Housing Benefits,14/02/2011,Housing Benefit Admin,WWG Housing Benefit,BOLTON METROPOLITAN BOROUGH COUNCIL,2019484957,"218,051.00"
Department for Work and Pensions,Jobcentre Plus,10/02/2011,EMPLOYMENT PROGRAMMES,Balance Sheet Payments,SEETEC BUSINESS TECHNOLOGY CENTRE LTD,2019476020,"217,471.57"
Department for Work and Pensions,Employment Programmes,25/02/2011,YOUNG PERSON'S GUARANTEE,WWEG EMPLOYMENT PROGRAMMES,NORFOLK COUNTY COUNCIL,2019702755,"216,900.00"
Department for Work and Pensions,Employment Programmes,11/02/2011,EMPLOYMENT INITIATIVES,WWEG EMPLOYMENT PROGRAMMES,WORKING LINKS,2019483334,"216,480.00"
Department for Work and Pensions,Jobcentre Plus,24/02/2011,EMPLOYMENT PROGRAMMES,Balance Sheet Payments,WORKING LINKS EMPLOYMENT LTD,2019696887,"215,750.27"
Department for Work and Pensions,Employment Programmes,23/02/2011,JOBCENTRE PLUS PATHWAYS TO WORK,WWEG EMPLOYMENT PROGRAMMES,NHS HIGHLAND,602214,"215,704.61"
Department for Work and Pensions,Employment Programmes,22/02/2011,EP GENERIC PROVIDER PAYMENTS,WWEG EMPLOYMENT PROGRAMMES,REMPLOY LTD,2019610160,"214,331.50"
Department for Work and Pensions,Employment Programmes,03/02/2011,YOUNG PERSON'S GUARANTEE,WWEG EMPLOYMENT PROGRAMMES,THE INTRAINING GROUP,2019369065,"214,200.00"
Department for Work and Pensions,Corporate,03/02/2011,AOS CONTRACTED OUT SERVICES,SHARED SERVICES,HOME OFFICE,2019366620,"213,866.09"
Department for Work and Pensions,Corporate,24/02/2011,PRINCES YOUTH TRUST,WWG SUMMARY,LONDON BOROUGH OF BARNET,1004658,"213,200.00"
Department for Work and Pensions,Employment Programmes,11/02/2011,EP GENERIC PROVIDER PAYMENTS,WWEG EMPLOYMENT PROGRAMMES,SEETEC BUSINESS TECHNOLOGY CENTRE LTD,2019483020,"212,698.42"
Department for Work and Pensions,Employment Programmes,01/02/2011,YOUNG PERSON'S GUARANTEE,WWEG EMPLOYMENT PROGRAMMES,WAKEFIELD METROPLITAN DISTRICT COUNCIL,2019284996,"210,379.78"
Department for Work and Pensions,Corporate,23/02/2011,PRINTING STATIONERY IT CONSUMABLES,Group Finance,XEROX UK LTD 3W,2019687203,"209,949.96"
Department for Work and Pensions,Housing Benefits,14/02/2011,Housing Benefit Admin,WWG Housing Benefit,PLYMOUTH CITY COUNCIL,2019485180,"207,141.00"
Department for Work and Pensions,Housing Benefits,14/02/2011,Housing Benefit Admin,WWG Housing Benefit,ROTHERHAM BOROUGH COUNCIL,2019485197,"207,046.00"
Department for Work and Pensions,Housing Benefits,14/02/2011,Housing Benefit Admin,WWG Housing Benefit,STOCKPORT BOROUGH COUNCIL,2019485246,"206,416.00"
Department for Work and Pensions,Employment Programmes,07/02/2011,YOUNG PERSON'S GUARANTEE,WWEG EMPLOYMENT PROGRAMMES,MERTHYR TYDFIL COUNTY BOROUGH COUNCIL,2019383403,"205,400.00"
Department for Work and Pensions,Housing Benefits,14/02/2011,Housing Benefit Admin,WWG Housing Benefit,NORTHUMBERLAND COUNCIL,2019485168,"205,095.00"
Department for Work and Pensions,European Social Fund,16/02/2011,ESF NON-PREFUNDED EXPENDITURE,WWEG EUROPEAN SOCIAL FUND,UNIVERSITY OF EXETER,5000000478,"204,855.00"
Department for Work and Pensions,Housing Benefits,14/02/2011,Housing Benefit Admin,WWG Housing Benefit,TAMESIDE BOROUGH COUNCIL,2019485257,"204,336.00"
Department for Work and Pensions,Corporate,24/02/2011,COMPUTER SERVICES,Corporate IT ,ATOS ORIGIN IT SERVICES UK LTD,2019690854,"204,147.33"
Department for Work and Pensions,Employment Programmes,07/02/2011,YOUNG PERSON'S GUARANTEE,WWEG EMPLOYMENT PROGRAMMES,WALES COUNCIL FOR VOLUNTARY ACTION,2019381915,"204,100.00"
Department for Work and Pensions,Jobcentre Plus,03/02/2011,EMPLOYMENT PROGRAMMES,Balance Sheet Payments,A4E WALES LTD,2019371438,"203,816.93"
Department for Work and Pensions,Housing Benefits,14/02/2011,Housing Benefit Admin,WWG Housing Benefit,LONDON BOROUGH OF HAMMERSMITH & FULHAM,2019485110,"203,286.00"
Department for Work and Pensions,European Social Fund,18/02/2011,MA ESF(D) LA NON-PREFUNDED EXPENDITURE,WWEG EUROPEAN SOCIAL FUND,BARNSLEY METROPOLITAN BOROUGH COUNCIL,5000000481,"202,960.00"
Department for Work and Pensions,Housing Benefits,14/02/2011,Housing Benefit Admin,WWG Housing Benefit,CHESHIRE EAST BOROUGH COUNCIL,2019484991,"202,726.00"
Department for Work and Pensions,Housing Benefits,14/02/2011,Housing Benefit Admin,WWG Housing Benefit,LONDON BOROUGH OF HILLINGDON,2019485114,"202,106.00"
Department for Work and Pensions,Housing Benefits,14/02/2011,Housing Benefit Admin,WWG Housing Benefit,CHESHIRE WEST & CHESTER COUNCIL,2019484992,"201,169.00"
Department for Work and Pensions,Corporate,02/02/2011,CAPITAL GRANTS,Group Finance,MANCHESTER CREDIT UNION,2019337560,"200,000.00"
Department for Work and Pensions,Employment Programmes,28/02/2011,JOBCENTRE PLUS PATHWAYS TO WORK,WWEG EMPLOYMENT PROGRAMMES,CWM TAF LHB,2019712688,"199,808.00"
Department for Work and Pensions,Corporate,18/02/2011,PROFESSIONAL FEES,Corporate and Support Services,OFFICE FOR NATIONAL STATISTICS,2019592933,"199,649.33"
Department for Work and Pensions,Housing Benefits,14/02/2011,Housing Benefit Admin,WWG Housing Benefit,RHONDDA CYNON TAFF COUNTY BOROUGH COUNCIL,2019485190,"199,622.00"
Department for Work and Pensions,Housing Benefits,14/02/2011,Housing Benefit Admin,WWG Housing Benefit,PORTSMOUTH CITY COUNCIL,2019485182,"199,580.00"
Department for Work and Pensions,Employment Programmes,11/02/2011,EP GENERIC PROVIDER PAYMENTS,WWEG EMPLOYMENT PROGRAMMES,CAPITAL TRAINING GROUP LTD,2019479260,"199,399.17"
Department for Work and Pensions,Employment Programmes,11/02/2011,EP GENERIC PROVIDER PAYMENTS,WWEG EMPLOYMENT PROGRAMMES,A4E LTD,2019478888,"198,836.67"
Department for Work and Pensions,Employment Programmes,11/02/2011,EP GENERIC PROVIDER PAYMENTS,WWEG EMPLOYMENT PROGRAMMES,JHP GROUP LTD,2019481432,"198,759.92"
Department for Work and Pensions,Housing Benefits,14/02/2011,Housing Benefit Admin,WWG Housing Benefit,MEDWAY TOWNS COUNCIL,2019485135,"198,271.00"
Department for Work and Pensions,Employment Programmes,07/02/2011,YOUNG PERSON'S GUARANTEE,WWEG EMPLOYMENT PROGRAMMES,SCOTTISH PREMIER LEAGUE LTD,2019381524,"197,600.00"
Department for Work and Pensions,Employment Programmes,03/02/2011,YOUNG PERSON'S GUARANTEE,WWEG EMPLOYMENT PROGRAMMES,TBG LEARNING LTD,2019369044,"196,486.00"
Department for Work and Pensions,Housing Benefits,14/02/2011,Housing Benefit Admin,WWG Housing Benefit,SOUTHAMPTON CITY COUNCIL,2019485236,"196,264.00"
Department for Work and Pensions,Employment Programmes,01/02/2011,YOUNG PERSON'S GUARANTEE,WWEG EMPLOYMENT PROGRAMMES,PETERBOROUGH CITY COUNCIL,2019282982,"195,900.00"
Department for Work and Pensions,Corporate,07/02/2011,IS/IT,Corporate IT ,HP ENTERPRISE SERVICES UK LTD,2019379483,"195,415.99"
Department for Work and Pensions,"Pension, Disability Carers Services",28/02/2011,OTHER GOODS AND SERVICES,Pensions & Disability Carers Service ,HM REVENUE & CUSTOMS,2002461,"194,541.75"
Department for Work and Pensions,Employment Programmes,24/02/2011,JOBCENTRE PLUS PATHWAYS TO WORK,WWEG EMPLOYMENT PROGRAMMES,CWM TAF LHB,2019698876,"194,533.22"
Department for Work and Pensions,Corporate,24/02/2011,COMPUTER SERVICES,Corporate IT ,ATOS ORIGIN IT SERVICES UK LTD,2019690854,"192,803.11"
Department for Work and Pensions,Housing Benefits,14/02/2011,Housing Benefit Admin,WWG Housing Benefit,EAST RIDING OF YORKSHIRE BOROUGH COUNCIL,2019485040,"191,851.00"
Department for Work and Pensions,Jobcentre Plus,28/02/2011,Accomodation Costs,Jobcentre Plus,COMPANIES HOUSE,1004661,"190,408.60"
Department for Work and Pensions,Corporate,08/02/2011,APPS DEV,CHANGE MANAGEMENT DIRECTORATE,HP ENTERPRISE SERVICES UK LTD,2019387424,"190,330.28"
Department for Work and Pensions,Employment Programmes,03/02/2011,YOUNG PERSON'S GUARANTEE,WWEG EMPLOYMENT PROGRAMMES,TNG LTD,2019369097,"189,575.00"
Department for Work and Pensions,Employment Programmes,03/02/2011,YOUNG PERSON'S GUARANTEE,WWEG EMPLOYMENT PROGRAMMES,TNG LTD,2019369097,"189,042.00"
Department for Work and Pensions,Housing Benefits,14/02/2011,Housing Benefit Admin,WWG Housing Benefit,BARNSLEY BOROUGH COUNCIL,2019484944,"188,968.00"
Department for Work and Pensions,Housing Benefits,14/02/2011,Housing Benefit Admin,WWG Housing Benefit,MILTON KEYNES BOROUGH COUNCIL,2019485144,"188,743.00"
Department for Work and Pensions,Housing Benefits,14/02/2011,Housing Benefit Admin,WWG Housing Benefit,LONDON BOROUGH OF KENSINGTON & CHELSEA,2019485117,"188,446.00"
Department for Work and Pensions,Employment Programmes,22/02/2011,EP GENERIC PROVIDER PAYMENTS,WWEG EMPLOYMENT PROGRAMMES,TNG LTD,2019611435,"188,444.61"
Department for Work and Pensions,Employment Programmes,08/02/2011,YOUNG PERSON'S GUARANTEE,WWEG EMPLOYMENT PROGRAMMES,SCOTTISH COUNCIL FOR VOLUNTARY ORGANISATIONS,2019392467,"188,400.00"
Department for Work and Pensions,Housing Benefits,14/02/2011,Housing Benefit Admin,WWG Housing Benefit,ROCHDALE BOROUGH COUNCIL,2019485193,"188,330.00"
Department for Work and Pensions,Employment Programmes,23/02/2011,YOUNG PERSON'S GUARANTEE,WWEG EMPLOYMENT PROGRAMMES,CHESHIRE WEST & CHESTER COUNCIL,2019625944,"187,800.00"
Department for Work and Pensions,Corporate,10/02/2011,STAFF COSTS,Corporate and Support Services,RIGHT CORECARE,2019475631,"187,754.33"
Department for Work and Pensions,Jobcentre Plus,18/02/2011,MEDICAL SERVICES,Jobcentre Plus,ATOS ORIGIN MEDICAL SERVICES,2019589515,"187,364.91"
Department for Work and Pensions,Housing Benefits,14/02/2011,Housing Benefit Admin,WWG Housing Benefit,DERBY CITY COUNCIL,2019485021,"186,935.00"
Department for Work and Pensions,Corporate,24/02/2011,NETWORK,Corporate IT ,BT GLOBAL SERVICES,2019691017,"185,911.20"
Department for Work and Pensions,Housing Benefits,14/02/2011,Housing Benefit Admin,WWG Housing Benefit,SWANSEA CITY COUNCIL,2019485255,"185,902.00"
Department for Work and Pensions,Jobcentre Plus,24/02/2011,EMPLOYMENT PROGRAMMES,Balance Sheet Payments,SHAW TRUST LTD,2019696428,"185,745.70"
Department for Work and Pensions,Employment Programmes,04/02/2011,YOUNG PERSON'S GUARANTEE,WWEG EMPLOYMENT PROGRAMMES,BIRMINGHAM CITY COUNCIL,2019371849,"184,600.00"
Department for Work and Pensions,Corporate,01/02/2011,Accomodation Costs,Group Finance,TELEREAL TRILLIUM,2019284750,"184,472.57"
Department for Work and Pensions,Employment Programmes,03/02/2011,YOUNG PERSON'S GUARANTEE,WWEG EMPLOYMENT PROGRAMMES,NORFOLK COUNTY COUNCIL,2019368029,"183,750.00"
Department for Work and Pensions,Jobcentre Plus,08/02/2011,APPS DEV,Jobcentre Plus,HP ENTERPRISE SERVICES UK LTD,2019387424,"183,718.48"
Department for Work and Pensions,Corporate,11/02/2011,COMPUTER SERVICES,Corporate IT ,VODAFONE LTD,2019483271,"183,555.62"
Department for Work and Pensions,Housing Benefits,14/02/2011,Housing Benefit Admin,WWG Housing Benefit,LONDON BOROUGH OF HARROW,2019485112,"183,286.00"
Department for Work and Pensions,Employment Programmes,08/02/2011,NDDP,WWEG EMPLOYMENT PROGRAMMES,SEETEC,2019392472,"183,204.69"
Department for Work and Pensions,Employment Programmes,04/02/2011,YOUNG PERSON'S GUARANTEE,WWEG EMPLOYMENT PROGRAMMES,THE SALVATION ARMY,2019375318,"183,175.00"
Department for Work and Pensions,Housing Benefits,14/02/2011,Housing Benefit Admin,WWG Housing Benefit,OLDHAM BOROUGH COUNCIL,2019485173,"183,161.00"
Department for Work and Pensions,Employment Programmes,14/02/2011,YOUNG PERSON'S GUARANTEE,WWEG EMPLOYMENT PROGRAMMES,LONDON EAST CONNEXIONS PARTNERSHIP LTD,2019488833,"183,092.26"
Department for Work and Pensions,Jobcentre Plus,24/02/2011,EMPLOYMENT PROGRAMMES,Balance Sheet Payments,SEETEC BUSINESS TECHNOLOGY CENTRE LTD,2019696420,"183,036.93"
Department for Work and Pensions,Housing Benefits,14/02/2011,Housing Benefit Admin,WWG Housing Benefit,LONDON BOROUGH OF BROMLEY,2019485105,"182,362.00"
Department for Work and Pensions,Jobcentre Plus,14/02/2011,APPS DEV,Jobcentre Plus,HP ENTERPRISE SERVICES UK LTD,2019487884,"182,032.22"
Department for Work and Pensions,Employment Programmes,08/02/2011,EMPLOYMENT INITIATIVES,WWEG EMPLOYMENT PROGRAMMES,PERTEMPS,2019391078,"181,596.00"
Department for Work and Pensions,Jobcentre Plus,24/02/2011,EMPLOYMENT PROGRAMMES,Balance Sheet Payments,TNG BUSINESS SUPPORT LTD.,2019696693,"181,462.21"
Department for Work and Pensions,Corporate,15/02/2011,COMPUTER SERVICES,Corporate IT ,HP ENTERPRISE SERVICES UK LTD,2019496556,"181,250.00"
Department for Work and Pensions,Housing Benefits,14/02/2011,Housing Benefit Admin,WWG Housing Benefit,LONDON BOROUGH OF BARKING & DAGENHAM,2019485101,"180,605.00"
Department for Work and Pensions,Housing Benefits,14/02/2011,Housing Benefit Admin,WWG Housing Benefit,KNOWSLEY BOROUGH COUNCIL,2019485093,"179,845.00"
Department for Work and Pensions,Jobcentre Plus,03/02/2011,EMPLOYMENT PROGRAMMES,Balance Sheet Payments,MBW TRAINING SERVICES,2019367874,"179,412.89"
Department for Work and Pensions,Jobcentre Plus,09/02/2011,JOBCENTRE PLUS PATHWAYS TO WORK,Jobcentre Plus,DORSET PRIMARY CARE TRUST,2019412452,"178,961.23"
Department for Work and Pensions,Employment Programmes,07/02/2011,JOBCENTRE PLUS PATHWAYS TO WORK,WWEG EMPLOYMENT PROGRAMMES,MANCHESTER PCT,2019380567,"178,641.94"
Department for Work and Pensions,Housing Benefits,14/02/2011,Housing Benefit Admin,WWG Housing Benefit,GATESHEAD BOROUGH COUNCIL,2019485059,"178,509.00"
Department for Work and Pensions,Corporate,16/02/2011,COMPUTER SERVICES,CHANGE MANAGEMENT DIRECTORATE,ATOS ORIGIN IT SERVICES UK LTD,2019510371,"178,379.98"
Department for Work and Pensions,Employment Programmes,11/02/2011,EP GENERIC PROVIDER PAYMENTS,WWEG EMPLOYMENT PROGRAMMES,JHP GROUP LTD,2019481432,"177,750.83"
Department for Work and Pensions,Jobcentre Plus,10/02/2011,EMPLOYMENT PROGRAMMES,Balance Sheet Payments,BUSINESS EMPLOYMENT SERVICES TRAINING LTD,2019472267,"176,469.49"
Department for Work and Pensions,Employment Programmes,15/02/2011,YOUNG PERSON'S GUARANTEE,WWEG EMPLOYMENT PROGRAMMES,WAKEFIELD METROPLITAN DISTRICT COUNCIL,2019502624,"175,964.88"
Department for Work and Pensions,Corporate,09/02/2011,CAPITAL GRANTS,Group Finance,UNIFY CREDIT UNION LIMITED,2019466847,"174,632.00"
Department for Work and Pensions,Corporate,03/02/2011,CAPITAL GRANTS,Group Finance,PLACES FOR PEOPLE NEIGHBOURHOODS,2019368248,"174,000.00"
Department for Work and Pensions,Employment Programmes,03/02/2011,YOUNG PERSON'S GUARANTEE,WWEG EMPLOYMENT PROGRAMMES,SARINA RUSSO JOB ACCESS GB PTY LTD,2019368865,"173,719.00"
Department for Work and Pensions,Employment Programmes,11/02/2011,EP GENERIC PROVIDER PAYMENTS,WWEG EMPLOYMENT PROGRAMMES,TNG LTD,2019483200,"173,489.33"
Department for Work and Pensions,Housing Benefits,14/02/2011,Housing Benefit Admin,WWG Housing Benefit,SHROPSHIRE COUNCIL,2019485216,"172,840.00"
Department for Work and Pensions,Employment Programmes,14/02/2011,JOBCENTRE PLUS PATHWAYS TO WORK,WWEG EMPLOYMENT PROGRAMMES,NHS GRAMPIAN,2019489337,"172,254.00"
Department for Work and Pensions,Jobcentre Plus,17/02/2011,EMPLOYMENT PROGRAMMES,Balance Sheet Payments,SHAW TRUST LTD,2019586369,"171,265.08"
Department for Work and Pensions,Housing Benefits,14/02/2011,Housing Benefit Admin,WWG Housing Benefit,LONDON BOROUGH OF REDBRIDGE,2019485122,"171,241.00"
Department for Work and Pensions,Employment Programmes,25/02/2011,YOUNG PERSON'S GUARANTEE,WWEG EMPLOYMENT PROGRAMMES,KENT COUNTY COUNCIL,2019702068,"171,000.00"
Department for Work and Pensions,Housing Benefits,14/02/2011,Housing Benefit Admin,WWG Housing Benefit,STOCKTON  BOROUGH COUNCIL,2019485247,"170,880.00"
Department for Work and Pensions,Employment Programmes,03/02/2011,YOUNG PERSON'S GUARANTEE,WWEG EMPLOYMENT PROGRAMMES,TNG LTD,2019369097,"170,802.00"
Department for Work and Pensions,Jobcentre Plus,03/02/2011,EMPLOYMENT PROGRAMMES,Balance Sheet Payments,YMCA TRAINING LTD,2019369270,"170,753.76"
Department for Work and Pensions,"Pension, Disability Carers Services",15/02/2011,CONTRACTED OUT OFFICE SERVICES,Pensions & Disability Carers Service ,CAPITA BUSINESS SERVICES LTD,2019493609,"170,453.33"
Department for Work and Pensions,Corporate,15/02/2011,ACCOMMODATION,Group Finance,TELEREAL TRILLIUM,2019502339,"168,842.31"
Department for Work and Pensions,Housing Benefits,14/02/2011,Housing Benefit Admin,WWG Housing Benefit,RENFREWSHIRE COUNCIL,2019485189,"168,749.00"
Department for Work and Pensions,Employment Programmes,22/02/2011,EP GENERIC PROVIDER PAYMENTS,WWEG EMPLOYMENT PROGRAMMES,MAXIMUS EMPLOYMENT UK LTD,2019608889,"168,738.70"
Department for Work and Pensions,Housing Benefits,14/02/2011,Housing Benefit Admin,WWG Housing Benefit,NORTHAMPTON BOROUGH COUNCIL,2019485167,"168,364.00"
Department for Work and Pensions,Housing Benefits,14/02/2011,Housing Benefit Admin,WWG Housing Benefit,BLACKPOOL BOROUGH COUNCIL,2019484954,"167,396.00"
Department for Work and Pensions,Corporate,18/02/2011,COMPUTER SERVICES,Corporate IT ,BT GLOBAL SERVICES,2019589624,"166,814.34"
Department for Work and Pensions,Employment Programmes,11/02/2011,JOBCENTRE PLUS PATHWAYS TO WORK,WWEG EMPLOYMENT PROGRAMMES,GATESHEAD PRIMARY CARE TRUST,2019480925,"166,209.00"
Department for Work and Pensions,Jobcentre Plus,15/02/2011,MEDICAL SERVICES,Jobcentre Plus,ATOS ORIGIN MEDICAL SERVICES,2019492699,"165,802.59"
Department for Work and Pensions,Housing Benefits,14/02/2011,Housing Benefit Admin,WWG Housing Benefit,SOUTH GLOUCESTERSHIRE COUNCIL,2019485223,"165,637.00"
Department for Work and Pensions,Housing Benefits,14/02/2011,Housing Benefit Admin,WWG Housing Benefit,CALDERDALE BOROUGH COUNCIL,2019484978,"165,327.00"
Department for Work and Pensions,Housing Benefits,14/02/2011,Housing Benefit Admin,WWG Housing Benefit,MIDDLESBROUGH COUNCIL,2019485142,"165,270.00"
Department for Work and Pensions,Employment Programmes,11/02/2011,EP GENERIC PROVIDER PAYMENTS,WWEG EMPLOYMENT PROGRAMMES,A4E LTD,2019478888,"165,094.28"
Department for Work and Pensions,Housing Benefits,14/02/2011,Housing Benefit Admin,WWG Housing Benefit,THANET DISTRICT COUNCIL,2019485266,"164,294.00"
Department for Work and Pensions,Housing Benefits,14/02/2011,Housing Benefit Admin,WWG Housing Benefit,PETERBOROUGH CITY COUNCIL,2019485179,"163,738.00"
Department for Work and Pensions,Housing Benefits,14/02/2011,Housing Benefit Admin,WWG Housing Benefit,DUNDEE CITY COUNCIL,2019485027,"163,220.00"
Department for Work and Pensions,Employment Programmes,17/02/2011,YOUNG PERSON'S GUARANTEE,WWEG EMPLOYMENT PROGRAMMES,KNOWSLEY METROPOLITAN BOROUGH COUNCIL,2019584654,"162,450.00"
Department for Work and Pensions,Corporate,24/02/2011,TOTAL IT & EQUIPMENT COSTS,Corporate and Support Services,MINISTRY OF DEFENCE,2002448,"162,286.13"
Department for Work and Pensions,Jobcentre Plus,28/02/2011,MEDICAL SERVICES,Jobcentre Plus,ATOS ORIGIN MEDICAL SERVICES,2019705602,"161,348.85"
Department for Work and Pensions,Housing Benefits,14/02/2011,Housing Benefit Admin,WWG Housing Benefit,NORTH TYNESIDE BOROUGH COUNCIL,2019485164,"160,371.00"
Department for Work and Pensions,Employment Programmes,14/02/2011,YOUNG PERSON'S GUARANTEE,WWEG EMPLOYMENT PROGRAMMES,LANCASHIRE COUNTY COUNCIL,2019488792,"160,200.00"
Department for Work and Pensions,Employment Programmes,11/02/2011,EP GENERIC PROVIDER PAYMENTS,WWEG EMPLOYMENT PROGRAMMES,INGEUS UK LTD,2019481097,"160,052.27"
Department for Work and Pensions,Corporate,07/02/2011,COMPUTER SERVICES,Corporate IT ,CABLE & WIRELESS PLC,2019377644,"159,951.25"
Department for Work and Pensions,Housing Benefits,14/02/2011,Housing Benefit Admin,WWG Housing Benefit,NORTH EAST LINCOLNSHIRE COUNCIL,2019485157,"159,711.00"
Department for Work and Pensions,Housing Benefits,14/02/2011,Housing Benefit Admin,WWG Housing Benefit,ST HELENS BOROUGH COUNCIL,2019485241,"159,652.00"
Department for Work and Pensions,Employment Programmes,03/02/2011,JOBCENTRE PLUS PATHWAYS TO WORK,WWEG EMPLOYMENT PROGRAMMES,NHS GREATER GLASGOW & CLYDE,2019368016,"158,358.00"
Department for Work and Pensions,Corporate,09/02/2011,STAFF COSTS,Corporate and Support Services,RIGHT CORECARE,2019454719,"157,994.61"
Department for Work and Pensions,Housing Benefits,14/02/2011,Housing Benefit Admin,WWG Housing Benefit,HIGHLAND COUNCIL,2019485080,"157,800.00"
Department for Work and Pensions,Jobcentre Plus,03/02/2011,EMPLOYMENT PROGRAMMES,Balance Sheet Payments,PROSPECTS SERVICES LTD 2,2019368261,"157,351.63"
Department for Work and Pensions,Employment Programmes,14/02/2011,YOUNG PERSON'S GUARANTEE,WWEG EMPLOYMENT PROGRAMMES,CHESHIRE WEST & CHESTER COUNCIL,2019486056,"157,050.00"
Department for Work and Pensions,Jobcentre Plus,03/02/2011,EMPLOYMENT PROGRAMMES,Balance Sheet Payments,TNG NETWORK LTD,2019369100,"156,663.73"
Department for Work and Pensions,Employment Programmes,08/02/2011,YOUNG PERSON'S GUARANTEE,WWEG EMPLOYMENT PROGRAMMES,LANCASHIRE COUNTY COUNCIL,2019389474,"156,450.00"
Department for Work and Pensions,Employment Programmes,15/02/2011,YOUNG PERSON'S GUARANTEE,WWEG EMPLOYMENT PROGRAMMES,THE SALVATION ARMY,2019502361,"155,478.94"
Department for Work and Pensions,Housing Benefits,14/02/2011,Housing Benefit Admin,WWG Housing Benefit,LUTON BOROUGH COUNCIL,2019485129,"155,469.00"
Department for Work and Pensions,Housing Benefits,14/02/2011,Housing Benefit Admin,WWG Housing Benefit,BOURNEMOUTH BOROUGH COUNCIL,2019484962,"154,527.00"
Department for Work and Pensions,Corporate,11/02/2011,PROFESSIONAL FEES,Corporate and Support Services,NATIONAL CENTRE FOR SOCIAL RESEARCH NCSR,2019482262,"154,376.50"
Department for Work and Pensions,Corporate,03/02/2011,COMPUTER SERVICES,Corporate IT ,VODAFONE LTD,2019369184,"154,222.69"
Department for Work and Pensions,Corporate,28/02/2011,OTHER GOODS AND SERVICES,Corporate and Support Services,HMRC,2002462,"153,819.75"
Department for Work and Pensions,Jobcentre Plus,17/02/2011,EMPLOYMENT PROGRAMMES,Balance Sheet Payments,SEETEC BUSINESS TECHNOLOGY CENTRE LTD,2019586356,"153,215.58"
Department for Work and Pensions,Employment Programmes,11/02/2011,EP GENERIC PROVIDER PAYMENTS,WWEG EMPLOYMENT PROGRAMMES,INGEUS UK LTD,2019481097,"152,161.27"
Department for Work and Pensions,Housing Benefits,14/02/2011,Housing Benefit Admin,WWG Housing Benefit,NORTH SOMERSET COUNCIL,2019485163,"151,415.00"
Department for Work and Pensions,Jobcentre Plus,10/02/2011,EMPLOYMENT PROGRAMMES,Balance Sheet Payments,VT SOUTHERN CAREERS LTD COMMUNITY OUTREACH SERVICE,2019476310,"151,317.00"
Department for Work and Pensions,Housing Benefits,14/02/2011,Housing Benefit Admin,WWG Housing Benefit,SOUTHEND ON SEA BOROUGH COUNCIL,2019485237,"151,050.00"
Department for Work and Pensions,Employment Programmes,15/02/2011,NDDP,WWEG EMPLOYMENT PROGRAMMES,REED,2019500942,"150,528.00"
Department for Work and Pensions,Employment Programmes,03/02/2011,YOUNG PERSON'S GUARANTEE,WWEG EMPLOYMENT PROGRAMMES,LONDON BOROUGH OF HACKNEY,2019367550,"150,450.00"
Department for Work and Pensions,Employment Programmes,11/02/2011,YOUNG PERSON'S GUARANTEE,WWEG EMPLOYMENT PROGRAMMES,3SC,2019478624,"150,300.00"
Department for Work and Pensions,Employment Programmes,16/02/2011,YOUNG PERSON'S GUARANTEE,WWEG EMPLOYMENT PROGRAMMES,DORSET COUNTY COUNCIL,2019522186,"150,300.00"
Department for Work and Pensions,Employment Programmes,08/02/2011,YOUNG PERSON'S GUARANTEE,WWEG EMPLOYMENT PROGRAMMES,BRISTOL CITY COUNCIL,2019384466,"150,000.00"
Department for Work and Pensions,Employment Programmes,03/02/2011,YOUNG PERSON'S GUARANTEE,WWEG EMPLOYMENT PROGRAMMES,THE INTRAINING GROUP,2019369065,"149,111.00"
Department for Work and Pensions,"Pension, Disability Carers Services",04/02/2011,Accomodation Costs,Pensions & Disability Carers Service ,TELEREAL TRILLIUM,2019375302,"148,752.43"
Department for Work and Pensions,Jobcentre Plus,03/02/2011,EMPLOYMENT PROGRAMMES,Balance Sheet Payments,CROSBY TRAINING,2019364725,"148,734.73"
Department for Work and Pensions,Employment Programmes,16/02/2011,YOUNG PERSON'S GUARANTEE,WWEG EMPLOYMENT PROGRAMMES,IXION HOLDINGS LTD,2019530696,"148,650.00"
Department for Work and Pensions,Housing Benefits,14/02/2011,Housing Benefit Admin,WWG Housing Benefit,BASILDON DISTRICT COUNCIL,2019484946,"148,283.00"
Department for Work and Pensions,Corporate,23/02/2011,PRINCES YOUTH TRUST,WWG SUMMARY,SURREY COUNTY COUNCIL,1004651,"147,789.00"
Department for Work and Pensions,Employment Programmes,03/02/2011,YOUNG PERSON'S GUARANTEE,WWEG EMPLOYMENT PROGRAMMES,SARINA RUSSO JOB ACCESS GB PTY LTD,2019368865,"147,311.00"
Department for Work and Pensions,Jobcentre Plus,03/02/2011,EMPLOYMENT PROGRAMMES,Balance Sheet Payments,COMMUNITY  LINKS,2019364706,"147,103.83"
Department for Work and Pensions,Housing Benefits,14/02/2011,Housing Benefit Admin,WWG Housing Benefit,TRAFFORD BOROUGH COUNCIL,2019485274,"146,887.00"
Department for Work and Pensions,Housing Benefits,14/02/2011,Housing Benefit Admin,WWG Housing Benefit,TORBAY  COUNCIL,2019485271,"146,185.00"
Department for Work and Pensions,Housing Benefits,14/02/2011,Housing Benefit Admin,WWG Housing Benefit,SWINDON BOROUGH COUNCIL,2019485256,"145,515.00"
Department for Work and Pensions,Employment Programmes,11/02/2011,EP GENERIC PROVIDER PAYMENTS,WWEG EMPLOYMENT PROGRAMMES,JHP GROUP LTD,2019481432,"144,528.00"
Department for Work and Pensions,Housing Benefits,14/02/2011,Housing Benefit Admin,WWG Housing Benefit,SOUTH TYNESIDE METROPOLITAN BOROUGH COUNCIL,2019485235,"144,443.00"
Department for Work and Pensions,Housing Benefits,14/02/2011,Housing Benefit Admin,WWG Housing Benefit,BOROUGH OF TELFORD  & WREKIN COUNCIL,2019484959,"143,989.00"
Department for Work and Pensions,Housing Benefits,14/02/2011,Housing Benefit Admin,WWG Housing Benefit,LONDON BOROUGH OF BEXLEY,2019485103,"143,580.00"
Department for Work and Pensions,Employment Programmes,10/02/2011,YOUNG PERSON'S GUARANTEE,WWEG EMPLOYMENT PROGRAMMES,3SC,2019471807,"142,050.00"
Department for Work and Pensions,Housing Benefits,14/02/2011,Housing Benefit Admin,WWG Housing Benefit,LONDON BOROUGH OF HAVERING,2019485113,"141,829.00"
Department for Work and Pensions,Jobcentre Plus,15/02/2011,TOTAL IT & EQUIPMENT COSTS,Jobcentre Plus,ATOS ORIGIN MEDICAL SERVICES,2019492699,"141,646.00"
Department for Work and Pensions,"Pension, Disability Carers Services",15/02/2011,ACCOMMODATION,Pensions & Disability Carers Service ,TELEREAL TRILLIUM,2019502339,"141,383.21"
Department for Work and Pensions,Housing Benefits,14/02/2011,Housing Benefit Admin,WWG Housing Benefit,BURY METROPOLITAN BOROUGH COUNCIL,2019484976,"141,220.00"
Department for Work and Pensions,Employment Programmes,02/02/2011,YOUNG PERSON'S GUARANTEE,WWEG EMPLOYMENT PROGRAMMES,WEST SUSSEX COUNTY COUNCIL,2019360705,"139,500.00"
Department for Work and Pensions,Employment Programmes,07/02/2011,YOUNG PERSON'S GUARANTEE,WWEG EMPLOYMENT PROGRAMMES,CITY & COUNTY OF SWANSEA,2019377675,"139,000.00"
Department for Work and Pensions,Housing Benefits,14/02/2011,Housing Benefit Admin,WWG Housing Benefit,CAERPHILLY COUNTY BOROUGH COUNCIL,2019484977,"138,881.00"
Department for Work and Pensions,Employment Programmes,18/02/2011,YOUNG PERSON'S GUARANTEE,WWEG EMPLOYMENT PROGRAMMES,HAMPSHIRE COUNTY COUNCIL,2019591692,"138,835.18"
Department for Work and Pensions,Housing Benefits,14/02/2011,Housing Benefit Admin,WWG Housing Benefit,ABERDEEN CITY COUNCIL,2019484932,"138,401.00"
Department for Work and Pensions,Housing Benefits,14/02/2011,Housing Benefit Admin,WWG Housing Benefit,LONDON BOROUGH OF SUTTON,2019485125,"137,857.00"
Department for Work and Pensions,Housing Benefits,14/02/2011,Housing Benefit Admin,WWG Housing Benefit,NORTH AYRSHIRE COUNCIL,2019485153,"137,720.00"
Department for Work and Pensions,Employment Programmes,03/02/2011,YOUNG PERSON'S GUARANTEE,WWEG EMPLOYMENT PROGRAMMES,SARINA RUSSO JOB ACCESS GB PTY LTD,2019368865,"136,778.00"
Department for Work and Pensions,European Social Fund,23/02/2011,MA ESF(D) LA NON-PREFUNDED EXPENDITURE,WWEG EUROPEAN SOCIAL FUND,SEFTON METROPOLITAN BOROUGH COUNCIL,5000000487,"135,899.00"
Department for Work and Pensions,Jobcentre Plus,03/02/2011,EMPLOYMENT PROGRAMMES,Balance Sheet Payments,WORKING LINKS EMPLOYMENT LTD,2019369254,"135,850.99"
Department for Work and Pensions,Corporate,09/02/2011,EU PROGRAMMES,WWG SUMMARY,UNIVERSITY OF MANCHESTER,601158,"135,504.00"
Department for Work and Pensions,Jobcentre Plus,03/02/2011,EMPLOYMENT PROGRAMMES,Balance Sheet Payments,TRIAGE CENTRAL LTD,2019369111,"134,974.54"
Department for Work and Pensions,Jobcentre Plus,17/02/2011,EMPLOYMENT PROGRAMMES,Balance Sheet Payments,REED IN PARTNERSHIP,2019585896,"134,249.31"
Department for Work and Pensions,Employment Programmes,04/02/2011,YOUNG PERSON'S GUARANTEE,WWEG EMPLOYMENT PROGRAMMES,GROUNDWORK WEST MIDLANDS,2019373484,"133,900.00"
Department for Work and Pensions,Housing Benefits,14/02/2011,Housing Benefit Admin,WWG Housing Benefit,REDCAR & CLEVELAND BOROUGH  COUNCIL,2019485187,"133,309.00"
Department for Work and Pensions,Corporate,11/02/2011,OTHER GOODS AND SERVICES,Corporate IT ,DLA PIPER UK,2019479515,"132,897.68"
Department for Work and Pensions,Jobcentre Plus,03/02/2011,EMPLOYMENT PROGRAMMES,Balance Sheet Payments,PERTEMPS EMPLOYMENT ALLIANCE,2019368241,"132,545.09"
Department for Work and Pensions,Housing Benefits,14/02/2011,Housing Benefit Admin,WWG Housing Benefit,NORWICH CITY COUNCIL,2019485169,"131,294.00"
Department for Work and Pensions,Employment Programmes,15/02/2011,FND,WWEG EMPLOYMENT PROGRAMMES,WELSH ASSEMBLY GOVERNMENT,2002434,"130,896.13"
Department for Work and Pensions,Corporate,14/02/2011,APPS DEV,CHANGE MANAGEMENT DIRECTORATE,HP ENTERPRISE SERVICES UK LTD,2019487883,"130,747.62"
Department for Work and Pensions,Housing Benefits,14/02/2011,Housing Benefit Admin,WWG Housing Benefit,LONDON BOROUGH OF MERTON,2019485120,"130,534.00"
Department for Work and Pensions,Corporate,23/02/2011,MISCELLANEOUS EXPENDITURE,EG SUMMARY,UNIVERSITY OF WESTMINSTER PSI,2019685327,"130,497.57"
Department for Work and Pensions,Jobcentre Plus,24/02/2011,EMPLOYMENT PROGRAMMES,Balance Sheet Payments,A4E WALES LTD,2019698866,"130,114.35"
Department for Work and Pensions,Housing Benefits,14/02/2011,Housing Benefit Admin,WWG Housing Benefit,TENDRING DISTRICT COUNCIL,2019485263,"130,075.00"
Department for Work and Pensions,Housing Benefits,14/02/2011,Housing Benefit Admin,WWG Housing Benefit,WEST LOTHIAN COUNCIL,2019485294,"129,196.00"
Department for Work and Pensions,Jobcentre Plus,10/02/2011,EMPLOYMENT PROGRAMMES,Balance Sheet Payments,PERTEMPS EMPLOYMENT ALLIANCE,2019475425,"128,897.06"
Department for Work and Pensions,Employment Programmes,04/02/2011,JOBCENTRE PLUS PATHWAYS TO WORK,WWEG EMPLOYMENT PROGRAMMES,HYWEL DDA NHS TRUST,2019373561,"128,673.00"
Department for Work and Pensions,Jobcentre Plus,17/02/2011,EMPLOYMENT PROGRAMMES,Balance Sheet Payments,A4E LTD,2019581492,"128,254.68"
Department for Work and Pensions,Housing Benefits,14/02/2011,Housing Benefit Admin,WWG Housing Benefit,CENTRAL BEDFORDSHIRE DISTRICT COUNCIL,2019484985,"128,079.00"
Department for Work and Pensions,Jobcentre Plus,22/02/2011,COMPUTER SERVICES,Jobcentre Plus,ATOS ORIGIN IT SERVICES UK LTD,2019602414,"127,734.62"
Department for Work and Pensions,Housing Benefits,14/02/2011,Housing Benefit Admin,WWG Housing Benefit,BLACKBURN BOROUGH COUNCIL,2019484953,"127,143.00"
Department for Work and Pensions,Corporate,17/02/2011,CAPITAL GRANTS,Group Finance,6 TOWNS CREDIT UNION LIMITED,2019581161,"127,000.00"
Department for Work and Pensions,Corporate,17/02/2011,AOS CONTRACTED OUT SERVICES,SHARED SERVICES,HMRC,2019583958,"126,025.15"
Department for Work and Pensions,Employment Programmes,23/02/2011,JSP ESF DEL P COSTS,WWEG EMPLOYMENT PROGRAMMES,SEETEC BUSINESS TECHNOLOGY CENTRE LTD,2019681740,"125,599.78"
Department for Work and Pensions,Corporate,03/02/2011,AOS CONTRACTED OUT SERVICES,SHARED SERVICES,HMRC,2019366617,"125,272.13"
Department for Work and Pensions,Housing Benefits,14/02/2011,Housing Benefit Admin,WWG Housing Benefit,CARMARTHENSHIRE COUNTY COUNCIL,2019484983,"124,993.00"
Department for Work and Pensions,Housing Benefits,14/02/2011,Housing Benefit Admin,WWG Housing Benefit,SOLIHULL METROPOLITAN BOROUGH COUNCIL,2019485218,"124,893.00"
Department for Work and Pensions,Corporate,23/02/2011,PRINCES YOUTH TRUST,WWG SUMMARY,LONDON BOROUGH OF NEWHAM,1004650,"124,600.00"
Department for Work and Pensions,Housing Benefits,14/02/2011,Housing Benefit Admin,WWG Housing Benefit,NORTH LINCOLNSHIRE COUNCIL,2019485161,"124,405.00"
Department for Work and Pensions,Corporate,24/02/2011,PRINCES YOUTH TRUST,WWG SUMMARY,BARNSLEY METROPOLITAN BOROUGH COUNCIL,1004656,"123,762.00"
Department for Work and Pensions,Jobcentre Plus,10/02/2011,EMPLOYMENT PROGRAMMES,Balance Sheet Payments,TWL TRAINING LTD,2019476246,"123,670.40"
Department for Work and Pensions,Employment Programmes,01/02/2011,YOUNG PERSON'S GUARANTEE,WWEG EMPLOYMENT PROGRAMMES,INVERCLYDE COUNCIL,2019279450,"123,600.00"
Department for Work and Pensions,Housing Benefits,14/02/2011,Housing Benefit Admin,WWG Housing Benefit,DUMFRIES & GALLOWAY COUNCIL,2019485026,"123,430.00"
Department for Work and Pensions,Corporate,18/02/2011,IS/IT,Corporate IT ,SPECIALIST COMPUTER CENTRES PLC,2019593679,"123,136.56"
Department for Work and Pensions,Jobcentre Plus,17/02/2011,EMPLOYMENT PROGRAMMES,Balance Sheet Payments,BUSINESS EMPLOYMENT SERVICES TRAINING LTD,2019581713,"123,054.49"
Department for Work and Pensions,Housing Benefits,14/02/2011,Housing Benefit Admin,WWG Housing Benefit,ISLE OF WIGHT COUNTY COUNCIL,2019485088,"123,038.00"
Department for Work and Pensions,Corporate,15/02/2011,COMPUTER SERVICES,Group Finance,DELOITTE & TOUCHE LLP,2019494337,"121,553.50"
Department for Work and Pensions,Jobcentre Plus,24/02/2011,EMPLOYMENT PROGRAMMES,Balance Sheet Payments,ROYAL BRITISH LEGION INDUSTRIES LTD,2019695910,"121,514.19"
Department for Work and Pensions,Employment Programmes,14/02/2011,EU PROGRAMMES,WWEG EMPLOYMENT PROGRAMMES,BUSINESS & ENTERPRISE NORTH EAST,2019485792,"121,206.00"
Department for Work and Pensions,Corporate,23/02/2011,EMPLOYMENT ZONES,WWG SUMMARY,BRITISH COUNCIL,2019620508,"120,591.00"
Department for Work and Pensions,Housing Benefits,14/02/2011,Housing Benefit Admin,WWG Housing Benefit,NEATH PORT TALBOT COUNTY BOROUGH COUNCIL,2019485147,"120,509.00"
Department for Work and Pensions,Corporate,16/02/2011,COMPUTER SERVICES,Corporate IT ,BT GLOBAL SERVICES,2019511758,"120,417.60"
Department for Work and Pensions,Employment Programmes,03/02/2011,YOUNG PERSON'S GUARANTEE,WWEG EMPLOYMENT PROGRAMMES,A4E LTD,2019364197,"120,280.00"
Department for Work and Pensions,Housing Benefits,14/02/2011,Housing Benefit Admin,WWG Housing Benefit,SLOUGH BOROUGH COUNCIL,2019485217,"120,272.00"
Department for Work and Pensions,Employment Programmes,09/02/2011,NDLP,WWEG EMPLOYMENT PROGRAMMES,WORKING LINKS,2019468733,"120,085.19"
Department for Work and Pensions,Employment Programmes,09/02/2011,YOUNG PERSON'S GUARANTEE,WWEG EMPLOYMENT PROGRAMMES,NORTH EAST LINCOLNSHIRE COUNCIL,2019448785,"119,963.16"
Department for Work and Pensions,Housing Benefits,14/02/2011,Housing Benefit Admin,WWG Housing Benefit,READING BOROUGH COUNCIL,2019485186,"119,744.00"
Department for Work and Pensions,Jobcentre Plus,03/02/2011,Accomodation Costs,Jobcentre Plus,TELEREAL TRILLIUM,2019369051,"118,793.21"
Department for Work and Pensions,Jobcentre Plus,17/02/2011,APPS DEV,Jobcentre Plus,HMRC,2019583958,"117,980.06"
Department for Work and Pensions,Housing Benefits,14/02/2011,Housing Benefit Admin,WWG Housing Benefit,BEDFORD BOROUGH COUNCIL,2019484950,"117,297.00"
Department for Work and Pensions,Housing Benefits,14/02/2011,Housing Benefit Admin,WWG Housing Benefit,FALKIRK DISTRICT COUNCIL,2019485051,"117,213.00"
Department for Work and Pensions,Jobcentre Plus,17/02/2011,COMPUTER SERVICES,Jobcentre Plus,ACCENTURE UK LTD,2019581501,"117,117.39"
Department for Work and Pensions,Jobcentre Plus,24/02/2011,EMPLOYMENT PROGRAMMES,Balance Sheet Payments,BUSINESS EMPLOYMENT SERVICES TRAINING LTD,2019691026,"117,056.72"
Department for Work and Pensions,Housing Benefits,14/02/2011,Housing Benefit Admin,WWG Housing Benefit,NEWPORT CITY COUNCIL,2019485152,"117,056.00"
Department for Work and Pensions,Jobcentre Plus,10/02/2011,EMPLOYMENT PROGRAMMES,Balance Sheet Payments,SKILLS TRAINING UK LTD,2019476042,"116,881.13"
Department for Work and Pensions,Employment Programmes,03/02/2011,YOUNG PERSON'S GUARANTEE,WWEG EMPLOYMENT PROGRAMMES,GROUNDWORK UK,2019366526,"116,201.00"
Department for Work and Pensions,Employment Programmes,03/02/2011,YOUNG PERSON'S GUARANTEE,WWEG EMPLOYMENT PROGRAMMES,NEWPORT CITY COUNCIL,2019371540,"116,100.00"
Department for Work and Pensions,Jobcentre Plus,10/02/2011,EMPLOYMENT PROGRAMMES,Balance Sheet Payments,TRIAGE CENTRAL LTD,2019476243,"116,057.28"
Department for Work and Pensions,Employment Programmes,15/02/2011,YOUNG PERSON'S GUARANTEE,WWEG EMPLOYMENT PROGRAMMES,BLACK COUNTRY ACADEMY,2019492948,"116,045.82"
Department for Work and Pensions,Employment Programmes,04/02/2011,YOUNG PERSON'S GUARANTEE,WWEG EMPLOYMENT PROGRAMMES,BARNSLEY METROPOLITAN BOROUGH COUNCIL,2019371839,"115,950.00"
Department for Work and Pensions,Employment Programmes,23/02/2011,JSP ESF DEL P COSTS,WWEG EMPLOYMENT PROGRAMMES,WORKING LINKS,2019687187,"115,926.74"
Department for Work and Pensions,Housing Benefits,14/02/2011,Housing Benefit Admin,WWG Housing Benefit,HALTON BOROUGH COUNCIL,2019485068,"115,761.00"
Department for Work and Pensions,Employment Programmes,24/02/2011,YOUNG PERSON'S GUARANTEE,WWEG EMPLOYMENT PROGRAMMES,LEEDS CITY COUNCIL,2019694686,"115,700.00"
Department for Work and Pensions,Employment Programmes,15/02/2011,YOUNG PERSON'S GUARANTEE,WWEG EMPLOYMENT PROGRAMMES,THE ROYAL SOCIETY OF WILDLIFE TRUSTS,2019502360,"115,500.00"
Department for Work and Pensions,Employment Programmes,14/02/2011,YOUNG PERSON'S GUARANTEE,WWEG EMPLOYMENT PROGRAMMES,STOKE ON TRENT CITY COUNCIL,2019490270,"115,342.08"
Department for Work and Pensions,Housing Benefits,14/02/2011,Housing Benefit Admin,WWG Housing Benefit,ABERDEENSHIRE COUNCIL,2019484933,"114,236.00"
Department for Work and Pensions,Employment Programmes,11/02/2011,EP GENERIC PROVIDER PAYMENTS,WWEG EMPLOYMENT PROGRAMMES,WORKING LINKS,2019483335,"114,123.67"
Department for Work and Pensions,Housing Benefits,14/02/2011,Housing Benefit Admin,WWG Housing Benefit,HASTINGS BOROUGH COUNCIL,2019485075,"113,573.00"
Department for Work and Pensions,Housing Benefits,14/02/2011,Housing Benefit Admin,WWG Housing Benefit,WARRINGTON BOROUGH COUNCIL,2019485281,"113,346.00"
Department for Work and Pensions,Housing Benefits,14/02/2011,Housing Benefit Admin,WWG Housing Benefit,THURROCK BOROUGH COUNCIL,2019485269,"112,753.00"
Department for Work and Pensions,Housing Benefits,14/02/2011,Housing Benefit Admin,WWG Housing Benefit,GLOUCESTER CITY COUNCIL,2019485061,"111,995.00"
Department for Work and Pensions,Employment Programmes,04/02/2011,YOUNG PERSON'S GUARANTEE,WWEG EMPLOYMENT PROGRAMMES,BRADFORD METROPOLITAN DISTRICT COUNCIL,2019371856,"111,800.00"
Department for Work and Pensions,Housing Benefits,14/02/2011,Housing Benefit Admin,WWG Housing Benefit,EAST AYRSHIRE COUNCIL FINANCE DEPARTMENT,2019485029,"111,448.00"
Department for Work and Pensions,Housing Benefits,14/02/2011,Housing Benefit Admin,WWG Housing Benefit,HARTLEPOOL BOROUGH COUNCIL,2019485074,"111,096.00"
Department for Work and Pensions,Employment Programmes,18/02/2011,NDDP,WWEG EMPLOYMENT PROGRAMMES,SENCIA LTD,2019593655,"111,073.16"
Department for Work and Pensions,Employment Programmes,04/02/2011,YOUNG PERSON'S GUARANTEE,WWEG EMPLOYMENT PROGRAMMES,SHEFFIELD CITY COUNCIL,2019375161,"110,500.00"
Department for Work and Pensions,Housing Benefits,14/02/2011,Housing Benefit Admin,WWG Housing Benefit,HEREFORDSHIRE COUNCIL,2019485077,"110,319.00"
Department for Work and Pensions,Housing Benefits,14/02/2011,Housing Benefit Admin,WWG Housing Benefit,EAST LINDSEY DISTRICT COUNCIL,2019485036,"110,221.00"
Department for Work and Pensions,Corporate,28/02/2011,ACCOMMODATION,Group Finance,TELEREAL TRILLIUM,2019711332,"109,507.38"
Department for Work and Pensions,Housing Benefits,14/02/2011,Housing Benefit Admin,WWG Housing Benefit,CITY OF YORK COUNCIL,2019485001,"109,314.00"
Department for Work and Pensions,Housing Benefits,14/02/2011,Housing Benefit Admin,WWG Housing Benefit,BRAINTREE DISTRICT COUNCIL,2019484965,"109,167.00"
Department for Work and Pensions,Housing Benefits,14/02/2011,Housing Benefit Admin,WWG Housing Benefit,BRIDGEND COUNTY BOROUGH COUNCIL,2019484968,"109,114.00"
Department for Work and Pensions,Corporate,28/02/2011,ACCOMMODATION,Group Finance,TELEREAL TRILLIUM,2019711332,"109,017.10"
Department for Work and Pensions,Corporate,18/02/2011,PRINCES YOUTH TRUST,WWG SUMMARY,ROYAL COLLEGE OF GENERAL PRACTITIONERS,2019593314,"108,739.00"
Department for Work and Pensions,Employment Programmes,23/02/2011,JSP ESF DEL P COSTS,WWEG EMPLOYMENT PROGRAMMES,ESG HOLDINGS LTD,2019634783,"108,435.16"
Department for Work and Pensions,Housing Benefits,14/02/2011,Housing Benefit Admin,WWG Housing Benefit,WEST DUNBARTONSHIRE COUNCIL,2019485291,"108,268.00"
Department for Work and Pensions,Corporate,28/02/2011,ACCOMMODATION,Group Finance,TELEREAL TRILLIUM,2019711332,"108,109.04"
Department for Work and Pensions,Jobcentre Plus,15/02/2011,APPS DEV,Jobcentre Plus,HP ENTERPRISE SERVICES UK LTD,2019496557,"107,794.27"
Department for Work and Pensions,Housing Benefits,14/02/2011,Housing Benefit Admin,WWG Housing Benefit,LONDON BOROUGH OF RICHMOND UPON THAMES,2019485123,"107,300.00"
Department for Work and Pensions,Corporate,01/02/2011,PROFESSIONAL FEES,WWG SUMMARY,SOCIAL POLICY RESEARCH UNIT,2019284445,"107,227.00"
Department for Work and Pensions,Jobcentre Plus,10/02/2011,EMPLOYMENT PROGRAMMES,Balance Sheet Payments,CAREERS DEVELOPMENT GROUP,2019472498,"107,070.22"
Department for Work and Pensions,Employment Programmes,02/02/2011,NDLP,WWEG EMPLOYMENT PROGRAMMES,WORKING LINKS,2019360740,"106,917.68"
Department for Work and Pensions,Corporate,14/02/2011,Accomodation Costs,Group Finance,TELEREAL TRILLIUM,2019490394,"106,705.54"
Department for Work and Pensions,Employment Programmes,04/02/2011,YOUNG PERSON'S GUARANTEE,WWEG EMPLOYMENT PROGRAMMES,NORFOLK COUNTY COUNCIL,2019374555,"106,500.00"
Department for Work and Pensions,Corporate,15/02/2011,COMPUTER SERVICES,Corporate IT ,HP ENTERPRISE SERVICES UK LTD,2019496556,"106,176.88"
Department for Work and Pensions,Employment Programmes,08/02/2011,YOUNG PERSON'S GUARANTEE,WWEG EMPLOYMENT PROGRAMMES,EAST AYRSHIRE COUNCIL,2019386777,"105,600.00"
Department for Work and Pensions,Corporate,25/02/2011,COMPUTER SERVICES,Corporate IT ,ATOS ORIGIN IT SERVICES UK LTD,2019699266,"105,555.88"
Department for Work and Pensions,Jobcentre Plus,10/02/2011,EMPLOYMENT PROGRAMMES,Balance Sheet Payments,BTCV ENTERPRISES LTD,2019472265,"105,267.36"
Department for Work and Pensions,Corporate,14/02/2011,CAPITAL GRANTS,Group Finance,HALTON CREDIT UNION LTD,2019487860,"105,000.00"
Department for Work and Pensions,Jobcentre Plus,24/02/2011,EMPLOYMENT PROGRAMMES,Balance Sheet Payments,REED IN PARTNERSHIP,2019695879,"104,660.13"
Department for Work and Pensions,Jobcentre Plus,03/02/2011,EMPLOYMENT PROGRAMMES,Balance Sheet Payments,SEETEC,2019368874,"104,615.43"
Department for Work and Pensions,Jobcentre Plus,17/02/2011,EMPLOYMENT PROGRAMMES,Balance Sheet Payments,SHAW TRUST LTD,2019586365,"104,380.88"
Department for Work and Pensions,Housing Benefits,14/02/2011,Housing Benefit Admin,WWG Housing Benefit,SCARBOROUGH BOROUGH COUNCIL,2019485207,"104,362.00"
Department for Work and Pensions,Employment Programmes,11/02/2011,YOUNG PERSON'S GUARANTEE,WWEG EMPLOYMENT PROGRAMMES,SCOTTISH PREMIER LEAGUE LTD,2019483012,"103,800.00"
Department for Work and Pensions,Housing Benefits,14/02/2011,Housing Benefit Admin,WWG Housing Benefit,IPSWICH BOROUGH COUNCIL,2019485086,"103,741.00"
Department for Work and Pensions,Employment Programmes,23/02/2011,JSP ESF DEL P COSTS,WWEG EMPLOYMENT PROGRAMMES,THE INTRAINING GROUP,2019685148,"103,282.16"
Department for Work and Pensions,Corporate,28/02/2011,ACCOMMODATION,Group Finance,TELEREAL TRILLIUM,2019711332,"103,262.22"
Department for Work and Pensions,Housing Benefits,14/02/2011,Housing Benefit Admin,WWG Housing Benefit,PRESTON BOROUGH COUNCIL,2019485184,"103,075.00"
Department for Work and Pensions,Jobcentre Plus,03/02/2011,EMPLOYMENT PROGRAMMES,Balance Sheet Payments,BTCV ENTERPRISES LTD,2019364392,"102,883.56"
Department for Work and Pensions,Housing Benefits,14/02/2011,Housing Benefit Admin,WWG Housing Benefit,BATH & NORTH EAST SOMERSET COUNCIL,2019484949,"102,809.00"
Department for Work and Pensions,Employment Programmes,08/02/2011,YOUNG PERSON'S GUARANTEE,WWEG EMPLOYMENT PROGRAMMES,THE FOOTBALL LEAGUE COMMUNITY LTD,2019392816,"102,750.00"
Department for Work and Pensions,Employment Programmes,03/02/2011,YOUNG PERSON'S GUARANTEE,WWEG EMPLOYMENT PROGRAMMES,TBG LEARNING LTD,2019369044,"102,667.00"
Department for Work and Pensions,Jobcentre Plus,03/02/2011,EMPLOYMENT PROGRAMMES,Balance Sheet Payments,SEETEC,2019368876,"102,258.06"
Department for Work and Pensions,Housing Benefits,14/02/2011,Housing Benefit Admin,WWG Housing Benefit,ARUN DISTRICT COUNCIL,2019484939,"102,168.00"
Department for Work and Pensions,Housing Benefits,14/02/2011,Housing Benefit Admin,WWG Housing Benefit,SWALE BOROUGH COUNCIL,2019485254,"101,716.00"
Department for Work and Pensions,Housing Benefits,14/02/2011,Housing Benefit Admin,WWG Housing Benefit,KINGS LYNN & WEST NORFOLK BOROUGH COUNCIL,2019485090,"101,560.00"
Department for Work and Pensions,Employment Programmes,22/02/2011,YOUNG PERSON'S GUARANTEE,WWEG EMPLOYMENT PROGRAMMES,RUSSELL COMMISSION IMPLEMENTATION BODY TA V,2019610188,"101,550.00"
Department for Work and Pensions,Employment Programmes,04/02/2011,NDDP,WWEG EMPLOYMENT PROGRAMMES,ACTION FOR EMPLOYMENTS,2019371754,"101,076.89"
Department for Work and Pensions,Corporate,15/02/2011,APPS DEV,Group Finance,HP ENTERPRISE SERVICES UK LTD,2019496557,"100,659.48"
Department for Work and Pensions,Corporate,16/02/2011,COMPUTER SERVICES,SHARED SERVICES,FUJITSU SERVICES LTD,601683,"100,494.00"
Department for Work and Pensions,Housing Benefits,14/02/2011,Housing Benefit Admin,WWG Housing Benefit,COLCHESTER BOROUGH COUNCIL,2019485003,"100,055.00"
Department for Work and Pensions,Jobcentre Plus,03/02/2011,EMPLOYMENT PROGRAMMES,Balance Sheet Payments,REMPLOY,2019368464,"99,383.53"
Department for Work and Pensions,Employment Programmes,23/02/2011,JSP ESF DEL P COSTS,WWEG EMPLOYMENT PROGRAMMES,SEETEC BUSINESS TECHNOLOGY CENTRE LTD,2019681740,"98,804.83"
Department for Work and Pensions,Employment Programmes,04/02/2011,YOUNG PERSON'S GUARANTEE,WWEG EMPLOYMENT PROGRAMMES,SWINDON BOROUGH COUNCIL,2019375207,"98,800.00"
Department for Work and Pensions,Corporate,22/02/2011,MARKETING,Corporate and Support Services,COI CENTRAL OFFICE OF INFORMATION,2019603306,"98,800.00"
Department for Work and Pensions,Jobcentre Plus,17/02/2011,EMPLOYMENT PROGRAMMES,Balance Sheet Payments,SHAW TRUST LTD,2019586368,"98,750.00"
Department for Work and Pensions,Employment Programmes,22/02/2011,YOUNG PERSON'S GUARANTEE,WWEG EMPLOYMENT PROGRAMMES,THE ROYAL SOCIETY OF WILDLIFE TRUSTS,2019611412,"98,250.00"
Department for Work and Pensions,Jobcentre Plus,03/02/2011,EMPLOYMENT PROGRAMMES,Balance Sheet Payments,THE WISE GROUP,2019369081,"97,098.49"
Department for Work and Pensions,Housing Benefits,14/02/2011,Housing Benefit Admin,WWG Housing Benefit,WAVENEY DISTRICT COUNCIL,2019485284,"97,072.00"
Department for Work and Pensions,Jobcentre Plus,22/02/2011,Accomodation Costs,Jobcentre Plus,TELEREAL TRILLIUM,2019611398,"97,012.45"
Department for Work and Pensions,Housing Benefits,14/02/2011,Housing Benefit Admin,WWG Housing Benefit,INVERCLYDE DISTRICT COUNCIL,2019485085,"96,959.00"
Department for Work and Pensions,Housing Benefits,14/02/2011,Housing Benefit Admin,WWG Housing Benefit,ROYAL BOROUGH OF KINGSTON UPON THAMES,2019485198,"96,273.00"
Department for Work and Pensions,Jobcentre Plus,17/02/2011,EMPLOYMENT PROGRAMMES,Balance Sheet Payments,WORKING LINKS,2019586787,"95,994.53"
Department for Work and Pensions,Housing Benefits,14/02/2011,Housing Benefit Admin,WWG Housing Benefit,SOUTH SOMERSET DISTRICT COUNCIL,2019485233,"95,932.00"
Department for Work and Pensions,"Pension, Disability Carers Services",08/02/2011,APPS DEV,Pensions & Disability Carers Service ,HP ENTERPRISE SERVICES UK LTD,2019387424,"95,701.92"
Department for Work and Pensions,Jobcentre Plus,17/02/2011,COMPUTER SERVICES,Jobcentre Plus,HMRC,2019583958,"95,646.95"
Department for Work and Pensions,Jobcentre Plus,10/02/2011,EMPLOYMENT PROGRAMMES,Balance Sheet Payments,REMPLOY,2019475619,"95,459.49"
Department for Work and Pensions,Housing Benefits,14/02/2011,Housing Benefit Admin,WWG Housing Benefit,FLINTSHIRE COUNTY COUNCIL,2019485055,"94,926.00"
Department for Work and Pensions,Employment Programmes,01/02/2011,YOUNG PERSON'S GUARANTEE,WWEG EMPLOYMENT PROGRAMMES,GROUNDWORK SOUTH WEST,2019279132,"94,500.00"
Department for Work and Pensions,Corporate,01/02/2011,COMPUTER SERVICES,Corporate IT ,CABLE & WIRELESS PLC,2019276337,"94,402.50"
Department for Work and Pensions,Housing Benefits,14/02/2011,Housing Benefit Admin,WWG Housing Benefit,GREAT YARMOUTH COUNCIL,2019485064,"94,191.00"
Department for Work and Pensions,Employment Programmes,18/02/2011,FND,WWEG EMPLOYMENT PROGRAMMES,SERCO LTD,2019593656,"93,987.00"
Department for Work and Pensions,Employment Programmes,10/02/2011,YOUNG PERSON'S GUARANTEE,WWEG EMPLOYMENT PROGRAMMES,SURREY COUNTY COUNCIL,2019476073,"93,900.00"
Department for Work and Pensions,Jobcentre Plus,24/02/2011,EMPLOYMENT PROGRAMMES,Balance Sheet Payments,REMPLOY,2019695883,"93,899.19"
Department for Work and Pensions,Housing Benefits,14/02/2011,Housing Benefit Admin,WWG Housing Benefit,BASINGSTOKE DISTRICT COUNCIL,2019484947,"93,841.00"
Department for Work and Pensions,Employment Programmes,16/02/2011,YOUNG PERSON'S GUARANTEE,WWEG EMPLOYMENT PROGRAMMES,GROUNDWORK SOUTH WEST,2019528300,"93,750.00"
Department for Work and Pensions,Employment Programmes,07/02/2011,YOUNG PERSON'S GUARANTEE,WWEG EMPLOYMENT PROGRAMMES,NORFOLK COUNTY COUNCIL,2019380725,"93,600.00"
Department for Work and Pensions,Housing Benefits,14/02/2011,Housing Benefit Admin,WWG Housing Benefit,BURNLEY BOROUGH COUNCIL,2019484975,"93,465.00"
Department for Work and Pensions,Housing Benefits,14/02/2011,Housing Benefit Admin,WWG Housing Benefit,HUNTINGDON DISTRICT COUNCIL,2019485083,"93,448.00"
Department for Work and Pensions,Employment Programmes,16/02/2011,YOUNG PERSON'S GUARANTEE,WWEG EMPLOYMENT PROGRAMMES,PETERBOROUGH CITY COUNCIL,2019560720,"92,700.00"
Department for Work and Pensions,Housing Benefits,14/02/2011,Housing Benefit Admin,WWG Housing Benefit,LANCASTER CITY COUNCIL,2019485094,"92,695.00"
Department for Work and Pensions,Jobcentre Plus,10/02/2011,EMPLOYMENT PROGRAMMES,Balance Sheet Payments,ROYAL BRITISH LEGION INDUSTRIES LTD,2019475645,"92,668.90"
Department for Work and Pensions,Housing Benefits,14/02/2011,Housing Benefit Admin,WWG Housing Benefit,PERTH & KINROSS COUNCIL,2019485178,"92,250.00"
Department for Work and Pensions,Jobcentre Plus,03/02/2011,EMPLOYMENT PROGRAMMES,Balance Sheet Payments,CLAVERHOUSE GROUP,2019364698,"92,019.70"
Department for Work and Pensions,Housing Benefits,14/02/2011,Housing Benefit Admin,WWG Housing Benefit,OXFORD CITY COUNCIL,2019485175,"92,017.00"
Department for Work and Pensions,Employment Programmes,23/02/2011,YOUNG PERSON'S GUARANTEE,WWEG EMPLOYMENT PROGRAMMES,NORTH EAST LINCOLNSHIRE COUNCIL,2019667297,"91,692.54"
Department for Work and Pensions,Jobcentre Plus,03/02/2011,EMPLOYMENT PROGRAMMES,Balance Sheet Payments,KENNEDY SCOTT LTD,2019367285,"91,518.47"
Department for Work and Pensions,Corporate,24/02/2011,COMPUTER SERVICES,CHANGE MANAGEMENT DIRECTORATE,ACCENTURE,2019690811,"91,304.75"
Department for Work and Pensions,Employment Programmes,01/02/2011,YOUNG PERSON'S GUARANTEE,WWEG EMPLOYMENT PROGRAMMES,BARNARDOS,2019275744,"91,200.00"
Department for Work and Pensions,Employment Programmes,17/02/2011,YOUNG PERSON'S GUARANTEE,WWEG EMPLOYMENT PROGRAMMES,INVERCLYDE COUNCIL,2019584027,"90,900.00"
Department for Work and Pensions,Jobcentre Plus,03/02/2011,EMPLOYMENT PROGRAMMES,Balance Sheet Payments,BOURNEMOUTH & POOLE COLLEGE,2019364375,"90,880.75"
Department for Work and Pensions,Employment Programmes,03/02/2011,YOUNG PERSON'S GUARANTEE,WWEG EMPLOYMENT PROGRAMMES,THANET DISTRICT COUNCIL,2019369055,"90,750.00"
Department for Work and Pensions,Housing Benefits,14/02/2011,Housing Benefit Admin,WWG Housing Benefit,DARLINGTON BOROUGH COUNCIL,2019485017,"90,659.00"
Department for Work and Pensions,Corporate,01/02/2011,EMPLOYMENT ZONES,WWG SUMMARY,BRITISH COUNCIL,2019275773,"90,591.00"
Department for Work and Pensions,Housing Benefits,14/02/2011,Housing Benefit Admin,WWG Housing Benefit,PENDLE BOROUGH COUNCIL,2019485177,"90,567.00"
Department for Work and Pensions,Housing Benefits,14/02/2011,Housing Benefit Admin,WWG Housing Benefit,EASTBOURNE BOROUGH COUNCIL,2019485042,"90,212.00"
Department for Work and Pensions,Housing Benefits,14/02/2011,Housing Benefit Admin,WWG Housing Benefit,NEW FOREST DISTRICT COUNCIL,2019485148,"89,980.00"
Department for Work and Pensions,Housing Benefits,14/02/2011,Housing Benefit Admin,WWG Housing Benefit,POOLE BOROUGH COUNCIL,2019485181,"89,656.00"
Department for Work and Pensions,"Pension, Disability Carers Services",08/02/2011,TELEPHONE AND POSTAGE,Pensions & Disability Carers Service ,ROYAL MAIL GROUP PLC,2019391583,"89,175.08"
Department for Work and Pensions,Housing Benefits,14/02/2011,Housing Benefit Admin,WWG Housing Benefit,NUNEATON BOROUGH COUNCIL,2019485171,"88,903.00"
Department for Work and Pensions,Corporate,16/02/2011,BANKING AND ENCASHMENT COSTS,Group Finance,CITIBANK GLOBAL CORPORATE BANKING,2019517215,"88,750.00"
Department for Work and Pensions,Employment Programmes,03/02/2011,YOUNG PERSON'S GUARANTEE,WWEG EMPLOYMENT PROGRAMMES,ACTION FOR CHILDREN,2019364210,"88,714.20"
Department for Work and Pensions,Housing Benefits,14/02/2011,Housing Benefit Admin,WWG Housing Benefit,SOUTH AYRSHIRE COUNCIL,2019485219,"88,629.00"
Department for Work and Pensions,Jobcentre Plus,28/02/2011,APPS DEV,Jobcentre Plus,HP ENTERPRISE SERVICES UK LTD,2019709129,"88,608.93"
Department for Work and Pensions,Corporate,24/02/2011,STAFF COSTS,Corporate and Support Services,FLETCHER CONSULTANCY,2019693255,"88,450.00"
Department for Work and Pensions,Employment Programmes,28/02/2011,YOUNG PERSON'S GUARANTEE,WWEG EMPLOYMENT PROGRAMMES,RESOURCE PLUS FUTURE JOB FUND,2019710788,"87,501.92"
Department for Work and Pensions,Jobcentre Plus,03/02/2011,EMPLOYMENT PROGRAMMES,Balance Sheet Payments,ARMSTRONG LEARNING LTD,2019364244,"87,378.64"
Department for Work and Pensions,Employment Programmes,07/02/2011,YOUNG PERSON'S GUARANTEE,WWEG EMPLOYMENT PROGRAMMES,CARDIFF CITY COUNCIL,2019383330,"87,100.00"
Department for Work and Pensions,Corporate,15/02/2011,TOTAL SUPPLIES & SERVICES,Group Finance,HMRC,2002430,"87,066.55"
Department for Work and Pensions,Housing Benefits,14/02/2011,Housing Benefit Admin,WWG Housing Benefit,CANTERBURY CITY COUNCIL,2019484981,"87,010.00"
Department for Work and Pensions,Housing Benefits,14/02/2011,Housing Benefit Admin,WWG Housing Benefit,ASHFIELD DISTRICT COUNCIL,2019484940,"86,990.00"
Department for Work and Pensions,Employment Programmes,16/02/2011,YOUNG PERSON'S GUARANTEE,WWEG EMPLOYMENT PROGRAMMES,STOKE ON TRENT CITY COUNCIL,2019572839,"86,700.00"
Department for Work and Pensions,Corporate,10/02/2011,IS/IT,CHANGE MANAGEMENT DIRECTORATE,COMPUTACENTER UK LTD,2019472544,"86,513.23"
Department for Work and Pensions,Housing Benefits,14/02/2011,Housing Benefit Admin,WWG Housing Benefit,WYCOMBE DISTRICT COUNCIL,2019485310,"86,428.00"
Department for Work and Pensions,Employment Programmes,01/02/2011,YOUNG PERSON'S GUARANTEE,WWEG EMPLOYMENT PROGRAMMES,FIFE COUNCIL,2019278826,"86,400.00"
Department for Work and Pensions,Employment Programmes,17/02/2011,YOUNG PERSON'S GUARANTEE,WWEG EMPLOYMENT PROGRAMMES,INSPIRE FUTURES LTD,2019584022,"86,333.00"
Department for Work and Pensions,Jobcentre Plus,01/02/2011,ACCOMMODATION,Jobcentre Plus,TRILLIUM PRIME LTD,2019284788,"86,124.68"
Department for Work and Pensions,Corporate,15/02/2011,APPS DEV,Group Finance,HP ENTERPRISE SERVICES UK LTD,2019496556,"86,065.48"
Department for Work and Pensions,Employment Programmes,07/02/2011,FND,WWEG EMPLOYMENT PROGRAMMES,SERCO LTD,2019381535,"86,022.00"
Department for Work and Pensions,Housing Benefits,14/02/2011,Housing Benefit Admin,WWG Housing Benefit,CHERWELL DISTRICT COUNCIL,2019484990,"85,571.00"
Department for Work and Pensions,Housing Benefits,14/02/2011,Housing Benefit Admin,WWG Housing Benefit,CHELMSFORD BOROUGH COUNCIL,2019484988,"85,486.00"
Department for Work and Pensions,Housing Benefits,14/02/2011,Housing Benefit Admin,WWG Housing Benefit,SCOTTISH BORDERS COUNCIL,2019485208,"85,328.00"
Department for Work and Pensions,Housing Benefits,14/02/2011,Housing Benefit Admin,WWG Housing Benefit,MAIDSTONE BOROUGH COUNCIL,2019485130,"85,164.00"
Department for Work and Pensions,Housing Benefits,14/02/2011,Housing Benefit Admin,WWG Housing Benefit,CHESTERFIELD BOROUGH COUNCIL,2019484993,"85,112.00"
Department for Work and Pensions,Employment Programmes,16/02/2011,YOUNG PERSON'S GUARANTEE,WWEG EMPLOYMENT PROGRAMMES,THE FOOTBALL LEAGUE COMMUNITY LTD,2019575920,"85,050.00"
Department for Work and Pensions,Housing Benefits,14/02/2011,Housing Benefit Admin,WWG Housing Benefit,MANSFIELD DISTRICT COUNCIL,2019485134,"84,753.00"
Department for Work and Pensions,Housing Benefits,14/02/2011,Housing Benefit Admin,WWG Housing Benefit,DACORUM BOROUGH COUNCIL,2019485016,"84,358.00"
Department for Work and Pensions,Housing Benefits,14/02/2011,Housing Benefit Admin,WWG Housing Benefit,TORFAEN BOROUGH COUNCIL,2019485272,"84,272.00"
Department for Work and Pensions,Employment Programmes,07/02/2011,WORKSTEP,WWEG EMPLOYMENT PROGRAMMES,MAXIMUS EMPLOYMENT & TRAINING LTD,2019380573,"84,249.95"
Department for Work and Pensions,Corporate,10/02/2011,TEMPORARY (TEMP) STAFF COSTS,Corporate IT ,CAPITA RESOURCING LIMITED,2019472493,"84,213.16"
Department for Work and Pensions,Employment Programmes,08/02/2011,YOUNG PERSON'S GUARANTEE,WWEG EMPLOYMENT PROGRAMMES,WEST DUNBARTONSHIRE COUNCIL,2019393094,"84,175.02"
Department for Work and Pensions,Housing Benefits,14/02/2011,Housing Benefit Admin,WWG Housing Benefit,WEST BERKSHIRE COUNCIL,2019485288,"83,927.00"
Department for Work and Pensions,Housing Benefits,14/02/2011,Housing Benefit Admin,WWG Housing Benefit,PEMBROKESHIRE COUNTY COUNCIL,2019485176,"83,843.00"
Department for Work and Pensions,Housing Benefits,14/02/2011,Housing Benefit Admin,WWG Housing Benefit,CRAWLEY BOROUGH COUNCIL,2019485014,"83,771.00"
Department for Work and Pensions,Housing Benefits,14/02/2011,Housing Benefit Admin,WWG Housing Benefit,SHEPWAY DISTRICT COUNCIL,2019485214,"83,516.00"
Department for Work and Pensions,Employment Programmes,07/02/2011,YOUNG PERSON'S GUARANTEE,WWEG EMPLOYMENT PROGRAMMES,SOUTH LANARKSHIRE COUNCIL,2019381580,"83,200.00"
Department for Work and Pensions,Jobcentre Plus,03/02/2011,EMPLOYMENT PROGRAMMES,Balance Sheet Payments,SCOUT ENTERPRISES WESTERN LTD,2019368870,"83,117.02"
Department for Work and Pensions,Housing Benefits,14/02/2011,Housing Benefit Admin,WWG Housing Benefit,AYLESBURY VALE DISTRICT COUNCIL,2019484942,"82,876.00"
Department for Work and Pensions,Jobcentre Plus,03/02/2011,EMPLOYMENT PROGRAMMES,Balance Sheet Payments,SCVO,2019368871,"82,850.64"
Department for Work and Pensions,Housing Benefits,14/02/2011,Housing Benefit Admin,WWG Housing Benefit,DOVER DISTRICT COUNCIL,2019485024,"82,732.00"
Department for Work and Pensions,Housing Benefits,14/02/2011,Housing Benefit Admin,WWG Housing Benefit,GEDLING BOROUGH COUNCIL,2019485060,"82,667.00"
Department for Work and Pensions,Employment Programmes,04/02/2011,YOUNG PERSON'S GUARANTEE,WWEG EMPLOYMENT PROGRAMMES,NOTTINGHAM CITY COUNCIL,2019374560,"82,650.00"
Department for Work and Pensions,Employment Programmes,11/02/2011,WORKSTEP,WWEG EMPLOYMENT PROGRAMMES,CAPABILITY SCOTLAND,2019479257,"82,587.05"
Department for Work and Pensions,Housing Benefits,14/02/2011,Housing Benefit Admin,WWG Housing Benefit,GUILDFORD BOROUGH COUNCIL,2019485065,"82,366.00"
Department for Work and Pensions,Employment Programmes,28/02/2011,WORKSTEP,WWEG EMPLOYMENT PROGRAMMES,SHAW TRUST LTD,2019711172,"82,000.00"
Department for Work and Pensions,Housing Benefits,14/02/2011,Housing Benefit Admin,WWG Housing Benefit,WREXHAM COUNTY BOROUGH COUNCIL,2019485308,"81,833.00"
Department for Work and Pensions,European Social Fund,18/02/2011,ESF NON-PREFUNDED EXPENDITURE,WWEG EUROPEAN SOCIAL FUND,MERSEYSIDE EXPANDING HORIZONS LTD,5000000482,"81,823.00"
Department for Work and Pensions,Corporate,28/02/2011,COMPUTER SERVICES,CHANGE MANAGEMENT DIRECTORATE,ACCENTURE UK LTD,2019705570,"81,748.39"
Department for Work and Pensions,Corporate,03/02/2011,TEMPORARY (TEMP) STAFF COSTS,Corporate IT ,CAPITA RESOURCING LIMITED,2019364658,"81,724.27"
Department for Work and Pensions,Housing Benefits,14/02/2011,Housing Benefit Admin,WWG Housing Benefit,CONWY COUNTY BOROUGH COUNCIL,2019485005,"81,561.00"
Department for Work and Pensions,Employment Programmes,22/02/2011,JOBCENTRE PLUS PATHWAYS TO WORK,WWEG EMPLOYMENT PROGRAMMES,AYRSHIRE & ARRAN HEALTH BOARD,2019602417,"81,395.00"
Department for Work and Pensions,Housing Benefits,14/02/2011,Housing Benefit Admin,WWG Housing Benefit,WYRE FOREST DISTRICT COUNCIL,2019485312,"81,314.00"
Department for Work and Pensions,Housing Benefits,14/02/2011,Housing Benefit Admin,WWG Housing Benefit,TEIGNBRIDGE DISTRICT COUNCIL,2019485261,"81,249.00"
Department for Work and Pensions,Housing Benefits,14/02/2011,Housing Benefit Admin,WWG Housing Benefit,BRECKLAND DISTRICT COUNCIL,2019484966,"81,244.00"
Department for Work and Pensions,Housing Benefits,14/02/2011,Housing Benefit Admin,WWG Housing Benefit,CHARNWOOD BOROUGH COUNCIL,2019484987,"80,708.00"
Department for Work and Pensions,"Pension, Disability Carers Services",04/02/2011,PROFESSIONAL FEES,Pensions & Disability Carers Service ,MORI SOCIAL RESEARCH INSTITUTE,2019374447,"80,275.00"
Department for Work and Pensions,Housing Benefits,14/02/2011,Housing Benefit Admin,WWG Housing Benefit,HAVANT BOROUGH COUNCIL,2019485076,"80,018.00"
Department for Work and Pensions,Corporate,22/02/2011,PRINCES YOUTH TRUST,WWG SUMMARY,NATCEN,2019609220,"80,000.00"
Department for Work and Pensions,Jobcentre Plus,17/02/2011,EMPLOYMENT PROGRAMMES,Balance Sheet Payments,TWL TRAINING LTD,2019586636,"79,824.38"
Department for Work and Pensions,Housing Benefits,14/02/2011,Housing Benefit Admin,WWG Housing Benefit,NEWCASTLE UNDER LYME BOROUGH COUNCIL,2019485151,"79,579.00"
Department for Work and Pensions,Employment Programmes,23/02/2011,ACCESS TO WORK,WWEG EMPLOYMENT PROGRAMMES,CAPITA,2019625878,"79,570.76"
Department for Work and Pensions,Corporate,28/02/2011,ACCOMMODATION,Group Finance,TELEREAL TRILLIUM,2019711332,"79,493.82"
Department for Work and Pensions,Jobcentre Plus,10/02/2011,EMPLOYMENT PROGRAMMES,Balance Sheet Payments,NORTH WESSEX TRAINING,2019475219,"79,465.00"
Department for Work and Pensions,Housing Benefits,14/02/2011,Housing Benefit Admin,WWG Housing Benefit,VALE OF GLAMORGAN COUNCIL,2019485277,"79,455.00"
Department for Work and Pensions,Employment Programmes,07/02/2011,YOUNG PERSON'S GUARANTEE,WWEG EMPLOYMENT PROGRAMMES,KNOWSLEY METROPOLITAN BOROUGH COUNCIL,2019380040,"79,300.00"
Department for Work and Pensions,Housing Benefits,14/02/2011,Housing Benefit Admin,WWG Housing Benefit,NORTH HERTFORDSHIRE DISTRICT COUNCIL,2019485158,"79,174.00"
Department for Work and Pensions,Jobcentre Plus,17/02/2011,EMPLOYMENT PROGRAMMES,Balance Sheet Payments,WORKING LINKS EMPLOYMENT LIMITED,2019586795,"79,070.88"
Department for Work and Pensions,Housing Benefits,14/02/2011,Housing Benefit Admin,WWG Housing Benefit,HARROGATE BOROUGH COUNCIL,2019485072,"78,900.00"
Department for Work and Pensions,Housing Benefits,14/02/2011,Housing Benefit Admin,WWG Housing Benefit,AMBER VALLEY BOROUGH COUNCIL,2019484936,"78,207.00"
Department for Work and Pensions,Housing Benefits,14/02/2011,Housing Benefit Admin,WWG Housing Benefit,GWYNEDD COUNCIL,2019485066,"78,115.00"
Department for Work and Pensions,Housing Benefits,14/02/2011,Housing Benefit Admin,WWG Housing Benefit,HYNDBURN BOROUGH COUNCIL,2019485084,"78,005.00"
Department for Work and Pensions,Housing Benefits,14/02/2011,Housing Benefit Admin,WWG Housing Benefit,CHELTENHAM BOROUGH COUNCIL,2019484989,"77,454.00"
Department for Work and Pensions,Employment Programmes,15/02/2011,YOUNG PERSON'S GUARANTEE,WWEG EMPLOYMENT PROGRAMMES,HARTLEPOOL BOROUGH COUNCIL,2019496538,"77,250.00"
Department for Work and Pensions,European Social Fund,01/02/2011,ESF NON-PREFUNDED EXPENDITURE,WWEG EUROPEAN SOCIAL FUND,WORKERS EDUCATIONAL ASSOCIATION EAST MIDLANDS REGION,5000000463,"76,828.00"
Department for Work and Pensions,Employment Programmes,16/02/2011,FND,WWEG EMPLOYMENT PROGRAMMES,WORKING LINKS,2019577984,"76,725.00"
Department for Work and Pensions,Housing Benefits,14/02/2011,Housing Benefit Admin,WWG Housing Benefit,FENLAND DISTRICT COUNCIL,2019485053,"76,681.00"
Department for Work and Pensions,Housing Benefits,14/02/2011,Housing Benefit Admin,WWG Housing Benefit,EAST STAFFORDSHIRE DISTRICT COUNCIL,2019485041,"76,561.00"
Department for Work and Pensions,Housing Benefits,14/02/2011,Housing Benefit Admin,WWG Housing Benefit,WYRE BOROUGH COUNCIL,2019485311,"76,506.00"
Department for Work and Pensions,Employment Programmes,23/02/2011,FND,WWEG EMPLOYMENT PROGRAMMES,SERCO LTD,2019681743,"76,464.00"
Department for Work and Pensions,Jobcentre Plus,03/02/2011,EMPLOYMENT PROGRAMMES,Balance Sheet Payments,TNG LTD,2019369096,"76,408.89"
Department for Work and Pensions,Housing Benefits,14/02/2011,Housing Benefit Admin,WWG Housing Benefit,HARLOW DISTRICT COUNCIL,2019485071,"76,367.00"
Department for Work and Pensions,Housing Benefits,14/02/2011,Housing Benefit Admin,WWG Housing Benefit,BASSETLAW DISTRICT COUNCIL,2019484948,"76,153.00"
Department for Work and Pensions,Housing Benefits,14/02/2011,Housing Benefit Admin,WWG Housing Benefit,EREWASH BOROUGH COUNCIL,2019485049,"75,994.00"
Department for Work and Pensions,Employment Programmes,18/02/2011,EU PROGRAMMES,WWEG EMPLOYMENT PROGRAMMES,COMMISSION FOR THE NEW ECONOMY,2019589867,"75,779.00"
Department for Work and Pensions,Housing Benefits,14/02/2011,Housing Benefit Admin,WWG Housing Benefit,LINCOLN CITY COUNCIL,2019485099,"75,622.00"
Department for Work and Pensions,Corporate,01/02/2011,TEMPORARY (TEMP) STAFF COSTS,Group Finance,WALES CO OPERATIVE CENTRE LTD,2019286199,"75,282.95"
Department for Work and Pensions,Jobcentre Plus,03/02/2011,EMPLOYMENT PROGRAMMES,Balance Sheet Payments,INBIZ LTD,2019366670,"75,127.74"
Department for Work and Pensions,Corporate,28/02/2011,CAPITAL GRANTS,Group Finance,EREWASH CREDIT UNION LIMITED,2019708835,"75,000.00"
Department for Work and Pensions,Housing Benefits,14/02/2011,Housing Benefit Admin,WWG Housing Benefit,WORTHING BOROUGH COUNCIL,2019485307,"74,846.00"
Department for Work and Pensions,Housing Benefits,14/02/2011,Housing Benefit Admin,WWG Housing Benefit,EXETER CITY COUNCIL,2019485050,"74,806.00"
Department for Work and Pensions,Employment Programmes,14/02/2011,YOUNG PERSON'S GUARANTEE,WWEG EMPLOYMENT PROGRAMMES,WEST BERKSHIRE TRAINING CONSORTIUM,2019490578,"74,700.00"
Department for Work and Pensions,Corporate,25/02/2011,TEMPORARY (TEMP) STAFF COSTS,Corporate IT ,CAPITA RESOURCING LIMITED,2019699610,"74,650.78"
Department for Work and Pensions,"Pension, Disability Carers Services",17/02/2011,AOS CONTRACTED OUT SERVICES,Pensions & Disability Carers Service ,XEROX UK LIMITED,2019586800,"74,552.68"
Department for Work and Pensions,Housing Benefits,14/02/2011,Housing Benefit Admin,WWG Housing Benefit,ANGUS COUNCIL,2019484937,"74,533.00"
Department for Work and Pensions,Corporate,21/02/2011,COMPUTER SERVICES,Corporate IT ,ACCENTURE,2019595597,"74,085.00"
Department for Work and Pensions,Jobcentre Plus,23/02/2011,GENERIC TOWER,Jobcentre Plus,STERIA,2019682057,"74,035.34"
Department for Work and Pensions,Employment Programmes,11/02/2011,EP GENERIC PROVIDER PAYMENTS,WWEG EMPLOYMENT PROGRAMMES,REED IN PARTNERSHIP,2019482640,"73,902.92"
Department for Work and Pensions,Housing Benefits,14/02/2011,Housing Benefit Admin,WWG Housing Benefit,SOUTH KESTEVEN DISTRICT COUNCIL,2019485226,"73,880.00"
Department for Work and Pensions,Corporate,09/02/2011,EMPLOYMENT ZONES,Group Finance,LONDON COMMUNITY CREDIT UNION,2019440088,"73,643.00"
Department for Work and Pensions,Housing Benefits,14/02/2011,Housing Benefit Admin,WWG Housing Benefit,POWYS COUNTY COUNCIL,2019485183,"73,529.00"
Department for Work and Pensions,Housing Benefits,14/02/2011,Housing Benefit Admin,WWG Housing Benefit,SEDGEMOOR DISTRICT COUNCIL,2019485209,"73,043.00"
Department for Work and Pensions,Housing Benefits,14/02/2011,Housing Benefit Admin,WWG Housing Benefit,WARWICK DISTRICT COUNCIL,2019485282,"72,993.00"
Department for Work and Pensions,Corporate,28/02/2011,ACCOMMODATION,Group Finance,TELEREAL TRILLIUM,2019711332,"72,889.16"
Department for Work and Pensions,Housing Benefits,14/02/2011,Housing Benefit Admin,WWG Housing Benefit,TAUNTON DEANE BOROUGH COUNCIL,2019485260,"72,812.00"
Department for Work and Pensions,Housing Benefits,14/02/2011,Housing Benefit Admin,WWG Housing Benefit,WEST LANCASHIRE DISTRICT COUNCIL,2019485292,"72,811.00"
Department for Work and Pensions,Employment Programmes,03/02/2011,YOUNG PERSON'S GUARANTEE,WWEG EMPLOYMENT PROGRAMMES,PROSPECT SERVICES LTD,2019368260,"72,790.00"
Department for Work and Pensions,Employment Programmes,28/02/2011,YOUNG PERSON'S GUARANTEE,WWEG EMPLOYMENT PROGRAMMES,ADCRIS CIC,2019705576,"72,406.53"
Department for Work and Pensions,Corporate,03/02/2011,TEMPORARY (TEMP) STAFF COSTS,Corporate IT ,CAPITA RESOURCING LIMITED,2019364658,"72,266.06"
Department for Work and Pensions,Corporate,09/02/2011,IS/IT,Corporate IT ,COMPUTACENTER UK LTD,2019407682,"72,094.00"
Department for Work and Pensions,Corporate,16/02/2011,MANAGEMENT CONSULTANCY,Corporate and Support Services,COI CENTRAL OFFICE OF INFO,2019517369,"72,024.00"
Department for Work and Pensions,Employment Programmes,15/02/2011,YOUNG PERSON'S GUARANTEE,WWEG EMPLOYMENT PROGRAMMES,COMMUNITY ENTERPRISE DERBY CIC,2019493683,"72,000.00"
Department for Work and Pensions,Housing Benefits,14/02/2011,Housing Benefit Admin,WWG Housing Benefit,CAMBRIDGE CITY COUNCIL,2019484979,"71,908.00"
Department for Work and Pensions,Employment Programmes,09/02/2011,YOUNG PERSON'S GUARANTEE,WWEG EMPLOYMENT PROGRAMMES,RESOURCE PLUS FUTURE JOB FUND,2019454704,"71,871.36"
Department for Work and Pensions,Jobcentre Plus,17/02/2011,EMPLOYMENT PROGRAMMES,Balance Sheet Payments,TNG LTD,2019586612,"71,801.60"
Department for Work and Pensions,Housing Benefits,14/02/2011,Housing Benefit Admin,WWG Housing Benefit,GRAVESHAM BOROUGH COUNCIL,2019485063,"71,733.00"
Department for Work and Pensions,Employment Programmes,11/02/2011,FND,WWEG EMPLOYMENT PROGRAMMES,SERCO LTD,2019483024,"71,685.00"
Department for Work and Pensions,Housing Benefits,14/02/2011,Housing Benefit Admin,WWG Housing Benefit,BROXTOWE BOROUGH COUNCIL,2019484974,"71,621.00"
Department for Work and Pensions,Housing Benefits,14/02/2011,Housing Benefit Admin,WWG Housing Benefit,CANNOCK CHASE DISTRICT COUNCIL,2019484980,"71,539.00"
Department for Work and Pensions,Housing Benefits,14/02/2011,Housing Benefit Admin,WWG Housing Benefit,HERTSMERE BOROUGH COUNCIL,2019485078,"71,022.00"
Department for Work and Pensions,Housing Benefits,14/02/2011,Housing Benefit Admin,WWG Housing Benefit,DENBIGHSHIRE COUNTY COUNCIL,2019485020,"70,973.00"
Department for Work and Pensions,Employment Programmes,16/02/2011,YOUNG PERSON'S GUARANTEE,WWEG EMPLOYMENT PROGRAMMES,LONDON BOROUGH OF HARINGEY,2019549288,"70,950.00"
Department for Work and Pensions,Employment Programmes,01/02/2011,YOUNG PERSON'S GUARANTEE,WWEG EMPLOYMENT PROGRAMMES,SOCIAL ENTERPRISE LONDON,2019284444,"70,350.00"
Department for Work and Pensions,Jobcentre Plus,11/02/2011,Accomodation Costs,Jobcentre Plus,TELEREAL TRILLIUM,2019483173,"70,272.81"
Department for Work and Pensions,Corporate,21/02/2011,PUBLICITY,WWG SUMMARY,COI COMMUNICATIONS,2019595973,"70,199.75"
Department for Work and Pensions,Employment Programmes,23/02/2011,JSP ESF DEL P COSTS,WWEG EMPLOYMENT PROGRAMMES,REED IN PARTNERSHIP,2019673260,"70,133.66"
Department for Work and Pensions,Employment Programmes,28/02/2011,FND,WWEG EMPLOYMENT PROGRAMMES,SERCO LTD,2019711169,"70,092.00"
Department for Work and Pensions,Corporate,09/02/2011,OTHER GOODS AND SERVICES,Group Finance,DLA PIPER UK,2019412399,"69,797.63"
Department for Work and Pensions,Corporate,16/02/2011,COMPUTER SERVICES,Corporate IT ,BT GLOBAL SERVICES,2019511758,"69,610.00"
Department for Work and Pensions,Jobcentre Plus,03/02/2011,EMPLOYMENT PROGRAMMES,Balance Sheet Payments,TNG BUSINESS SUPPORT LTD,2019369093,"69,487.84"
Department for Work and Pensions,Employment Programmes,07/02/2011,FND,WWEG EMPLOYMENT PROGRAMMES,SERCO LTD,2019381535,"69,413.00"
Department for Work and Pensions,Housing Benefits,14/02/2011,Housing Benefit Admin,WWG Housing Benefit,WELWYN HATFIELD DISTRICT COUNCIL,2019485287,"69,302.00"
Department for Work and Pensions,Jobcentre Plus,17/02/2011,EMPLOYMENT PROGRAMMES,Balance Sheet Payments,TOMORROWS PEOPLE LTD,2019586619,"69,288.69"
Department for Work and Pensions,Corporate,16/02/2011,IT EQUIPMENT CAPITAL,Corporate IT ,BT GLOBAL SERVICES,2019511758,"68,926.80"
Department for Work and Pensions,Corporate,03/02/2011,TEMPORARY (TEMP) STAFF COSTS,Group Finance,CAPITA RESOURCING LIMITED,2019364658,"68,909.51"
Department for Work and Pensions,Housing Benefits,14/02/2011,Housing Benefit Admin,WWG Housing Benefit,REIGATE & BANSTEAD BOROUGH COUNCIL,2019485188,"68,821.00"
Department for Work and Pensions,Jobcentre Plus,16/02/2011,NETWORK,Jobcentre Plus,BT GLOBAL SERVICES,2019511758,"68,558.30"
Department for Work and Pensions,Employment Programmes,22/02/2011,YOUNG PERSON'S GUARANTEE,WWEG EMPLOYMENT PROGRAMMES,CREATIVE & CULTURAL SKILLS,2019603320,"68,400.00"
Department for Work and Pensions,Housing Benefits,14/02/2011,Housing Benefit Admin,WWG Housing Benefit,BLAENAU GWENT COUNTY BOROUGH COUNCIL,2019484955,"68,398.00"
Department for Work and Pensions,Employment Programmes,17/02/2011,FND,WWEG EMPLOYMENT PROGRAMMES,WORKING LINKS,2019586792,"68,355.00"
Department for Work and Pensions,Housing Benefits,14/02/2011,Housing Benefit Admin,WWG Housing Benefit,ARGYLL & BUTE COUNCIL,2019484938,"68,314.00"
Department for Work and Pensions,Housing Benefits,14/02/2011,Housing Benefit Admin,WWG Housing Benefit,NORTH DEVON DISTRICT COUNCIL,2019485154,"68,168.00"
Department for Work and Pensions,Employment Programmes,23/02/2011,YOUNG PERSON'S GUARANTEE,WWEG EMPLOYMENT PROGRAMMES,BARNARDOS,2019620443,"67,950.00"
Department for Work and Pensions,Corporate,15/02/2011,COMPUTER SERVICES,SHARED SERVICES,HP ENTERPRISE SERVICES UK LTD,2019496556,"67,621.64"
Department for Work and Pensions,Employment Programmes,28/02/2011,YOUNG PERSON'S GUARANTEE,WWEG EMPLOYMENT PROGRAMMES,WEST DUNBARTONSHIRE COUNCIL,2019711475,"67,601.70"
Department for Work and Pensions,Housing Benefits,14/02/2011,Housing Benefit Admin,WWG Housing Benefit,WINDSOR & MAIDENHEAD BOROUGH COUNCIL,2019485301,"67,397.00"
Department for Work and Pensions,Housing Benefits,14/02/2011,Housing Benefit Admin,WWG Housing Benefit,EAST DEVON DISTRICT COUNCIL,2019485031,"67,273.00"
Department for Work and Pensions,Housing Benefits,14/02/2011,Housing Benefit Admin,WWG Housing Benefit,NORTH NORFOLK DISTRICT COUNCIL,2019485162,"67,074.00"
Department for Work and Pensions,Housing Benefits,14/02/2011,Housing Benefit Admin,WWG Housing Benefit,BROXBOURNE BOROUGH COUNCIL,2019484973,"67,028.00"
Department for Work and Pensions,Housing Benefits,14/02/2011,Housing Benefit Admin,WWG Housing Benefit,STROUD DISTRICT COUNCIL,2019485250,"66,743.00"
Department for Work and Pensions,Housing Benefits,14/02/2011,Housing Benefit Admin,WWG Housing Benefit,WORCESTER CITY COUNCIL,2019485306,"66,530.00"
Department for Work and Pensions,Housing Benefits,14/02/2011,Housing Benefit Admin,WWG Housing Benefit,ASHFORD BOROUGH COUNCIL,2019484941,"66,491.00"
Department for Work and Pensions,Housing Benefits,14/02/2011,Housing Benefit Admin,WWG Housing Benefit,MENDIP DISTRICT COUNCIL,2019485137,"66,396.00"
Department for Work and Pensions,Housing Benefits,14/02/2011,Housing Benefit Admin,WWG Housing Benefit,CITY OF CARLISLE DISTRICT COUNCIL,2019484998,"66,220.00"
Department for Work and Pensions,Employment Programmes,25/02/2011,FND,WWEG EMPLOYMENT PROGRAMMES,MAXIMUS EMPLOYMENT UK LTD,2019702588,"66,000.00"
Department for Work and Pensions,Corporate,07/02/2011,TEMPORARY (TEMP) STAFF COSTS,Group Finance,TOYNBEE HALL,2019381812,"65,627.28"
Department for Work and Pensions,Housing Benefits,14/02/2011,Housing Benefit Admin,WWG Housing Benefit,EPPING FOREST DISTRICT COUNCIL,2019485047,"65,360.00"
Department for Work and Pensions,Housing Benefits,14/02/2011,Housing Benefit Admin,WWG Housing Benefit,NEWARK DISTRICT COUNCIL,2019485149,"65,237.00"
Department for Work and Pensions,Housing Benefits,14/02/2011,Housing Benefit Admin,WWG Housing Benefit,STEVENAGE BOROUGH COUNCIL,2019485244,"65,002.00"
Department for Work and Pensions,Employment Programmes,07/02/2011,YOUNG PERSON'S GUARANTEE,WWEG EMPLOYMENT PROGRAMMES,NORTH LANARKSHIRE COUNCIL,2019380735,"65,000.00"
Department for Work and Pensions,Corporate,16/02/2011,CAPITAL GRANTS,Group Finance,CHESHIRE NEIGHBOURS CREDIT UNION LIMITED,2019517211,"65,000.00"
Department for Work and Pensions,Housing Benefits,14/02/2011,Housing Benefit Admin,WWG Housing Benefit,ALLERDALE DISTRICT COUNCIL,2019484935,"64,906.00"
Department for Work and Pensions,Housing Benefits,14/02/2011,Housing Benefit Admin,WWG Housing Benefit,CHICHESTER DISTRICT COUNCIL,2019484994,"64,727.00"
Department for Work and Pensions,Housing Benefits,14/02/2011,Housing Benefit Admin,WWG Housing Benefit,WEALDEN DISTRICT COUNCIL,2019485286,"64,682.00"
Department for Work and Pensions,Jobcentre Plus,24/02/2011,EMPLOYMENT PROGRAMMES,Balance Sheet Payments,TWL TRAINING LTD,2019696729,"64,374.50"
Department for Work and Pensions,Employment Programmes,01/02/2011,YOUNG PERSON'S GUARANTEE,WWEG EMPLOYMENT PROGRAMMES,NORTH YORKSHIRE LEARNING CONSORTIUM LTD,2019282531,"64,350.00"
Department for Work and Pensions,Employment Programmes,07/02/2011,YOUNG PERSON'S GUARANTEE,WWEG EMPLOYMENT PROGRAMMES,CALDERDALE METROPOLITAN BOROUGH COUNCIL,2019377647,"64,350.00"
Department for Work and Pensions,Employment Programmes,02/02/2011,FND,WWEG EMPLOYMENT PROGRAMMES,SERCO LTD,2019355193,"64,334.00"
Department for Work and Pensions,Housing Benefits,14/02/2011,Housing Benefit Admin,WWG Housing Benefit,EAST HERTFORDSHIRE DISTRICT COUNCIL,2019485035,"64,322.00"
Department for Work and Pensions,Jobcentre Plus,03/02/2011,EMPLOYMENT PROGRAMMES,Balance Sheet Payments,RENOVO EMPLOYMENT GROUP LTD,2019368468,"64,100.00"
Department for Work and Pensions,Employment Programmes,07/02/2011,YOUNG PERSON'S GUARANTEE,WWEG EMPLOYMENT PROGRAMMES,3SC,2019376991,"63,700.00"
Department for Work and Pensions,Employment Programmes,07/02/2011,YOUNG PERSON'S GUARANTEE,WWEG EMPLOYMENT PROGRAMMES,EAST AYRSHIRE COUNCIL,2019379152,"63,700.00"
Department for Work and Pensions,Housing Benefits,14/02/2011,Housing Benefit Admin,WWG Housing Benefit,BOROUGH OF REDDITCH,2019484958,"63,669.00"
Department for Work and Pensions,Employment Programmes,23/02/2011,YOUNG PERSON'S GUARANTEE,WWEG EMPLOYMENT PROGRAMMES,IXION HOLDINGS LTD,2019640252,"63,600.00"
Department for Work and Pensions,Jobcentre Plus,03/02/2011,EMPLOYMENT PROGRAMMES,Balance Sheet Payments,REED IN PARTNERSHIP,2019368459,"63,178.43"
Department for Work and Pensions,Corporate,18/02/2011,TEMPORARY (TEMP) STAFF COSTS,Corporate IT ,CAPITA RESOURCING LIMITED,2019589840,"63,105.23"
Department for Work and Pensions,Housing Benefits,14/02/2011,Housing Benefit Admin,WWG Housing Benefit,SOUTH NORFOLK DISTRICT COUNCIL,2019485229,"63,103.00"
Department for Work and Pensions,Housing Benefits,14/02/2011,Housing Benefit Admin,WWG Housing Benefit,ROTHER DISTRICT COUNCIL,2019485196,"62,881.00"
Department for Work and Pensions,Employment Programmes,04/02/2011,NDDP,WWEG EMPLOYMENT PROGRAMMES,SEETEC,2019375153,"62,868.68"
Department for Work and Pensions,Employment Programmes,21/02/2011,YOUNG PERSON'S GUARANTEE,WWEG EMPLOYMENT PROGRAMMES,ACTION FOR CHILDREN,2019595601,"62,857.80"
Department for Work and Pensions,Corporate,28/02/2011,COMPUTER SERVICES,Group Finance,HP ENTERPRISE SERVICES UK LTD,2019709129,"62,726.00"
Department for Work and Pensions,Corporate,03/02/2011,TEMPORARY (TEMP) STAFF COSTS,Corporate IT ,CAPITA RESOURCING LIMITED,2019364658,"62,662.09"
Department for Work and Pensions,Employment Programmes,17/02/2011,FND,WWEG EMPLOYMENT PROGRAMMES,PERTEMPS,2019585658,"62,320.00"
Department for Work and Pensions,Employment Programmes,04/02/2011,YOUNG PERSON'S GUARANTEE,WWEG EMPLOYMENT PROGRAMMES,WOLSELEY COMMUNITY ECONOMIC DEVELOPMENT TRUST,2019375430,"62,241.94"
Department for Work and Pensions,Employment Programmes,16/02/2011,FND,WWEG EMPLOYMENT PROGRAMMES,SERCO LTD,2019572510,"62,127.00"
Department for Work and Pensions,Jobcentre Plus,17/02/2011,EMPLOYMENT PROGRAMMES,Balance Sheet Payments,THE INTRAINING GROUP,2019586589,"62,122.64"
Department for Work and Pensions,Housing Benefits,14/02/2011,Housing Benefit Admin,WWG Housing Benefit,RUGBY BOROUGH COUNCIL,2019485199,"61,670.00"
Department for Work and Pensions,Jobcentre Plus,10/02/2011,EMPLOYMENT PROGRAMMES,Balance Sheet Payments,THE INTRAINING GROUP,2019476198,"61,582.22"
Department for Work and Pensions,Housing Benefits,14/02/2011,Housing Benefit Admin,WWG Housing Benefit,ST EDMUNDSBURY BOROUGH COUNCIL,2019485240,"61,554.00"
Department for Work and Pensions,Employment Programmes,04/02/2011,JSP ESF DEL P COSTS,WWEG EMPLOYMENT PROGRAMMES,INGEUS UK LTD,2019373610,"61,529.83"
Department for Work and Pensions,Housing Benefits,14/02/2011,Housing Benefit Admin,WWG Housing Benefit,TONBRIDGE & MALLING DISTRICT COUNCIL,2019485270,"61,460.00"
Department for Work and Pensions,Housing Benefits,14/02/2011,Housing Benefit Admin,WWG Housing Benefit,EAST LOTHIAN DISTRICT COUNCIL,2019485037,"61,452.00"
Department for Work and Pensions,Housing Benefits,14/02/2011,Housing Benefit Admin,WWG Housing Benefit,SUFFOLK COASTAL DISTRICT COUNCIL,2019485251,"61,138.00"
Department for Work and Pensions,Housing Benefits,14/02/2011,Housing Benefit Admin,WWG Housing Benefit,BARROW BOROUGH COUNCIL,2019484945,"61,035.00"
Department for Work and Pensions,Housing Benefits,14/02/2011,Housing Benefit Admin,WWG Housing Benefit,CASTLE POINT DISTRICT COUNCIL,2019484984,"60,724.00"
Department for Work and Pensions,European Social Fund,01/02/2011,ESF NON-PREFUNDED EXPENDITURE,WWEG EUROPEAN SOCIAL FUND,PLUSS ORGANISATION LTD,5000000462,"60,542.00"
Department for Work and Pensions,Corporate,16/02/2011,STAFF COSTS,Corporate and Support Services,ELISHA TRAINING LTD,2019525161,"60,400.07"
Department for Work and Pensions,Jobcentre Plus,03/02/2011,EMPLOYMENT PROGRAMMES,Balance Sheet Payments,CHESHIRE TRAINING ASSOCIATES LTD,2019364688,"60,333.04"
Department for Work and Pensions,Housing Benefits,14/02/2011,Housing Benefit Admin,WWG Housing Benefit,CHORLEY BOROUGH COUNCIL,2019484996,"60,170.00"
Department for Work and Pensions,Corporate,11/02/2011,UNALLOCATED BUDGET GROUP,WWG SUMMARY,MOTABILITY,2019482148,"60,000.00"
Department for Work and Pensions,Jobcentre Plus,10/02/2011,EMPLOYMENT PROGRAMMES,Balance Sheet Payments,TNG BUSINESS SUPPORT LTD.,2019476223,"59,992.24"
Department for Work and Pensions,European Social Fund,08/02/2011,MA ESF(D) LA NON-PREFUNDED EXPENDITURE,WWEG EUROPEAN SOCIAL FUND,BIRMINGHAM CITY COUNCIL,5000000465,"59,936.00"
Department for Work and Pensions,Housing Benefits,14/02/2011,Housing Benefit Admin,WWG Housing Benefit,LEWES DISTRICT COUNCIL,2019485097,"59,934.00"
Department for Work and Pensions,Corporate,08/02/2011,Consultancy Fees,LSPG,FIELD FISHER WATERHOUSE LLP,2019386910,"59,909.27"
Department for Work and Pensions,Housing Benefits,14/02/2011,Housing Benefit Admin,WWG Housing Benefit,WYCHAVON DISTRICT COUNCIL,2019485309,"59,905.00"
Department for Work and Pensions,Corporate,28/02/2011,COMPUTER SERVICES,CHANGE MANAGEMENT DIRECTORATE,ATOS ORIGIN IT SERVICES UK LTD,2019705600,"59,880.42"
Department for Work and Pensions,Housing Benefits,14/02/2011,Housing Benefit Admin,WWG Housing Benefit,STRATFORD ON AVON DISTRICT COUNCIL,2019485249,"59,868.00"
Department for Work and Pensions,Housing Benefits,14/02/2011,Housing Benefit Admin,WWG Housing Benefit,GOSPORT BOROUGH COUNCIL,2019485062,"59,842.00"
Department for Work and Pensions,Jobcentre Plus,03/02/2011,EMPLOYMENT PROGRAMMES,Balance Sheet Payments,VT SOUTHERN CAREERS LTD COMMUNITY OUTREACH SERVICE,2019369186,"59,823.00"
Department for Work and Pensions,Employment Programmes,01/02/2011,WORKSTEP,WWEG EMPLOYMENT PROGRAMMES,DURHAM COUNTY COUNCIL,2019278448,"59,710.00"
Department for Work and Pensions,Employment Programmes,23/02/2011,NDLP,WWEG EMPLOYMENT PROGRAMMES,TRIAGE CENTRAL LTD,2019685260,"59,704.00"
Department for Work and Pensions,Employment Programmes,09/02/2011,FND,WWEG EMPLOYMENT PROGRAMMES,CALDER UK LTD,2019407437,"59,638.00"
Department for Work and Pensions,Jobcentre Plus,10/02/2011,EMPLOYMENT PROGRAMMES,Balance Sheet Payments,BOURNEMOUTH & POOLE COLLEGE,2019472250,"59,520.06"
Department for Work and Pensions,Employment Programmes,15/02/2011,YOUNG PERSON'S GUARANTEE,WWEG EMPLOYMENT PROGRAMMES,COVENTRY CITY COUNCIL,2019493690,"59,400.00"
Department for Work and Pensions,Employment Programmes,16/02/2011,YOUNG PERSON'S GUARANTEE,WWEG EMPLOYMENT PROGRAMMES,COMMUNITY SKILLS PARTNERSHIP,2019517374,"59,342.15"
Department for Work and Pensions,Jobcentre Plus,03/02/2011,EMPLOYMENT PROGRAMMES,Balance Sheet Payments,BISCOM RESOURCE MANAGEMENT,2019364371,"59,227.56"
Department for Work and Pensions,Corporate,11/02/2011,COMPUTER SERVICES,Corporate IT ,AMTEC CONSULTING GROUP,2019478918,"59,047.70"
Department for Work and Pensions,Housing Benefits,14/02/2011,Housing Benefit Admin,WWG Housing Benefit,ELMBRIDGE BOROUGH COUNCIL,2019485046,"59,007.00"
Department for Work and Pensions,Employment Programmes,04/02/2011,FND,WWEG EMPLOYMENT PROGRAMMES,SERCO LTD,2019375158,"58,941.00"
Department for Work and Pensions,Jobcentre Plus,10/02/2011,EMPLOYMENT PROGRAMMES,Balance Sheet Payments,SENCIA LTD,2019476022,"58,853.80"
Department for Work and Pensions,Employment Programmes,15/02/2011,YOUNG PERSON'S GUARANTEE,WWEG EMPLOYMENT PROGRAMMES,CALDERDALE METROPOLITAN BOROUGH COUNCIL,2019493599,"58,800.00"
Department for Work and Pensions,Employment Programmes,17/02/2011,YOUNG PERSON'S GUARANTEE,WWEG EMPLOYMENT PROGRAMMES,GLASGOW CITY COUNCIL,2019583852,"58,800.00"
Department for Work and Pensions,Corporate,04/02/2011,COMPUTER SERVICES,CHANGE MANAGEMENT DIRECTORATE,ACCENTURE UK LTD,2019371751,"58,795.45"
Department for Work and Pensions,Employment Programmes,24/02/2011,HELP FOR UNEMPLOYED PEOPLE OTHER,WWEG EMPLOYMENT PROGRAMMES,RHYL CITY STRATEGY PATHFINDER,2019695888,"58,716.75"
Department for Work and Pensions,Housing Benefits,14/02/2011,Housing Benefit Admin,WWG Housing Benefit,RUSHMOOR BOROUGH COUNCIL,2019485202,"58,664.00"
Department for Work and Pensions,Employment Programmes,07/02/2011,YOUNG PERSON'S GUARANTEE,WWEG EMPLOYMENT PROGRAMMES,BIRMINGHAM CITY COUNCIL,2019377412,"58,650.00"
Department for Work and Pensions,Corporate,15/02/2011,Consultancy Fees,LSPG,FIELD FISHER WATERHOUSE LLP,2019496015,"58,647.76"
Department for Work and Pensions,European Social Fund,22/02/2011,ESF NON-PREFUNDED EXPENDITURE,WWEG EUROPEAN SOCIAL FUND,COSMIC,5000000485,"58,507.00"
Department for Work and Pensions,Housing Benefits,14/02/2011,Housing Benefit Admin,WWG Housing Benefit,TUNBRIDGE WELLS BOROUGH COUNCIL,2019485275,"58,506.00"
Department for Work and Pensions,Jobcentre Plus,24/02/2011,EMPLOYMENT PROGRAMMES,Balance Sheet Payments,THE INTRAINING GROUP,2019696669,"58,394.81"
Department for Work and Pensions,Employment Programmes,04/02/2011,YOUNG PERSON'S GUARANTEE,WWEG EMPLOYMENT PROGRAMMES,LONDON BOROUGH OF LEWISHAM SOUTH BANK EMPLOYERS,2019374213,"58,273.55"
Department for Work and Pensions,Housing Benefits,14/02/2011,Housing Benefit Admin,WWG Housing Benefit,EASTLEIGH BOROUGH COUNCIL,2019485043,"58,236.00"
Department for Work and Pensions,Housing Benefits,14/02/2011,Housing Benefit Admin,WWG Housing Benefit,VALE OF WHITE HORSE DISTRICT COUNCIL,2019485278,"58,212.00"
Department for Work and Pensions,Jobcentre Plus,14/02/2011,Accomodation Costs,Jobcentre Plus,TELEREAL TRILLIUM,2019490394,"58,120.10"
Department for Work and Pensions,Employment Programmes,25/02/2011,FND,WWEG EMPLOYMENT PROGRAMMES,A4E LTD,2019699227,"58,052.00"
Department for Work and Pensions,Housing Benefits,14/02/2011,Housing Benefit Admin,WWG Housing Benefit,WATFORD BOROUGH COUNCIL,2019485283,"57,844.00"
Department for Work and Pensions,Corporate,14/02/2011,IS/IT,Corporate IT ,HP ENTERPRISE SERVICES UK LTD,2019487884,"57,758.09"
Department for Work and Pensions,Housing Benefits,14/02/2011,Housing Benefit Admin,WWG Housing Benefit,BOROUGH OF WELLINGBOROUGH,2019484960,"57,635.00"
Department for Work and Pensions,Employment Programmes,23/02/2011,JSP ESF DEL P COSTS,WWEG EMPLOYMENT PROGRAMMES,THE INTRAINING GROUP,2019685148,"57,210.53"
Department for Work and Pensions,Housing Benefits,14/02/2011,Housing Benefit Admin,WWG Housing Benefit,STAFFORD BOROUGH COUNCIL,2019485242,"57,207.00"
Department for Work and Pensions,Housing Benefits,14/02/2011,Housing Benefit Admin,WWG Housing Benefit,TEST VALLEY BOROUGH COUNCIL,2019485264,"57,077.00"
Department for Work and Pensions,Housing Benefits,14/02/2011,Housing Benefit Admin,WWG Housing Benefit,HIGH PEAK BOROUGH COUNCIL,2019485079,"57,059.00"
Department for Work and Pensions,Housing Benefits,14/02/2011,Housing Benefit Admin,WWG Housing Benefit,ST ALBANS DISTRICT COUNCIL,2019485239,"56,955.00"
Department for Work and Pensions,Housing Benefits,14/02/2011,Housing Benefit Admin,WWG Housing Benefit,SOUTH CAMBRIDGESHIRE DISTRICT COUNCIL,2019485221,"56,846.00"
Department for Work and Pensions,Employment Programmes,07/02/2011,FND,WWEG EMPLOYMENT PROGRAMMES,A4E LTD,2019377262,"56,821.00"
Department for Work and Pensions,Jobcentre Plus,03/02/2011,EMPLOYMENT PROGRAMMES,Balance Sheet Payments,SHAW TRUST LTD,2019368884,"56,571.57"
Department for Work and Pensions,Corporate,14/02/2011,COMPUTER SERVICES,Corporate and Support Services,HP ENTERPRISE SERVICES UK LTD,2019487884,"56,540.86"
Department for Work and Pensions,Housing Benefits,14/02/2011,Housing Benefit Admin,WWG Housing Benefit,WEST LINDSEY DISTRICT COUNCIL,2019485293,"56,438.00"
Department for Work and Pensions,Housing Benefits,14/02/2011,Housing Benefit Admin,WWG Housing Benefit,MERTHYR TYDFIL BOROUGH COUNCIL,2019485138,"56,348.00"
Department for Work and Pensions,Employment Programmes,22/02/2011,ND 18-24 GATEWAY,WWEG EMPLOYMENT PROGRAMMES,MANAGEMENT INTRODUCTIONS LTD,2019608879,"56,283.93"
Department for Work and Pensions,Housing Benefits,14/02/2011,Housing Benefit Admin,WWG Housing Benefit,NORTH EAST DERBYSHIRE DISTRICT COUNCIL,2019485156,"56,274.00"
Department for Work and Pensions,Housing Benefits,14/02/2011,Housing Benefit Admin,WWG Housing Benefit,SEVENOAKS DISTRICT COUNCIL,2019485212,"56,137.00"
Department for Work and Pensions,Jobcentre Plus,24/02/2011,EMPLOYMENT PROGRAMMES,Balance Sheet Payments,SEETEC,2019696418,"55,903.48"
Department for Work and Pensions,Jobcentre Plus,10/02/2011,EMPLOYMENT PROGRAMMES,Balance Sheet Payments,WORKING LINKS,2019476360,"55,902.66"
Department for Work and Pensions,Housing Benefits,14/02/2011,Housing Benefit Admin,WWG Housing Benefit,WAVERLEY BOROUGH COUNCIL,2019485285,"55,782.00"
Department for Work and Pensions,Employment Programmes,09/02/2011,FND,WWEG EMPLOYMENT PROGRAMMES,SERCO LTD,2019463238,"55,755.00"
Department for Work and Pensions,Employment Programmes,10/02/2011,FND,WWEG EMPLOYMENT PROGRAMMES,SERCO LTD,2019476024,"55,755.00"
Department for Work and Pensions,Housing Benefits,14/02/2011,Housing Benefit Admin,WWG Housing Benefit,BRACKNELL FOREST BOROUGH COUNCIL,2019484963,"55,711.00"
Department for Work and Pensions,Housing Benefits,14/02/2011,Housing Benefit Admin,WWG Housing Benefit,SOUTH RIBBLE BOROUGH COUNCIL C,2019485232,"55,695.00"
Department for Work and Pensions,Jobcentre Plus,03/02/2011,EMPLOYMENT PROGRAMMES,Balance Sheet Payments,YMCA TRAINING LTD,2019369271,"55,464.94"
Department for Work and Pensions,Housing Benefits,14/02/2011,Housing Benefit Admin,WWG Housing Benefit,DARTFORD BOROUGH COUNCIL,2019485018,"55,441.00"
Department for Work and Pensions,Corporate,28/02/2011,ACCOMMODATION,Group Finance,TELEREAL TRILLIUM,2019711335,"55,214.97"
Department for Work and Pensions,Employment Programmes,04/02/2011,YOUNG PERSON'S GUARANTEE,WWEG EMPLOYMENT PROGRAMMES,LEICESTER CITY COUNCIL,2019374198,"55,200.00"
Department for Work and Pensions,Employment Programmes,17/02/2011,YOUNG PERSON'S GUARANTEE,WWEG EMPLOYMENT PROGRAMMES,SHROPSHIRE COUNCIL,2019586378,"55,200.00"
Department for Work and Pensions,Housing Benefits,14/02/2011,Housing Benefit Admin,WWG Housing Benefit,KETTERING BOROUGH COUNCIL,2019485089,"55,145.00"
Department for Work and Pensions,Corporate,25/02/2011,TEMPORARY (TEMP) STAFF COSTS,Group Finance,CAPITA RESOURCING LIMITED,2019699610,"55,041.78"
Department for Work and Pensions,Employment Programmes,11/02/2011,YOUNG PERSON'S GUARANTEE,WWEG EMPLOYMENT PROGRAMMES,THE NATIONAL TRUST,2019483186,"54,900.00"
Department for Work and Pensions,Housing Benefits,14/02/2011,Housing Benefit Admin,WWG Housing Benefit,WEST DORSET DISTRICT COUNCIL,2019485290,"54,740.00"
Department for Work and Pensions,Housing Benefits,14/02/2011,Housing Benefit Admin,WWG Housing Benefit,EAST HAMPSHIRE DISTRICT COUNCIL,2019485034,"54,713.00"
Department for Work and Pensions,Housing Benefits,14/02/2011,Housing Benefit Admin,WWG Housing Benefit,BOLSOVER DISTRICT COUNCIL,2019484956,"54,500.00"
Department for Work and Pensions,Housing Benefits,14/02/2011,Housing Benefit Admin,WWG Housing Benefit,MID SUSSEX DISTRICT COUNCIL,2019485141,"54,102.00"
Department for Work and Pensions,Employment Programmes,14/02/2011,YOUNG PERSON'S GUARANTEE,WWEG EMPLOYMENT PROGRAMMES,SANDWELL METROPOLITAN BOROUGH COUNCIL,2019490204,"54,000.00"
Department for Work and Pensions,Corporate,15/02/2011,AOS CONTRACTED OUT SERVICES,SHARED SERVICES,IQOR RECOVERY SERVICES LTD,2019496702,"53,790.84"
Department for Work and Pensions,Housing Benefits,14/02/2011,Housing Benefit Admin,WWG Housing Benefit,MIDLOTHIAN COUNCIL,2019485143,"53,758.00"
Department for Work and Pensions,Housing Benefits,14/02/2011,Housing Benefit Admin,WWG Housing Benefit,EAST DUNBARTONSHIRE COUNCIL,2019485033,"53,727.00"
Department for Work and Pensions,Housing Benefits,14/02/2011,Housing Benefit Admin,WWG Housing Benefit,BROADLAND DISTRICT COUNCIL,2019484971,"53,722.00"
Department for Work and Pensions,Housing Benefits,14/02/2011,Housing Benefit Admin,WWG Housing Benefit,WEYMOUTH & PORTLAND BOROUGH COUNCIL,2019485297,"53,659.00"
Department for Work and Pensions,Employment Programmes,04/02/2011,FND,WWEG EMPLOYMENT PROGRAMMES,A4E LTD,2019371745,"53,658.00"
Department for Work and Pensions,Employment Programmes,15/02/2011,YOUNG PERSON'S GUARANTEE,WWEG EMPLOYMENT PROGRAMMES,SCOUT ENTERPRISES WESTERN LTD,2019501922,"53,400.00"
Department for Work and Pensions,Employment Programmes,03/02/2011,YOUNG PERSON'S GUARANTEE,WWEG EMPLOYMENT PROGRAMMES,NORTH LINCOLNSHIRE COUNCIL,2019368031,"53,250.00"
Department for Work and Pensions,Employment Programmes,15/02/2011,EU PROGRAMMES,WWEG EMPLOYMENT PROGRAMMES,LEEDS YORK & NORTH YORKSHIRE CHAMBER OF COMMERCE,2019498686,"53,211.00"
Department for Work and Pensions,Housing Benefits,14/02/2011,Housing Benefit Admin,WWG Housing Benefit,NORTH KESTEVEN DISTRICT COUNCIL,2019485159,"53,153.00"
Department for Work and Pensions,Corporate,28/02/2011,ACCOMMODATION,Group Finance,TELEREAL TRILLIUM,2019711335,"52,976.61"
Department for Work and Pensions,Housing Benefits,14/02/2011,Housing Benefit Admin,WWG Housing Benefit,HINCKLEY & BOSWORTH BOROUGH COUNCIL,2019485081,"52,966.00"
Department for Work and Pensions,Employment Programmes,21/02/2011,YOUNG PERSON'S GUARANTEE,WWEG EMPLOYMENT PROGRAMMES,NEATH PORT TALBOT COUNTY BOROUGH COUNCIL,2019599426,"52,950.00"
Department for Work and Pensions,Employment Programmes,25/02/2011,FND,WWEG EMPLOYMENT PROGRAMMES,SERCO LTD,2019703511,"52,569.00"
Department for Work and Pensions,Employment Programmes,28/02/2011,YOUNG PERSON'S GUARANTEE,WWEG EMPLOYMENT PROGRAMMES,FIFE COUNCIL,2019708889,"52,350.00"
Department for Work and Pensions,Housing Benefits,14/02/2011,Housing Benefit Admin,WWG Housing Benefit,SOUTH HOLLAND DISTRICT COUNCIL,2019485225,"52,349.00"
Department for Work and Pensions,Employment Programmes,15/02/2011,PROGRESS TO WORK,WWEG EMPLOYMENT PROGRAMMES,WORKING LINKS,2019502671,"52,287.39"
Department for Work and Pensions,Employment Programmes,23/02/2011,WORK PREPARATION,WWEG EMPLOYMENT PROGRAMMES,WAYS TO WORK LTD,2019687149,"52,259.17"
Department for Work and Pensions,Jobcentre Plus,17/02/2011,EMPLOYMENT PROGRAMMES,Balance Sheet Payments,INGEUS UK LTD,2019584020,"52,227.92"
Department for Work and Pensions,Corporate,08/02/2011,TELEPHONE AND POSTAGE,Group Finance,ROYAL MAIL GROUP PLC,2019391583,"52,069.33"
Department for Work and Pensions,Housing Benefits,14/02/2011,Housing Benefit Admin,WWG Housing Benefit,FOREST OF DEAN DISTRICT COUNCIL,2019485057,"52,018.00"
Department for Work and Pensions,Employment Programmes,04/02/2011,YOUNG PERSON'S GUARANTEE,WWEG EMPLOYMENT PROGRAMMES,FUTURE JOBS SOUTH LONDON BUSINESS,2019373387,"52,000.00"
Department for Work and Pensions,Housing Benefits,14/02/2011,Housing Benefit Admin,WWG Housing Benefit,SOUTH STAFFORDSHIRE DISTRICT COUNCIL,2019485234,"51,783.00"
Department for Work and Pensions,"Pension, Disability Carers Services",24/02/2011,COMPUTER SERVICES,Pensions & Disability Carers Service ,ATOS ORIGIN IT SERVICES UK,2019690851,"51,748.45"
Department for Work and Pensions,Corporate,18/02/2011,BANKING AND ENCASHMENT COSTS,Group Finance,HSBC BANK PLC,2019591714,"51,706.40"
Department for Work and Pensions,Housing Benefits,14/02/2011,Housing Benefit Admin,WWG Housing Benefit,SPELTHORNE BOROUGH COUNCIL,2019485238,"51,607.00"
Department for Work and Pensions,Housing Benefits,14/02/2011,Housing Benefit Admin,WWG Housing Benefit,HORSHAM DISTRICT COUNCIL,2019485082,"51,603.00"
Department for Work and Pensions,Employment Programmes,11/02/2011,YOUNG PERSON'S GUARANTEE,WWEG EMPLOYMENT PROGRAMMES,PROJECT SCOTLAND,2019482472,"51,600.00"
Department for Work and Pensions,Employment Programmes,03/02/2011,FND,WWEG EMPLOYMENT PROGRAMMES,SKILLS TRAINING UK LIMITED,2019368898,"51,551.00"
Department for Work and Pensions,Housing Benefits,14/02/2011,Housing Benefit Admin,WWG Housing Benefit,CORBY BOROUGH COUNCIL,2019485007,"51,537.00"
Department for Work and Pensions,Employment Programmes,22/02/2011,NDLP,WWEG EMPLOYMENT PROGRAMMES,CLAVERHOUSE GROUP,2019603300,"51,372.00"
Department for Work and Pensions,Housing Benefits,14/02/2011,Housing Benefit Admin,WWG Housing Benefit,WEST OXFORDSHIRE DISTRICT COUNCIL,2019485295,"51,254.00"
Department for Work and Pensions,Corporate,14/02/2011,EU PROGRAMMES,WWG SUMMARY,UNIVERSITY COLLEGE LONDON,2019490445,"51,182.00"
Department for Work and Pensions,Corporate,09/02/2011,COMPUTER SERVICES,CHANGE MANAGEMENT DIRECTORATE,ACCENTURE UK LTD,2019400371,"51,142.91"
Department for Work and Pensions,Jobcentre Plus,03/02/2011,EMPLOYMENT PROGRAMMES,Balance Sheet Payments,MAY & STEPHENS LTD,2019367872,"51,100.00"
Department for Work and Pensions,Housing Benefits,14/02/2011,Housing Benefit Admin,WWG Housing Benefit,SOUTH OXFORDSHIRE DISTRICT COUNCIL,2019485231,"51,012.00"
Department for Work and Pensions,Employment Programmes,15/02/2011,FND,WWEG EMPLOYMENT PROGRAMMES,SERCO LTD,2019501938,"50,976.00"
Department for Work and Pensions,Corporate,25/02/2011,TEMPORARY (TEMP) STAFF COSTS,Corporate IT ,CAPITA RESOURCING LIMITED,2019699610,"50,903.89"
Department for Work and Pensions,Housing Benefits,14/02/2011,Housing Benefit Admin,WWG Housing Benefit,NORTH WEST LEICESTER DISTRICT COUNCIL,2019485166,"50,744.00"
Department for Work and Pensions,Jobcentre Plus,08/02/2011,APPS DEV,Jobcentre Plus,HP ENTERPRISE SERVICES UK LTD,2019387424,"50,719.67"
Department for Work and Pensions,Employment Programmes,10/02/2011,YOUNG PERSON'S GUARANTEE,WWEG EMPLOYMENT PROGRAMMES,ASPIRE FOUNDATION,2019472145,"50,700.00"
Department for Work and Pensions,Employment Programmes,15/02/2011,YOUNG PERSON'S GUARANTEE,WWEG EMPLOYMENT PROGRAMMES,WARWICKSHIRE COUNTY COUNCIL,2019502630,"50,700.00"
Department for Work and Pensions,Housing Benefits,14/02/2011,Housing Benefit Admin,WWG Housing Benefit,THE MORAY COUNCIL,2019485267,"50,363.00"
Department for Work and Pensions,Employment Programmes,02/02/2011,YOUNG PERSON'S GUARANTEE,WWEG EMPLOYMENT PROGRAMMES,COVENTRY CITY COUNCIL,2019299488,"50,250.00"
Department for Work and Pensions,Jobcentre Plus,14/02/2011,APPS DEV,Jobcentre Plus,HP ENTERPRISE SERVICES UK LTD,2019487883,"50,008.13"
Department for Work and Pensions,Corporate,25/02/2011,CAPITAL GRANTS,Group Finance,NOTTINGHAM CREDIT UNION LTD,2019702779,"50,000.00"
Department for Work and Pensions,Jobcentre Plus,10/02/2011,EMPLOYMENT PROGRAMMES,Balance Sheet Payments,BTCV,2019472262,"49,989.45"
Department for Work and Pensions,Corporate,09/02/2011,COMPUTER SERVICES,Corporate IT ,GTN CABLE & WIRELESS,2019419162,"49,979.00"
Department for Work and Pensions,Employment Programmes,01/02/2011,YOUNG PERSON'S GUARANTEE,WWEG EMPLOYMENT PROGRAMMES,LONDON BOROUGH OF ISLINGTON,2019281389,"49,950.00"
Department for Work and Pensions,Corporate,08/02/2011,COMPUTER SERVICES,Corporate IT ,HP ENTERPRISE SERVICES UK LTD,2019387424,"49,711.74"
Department for Work and Pensions,Housing Benefits,14/02/2011,Housing Benefit Admin,WWG Housing Benefit,COPELAND BOROUGH COUNCIL,2019485006,"49,697.00"
Department for Work and Pensions,European Social Fund,23/02/2011,ESF NON-PREFUNDED EXPENDITURE,WWEG EUROPEAN SOCIAL FUND,SOCIAL ENTERPRISE NETWORK LTD,5000000488,"49,528.00"
Department for Work and Pensions,Jobcentre Plus,03/02/2011,EMPLOYMENT PROGRAMMES,Balance Sheet Payments,CORNWALL COUNTY COUNCIL,2019364714,"49,498.34"
Department for Work and Pensions,Jobcentre Plus,03/02/2011,EMPLOYMENT PROGRAMMES,Balance Sheet Payments,ARGYLL & BUTE COUNCIL,2019364243,"49,490.34"
Department for Work and Pensions,Employment Programmes,14/02/2011,FND,WWEG EMPLOYMENT PROGRAMMES,SERCO LTD,2019490223,"49,383.00"
Department for Work and Pensions,Housing Benefits,14/02/2011,Housing Benefit Admin,WWG Housing Benefit,LICHFIELD DISTRICT COUNCIL,2019485098,"49,288.00"
Department for Work and Pensions,Corporate,21/02/2011,MISCELLANEOUS EXPENDITURE,EG SUMMARY,MDRC,3004242,"49,241.72"
Department for Work and Pensions,Housing Benefits,14/02/2011,Housing Benefit Admin,WWG Housing Benefit,WOKING BOROUGH COUNCIL,2019485303,"48,958.00"
Department for Work and Pensions,Housing Benefits,14/02/2011,Housing Benefit Admin,WWG Housing Benefit,STIRLING COUNCIL,2019485245,"48,894.00"
Department for Work and Pensions,Housing Benefits,14/02/2011,Housing Benefit Admin,WWG Housing Benefit,TAMWORTH BOROUGH COUNCIL,2019485258,"48,798.00"
Department for Work and Pensions,Employment Programmes,02/02/2011,FND,WWEG EMPLOYMENT PROGRAMMES,SKILLS TRAINING UK LIMITED,2019355372,"48,654.00"
Department for Work and Pensions,Corporate,07/02/2011,BANKING AND ENCASHMENT COSTS,Group Finance,VOCALINK,2019381872,"48,626.00"
Department for Work and Pensions,Corporate,18/02/2011,BANKING AND ENCASHMENT COSTS,Group Finance,VOCALINK,2019593897,"48,626.00"
Department for Work and Pensions,European Social Fund,24/02/2011,ESF NON-PREFUNDED EXPENDITURE,WWEG EUROPEAN SOCIAL FUND,LONDON VOLUNTARY SECTOR TRAINING CONSORTIUM LVSTC,5000000490,"48,523.00"
Department for Work and Pensions,Housing Benefits,14/02/2011,Housing Benefit Admin,WWG Housing Benefit,ROSSENDALE BOROUGH COUNCIL,2019485195,"48,357.00"
Department for Work and Pensions,Employment Programmes,09/02/2011,YOUNG PERSON'S GUARANTEE,WWEG EMPLOYMENT PROGRAMMES,NATIONAL SKILLS ACADEMY FOR SPORT & ACTIVE LEISURE,2019448682,"48,000.00"
Department for Work and Pensions,Housing Benefits,14/02/2011,Housing Benefit Admin,WWG Housing Benefit,WINCHESTER CITY COUNCIL,2019485300,"47,974.00"
Department for Work and Pensions,Corporate,11/02/2011,TOTAL SUPPLIES & SERVICES,Corporate and Support Services,ASE CORPORATE EYECARE LTD,2019478922,"47,946.08"
Department for Work and Pensions,Corporate,10/02/2011,TEMPORARY (TEMP) STAFF COSTS,Corporate IT ,CAPITA RESOURCING LIMITED,2019472493,"47,936.39"
Department for Work and Pensions,Jobcentre Plus,28/02/2011,OTHER GOODS AND SERVICES,Jobcentre Plus,VALUATION OFFICE AGENCY,2019711403,"47,840.00"
Department for Work and Pensions,Corporate,17/02/2011,COMPUTER SERVICES,Corporate IT ,CAPGEMINI UK PLC,2019582010,"47,743.00"
Department for Work and Pensions,Corporate,18/02/2011,COMPUTER SERVICES,Corporate IT ,VIRGIN MEDIA LTD,2019593893,"47,671.40"
Department for Work and Pensions,Housing Benefits,14/02/2011,Housing Benefit Admin,WWG Housing Benefit,SOUTH HAMS DISTRICT COUNCIL,2019485224,"47,487.00"
Department for Work and Pensions,Employment Programmes,15/02/2011,FND,WWEG EMPLOYMENT PROGRAMMES,WORKING LINKS,2019502672,"47,430.00"
Department for Work and Pensions,Jobcentre Plus,02/02/2011,APPS DEV,Jobcentre Plus,ACCENTURE UK LTD,2019292171,"47,275.93"
Department for Work and Pensions,Corporate,28/02/2011,ACCOMMODATION,Group Finance,TELEREAL TRILLIUM,2019711332,"47,215.29"
Department for Work and Pensions,European Social Fund,11/02/2011,ESF NON-PREFUNDED EXPENDITURE,WWEG EUROPEAN SOCIAL FUND,NEWHAVEN COMMUNITY DEVELOPMENT ASSOCIATION,5000000470,"47,186.00"
Department for Work and Pensions,Employment Programmes,04/02/2011,FND,WWEG EMPLOYMENT PROGRAMMES,SERCO LTD,2019375158,"47,125.00"
Department for Work and Pensions,Employment Programmes,17/02/2011,NDDP,WWEG EMPLOYMENT PROGRAMMES,WORKING LINKS,2019586788,"47,099.25"
Department for Work and Pensions,Employment Programmes,04/02/2011,YOUNG PERSON'S GUARANTEE,WWEG EMPLOYMENT PROGRAMMES,KIRKLEES COUNCIL,2019374032,"46,800.00"
Department for Work and Pensions,Employment Programmes,04/02/2011,FND,WWEG EMPLOYMENT PROGRAMMES,WORKING LINKS,2019375439,"46,770.00"
Department for Work and Pensions,Employment Programmes,16/02/2011,YOUNG PERSON'S GUARANTEE,WWEG EMPLOYMENT PROGRAMMES,SCOTTISH WILDLIFE TRUST,2019572466,"46,728.24"
Department for Work and Pensions,Housing Benefits,14/02/2011,Housing Benefit Admin,WWG Housing Benefit,MONMOUTHSHIRE COUNTY  COUNCIL,2019485146,"46,643.00"
Department for Work and Pensions,Corporate,21/02/2011,MISCELLANEOUS EXPENDITURE,LSPG,SCOTLAND OFFICE,2002442,"46,546.46"
Department for Work and Pensions,Employment Programmes,03/02/2011,YOUNG PERSON'S GUARANTEE,WWEG EMPLOYMENT PROGRAMMES,WOLSELEY COMMUNITY ECONOMIC DEVELOPMENT TRUST,2019369238,"46,456.80"
Department for Work and Pensions,Corporate,18/02/2011,TEMPORARY (TEMP) STAFF COSTS,Group Finance,CAPITA RESOURCING LIMITED,2019589840,"46,316.18"
Department for Work and Pensions,Housing Benefits,14/02/2011,Housing Benefit Admin,WWG Housing Benefit,BOSTON BOROUGH COUNCIL,2019484961,"46,315.00"
Department for Work and Pensions,Housing Benefits,14/02/2011,Housing Benefit Admin,WWG Housing Benefit,CEREDIGION COUNTY COUNCIL,2019484986,"46,252.00"
Department for Work and Pensions,Employment Programmes,14/02/2011,FND,WWEG EMPLOYMENT PROGRAMMES,PERTEMPS,2019489560,"46,079.00"
Department for Work and Pensions,Corporate,09/02/2011,APPS DEV,Corporate IT ,ACCENTURE,2019400370,"46,008.07"
Department for Work and Pensions,Housing Benefits,14/02/2011,Housing Benefit Admin,WWG Housing Benefit,WOKINGHAM DISTRICT COUNCIL,2019485304,"45,970.00"
Department for Work and Pensions,Corporate,16/02/2011,Accomodation Costs,Group Finance,TELEREAL TRILLIUM,2019575904,"45,960.77"
Department for Work and Pensions,Corporate,07/02/2011,APPS DEV,SHARED SERVICES,ACCENTURE,2019377269,"45,659.61"
Department for Work and Pensions,Jobcentre Plus,03/02/2011,EMPLOYMENT PROGRAMMES,Balance Sheet Payments,LIFE SKILLS CENTRAL LTD,2019367533,"45,629.99"
Department for Work and Pensions,Jobcentre Plus,14/02/2011,COMPUTER SERVICES,Jobcentre Plus,HP ENTERPRISE SERVICES UK LTD,2019487884,"45,580.00"
Department for Work and Pensions,Employment Programmes,11/02/2011,YOUNG PERSON'S GUARANTEE,WWEG EMPLOYMENT PROGRAMMES,GROUNDWORK WREXHAM & FLINTSHIRE,2019480944,"45,509.05"
Department for Work and Pensions,Employment Programmes,04/02/2011,YOUNG PERSON'S GUARANTEE,WWEG EMPLOYMENT PROGRAMMES,CHESHIRE WEST & CHESTER COUNCIL,2019372051,"45,500.00"
Department for Work and Pensions,Employment Programmes,25/02/2011,FND,WWEG EMPLOYMENT PROGRAMMES,SERCO LTD,2019703511,"45,500.00"
Department for Work and Pensions,"Pension, Disability Carers Services",08/02/2011,TELEPHONE AND POSTAGE,Pensions & Disability Carers Service ,ROYAL MAIL GROUP PLC,2019391583,"45,480.43"
Department for Work and Pensions,Housing Benefits,14/02/2011,Housing Benefit Admin,WWG Housing Benefit,THREE RIVERS DISTRICT COUNCIL,2019485268,"45,362.00"
Department for Work and Pensions,Housing Benefits,14/02/2011,Housing Benefit Admin,WWG Housing Benefit,ISLE OF ANGLESEY COUNTY COUNCIL,2019485087,"45,313.00"
Department for Work and Pensions,Employment Programmes,22/02/2011,YOUNG PERSON'S GUARANTEE,WWEG EMPLOYMENT PROGRAMMES,CAMBRIDGESHIRE COUNTY COUNCIL,2019603262,"44,940.62"
Department for Work and Pensions,Housing Benefits,14/02/2011,Housing Benefit Admin,WWG Housing Benefit,BABERGH DISTRICT COUNCIL,2019484943,"44,891.00"
Department for Work and Pensions,Employment Programmes,25/02/2011,FND,WWEG EMPLOYMENT PROGRAMMES,A4E LTD,2019699227,"44,807.00"
Department for Work and Pensions,Corporate,22/02/2011,PROFESSIONAL FEES,WWG SUMMARY,CARDIFF UNIVERSITYS,2019603266,"44,795.98"
Department for Work and Pensions,Corporate,11/02/2011,STAFF COSTS,Corporate and Support Services,ASE CORPORATE EYECARE LTD,2019478922,"44,776.00"
Department for Work and Pensions,Corporate,14/02/2011,AOS CONTRACTED OUT SERVICES,Group Finance,ABCUL,2019485635,"44,775.00"
Department for Work and Pensions,Housing Benefits,14/02/2011,Housing Benefit Admin,WWG Housing Benefit,COTSWOLD DISTRICT COUNCIL,2019485010,"44,639.00"
Department for Work and Pensions,Housing Benefits,14/02/2011,Housing Benefit Admin,WWG Housing Benefit,STAFFORDSHIRE MOORLANDS DISTRICT COUNCIL,2019485243,"44,637.00"
Department for Work and Pensions,Housing Benefits,14/02/2011,Housing Benefit Admin,WWG Housing Benefit,EAST NORTHANTS DISTRICT COUNCIL,2019485038,"44,618.00"
Department for Work and Pensions,Corporate,18/02/2011,TEMPORARY (TEMP) STAFF COSTS,Corporate IT ,CAPITA RESOURCING LIMITED,2019589840,"44,608.44"
Department for Work and Pensions,Housing Benefits,14/02/2011,Housing Benefit Admin,WWG Housing Benefit,FAREHAM BOROUGH COUNCIL,2019485052,"44,401.00"
Department for Work and Pensions,Housing Benefits,14/02/2011,Housing Benefit Admin,WWG Housing Benefit,SOUTH LAKELAND DISTRICT COUNCIL,2019485227,"44,315.00"
Department for Work and Pensions,Housing Benefits,14/02/2011,Housing Benefit Admin,WWG Housing Benefit,TEWKESBURY BOROUGH COUNCIL,2019485265,"44,289.00"
Department for Work and Pensions,Corporate,24/02/2011,EMPLOYMENT ZONES,WWG SUMMARY,THE FULBRIGHT COMMISSION,2019696665,"44,078.00"
Department for Work and Pensions,Jobcentre Plus,03/02/2011,EMPLOYMENT PROGRAMMES,Balance Sheet Payments,CHARTER TRAINING,2019364681,"43,897.42"
Department for Work and Pensions,Corporate,28/02/2011,ACCOMMODATION,Group Finance,TELEREAL TRILLIUM,2019711332,"43,844.73"
Department for Work and Pensions,Jobcentre Plus,24/02/2011,EMPLOYMENT PROGRAMMES,Balance Sheet Payments,BIRMINGHAM CHAMBER TRAINING,2019690988,"43,830.38"
Department for Work and Pensions,Employment Programmes,04/02/2011,NDDP,WWEG EMPLOYMENT PROGRAMMES,SENCIA LTD,2019375155,"43,806.37"
Department for Work and Pensions,Corporate,21/02/2011,POSTAGE,WWG SUMMARY,TNT UK LTD,2019600344,"43,642.49"
Department for Work and Pensions,Housing Benefits,14/02/2011,Housing Benefit Admin,WWG Housing Benefit,TORRIDGE DISTRICT COUNCIL,2019485273,"43,549.00"
Department for Work and Pensions,Employment Programmes,23/02/2011,YOUNG PERSON'S GUARANTEE,WWEG EMPLOYMENT PROGRAMMES,CAMDEN COUNCIL,2019625876,"43,376.60"
Department for Work and Pensions,Jobcentre Plus,10/02/2011,EMPLOYMENT PROGRAMMES,Balance Sheet Payments,TOMORROWS PEOPLE LTD,2019476232,"43,311.00"
Department for Work and Pensions,Corporate,16/02/2011,AOS CONTRACTED OUT SERVICES,SHARED SERVICES,COMMERCIAL COLLECTION SERVICES LTD,2019517371,"43,221.86"
Department for Work and Pensions,Corporate,09/02/2011,COMPUTER SERVICES,SHARED SERVICES,FUJITSU SERVICES,2019416976,"43,188.00"
Department for Work and Pensions,Employment Programmes,16/02/2011,YOUNG PERSON'S GUARANTEE,WWEG EMPLOYMENT PROGRAMMES,NORTH YORKSHIRE LEARNING CONSORTIUM LTD,2019558004,"43,050.00"
Department for Work and Pensions,Corporate,08/02/2011,APPS DEV,SHARED SERVICES,HP ENTERPRISE SERVICES UK LTD,2019387423,"43,040.03"
Department for Work and Pensions,Employment Programmes,15/02/2011,FND,WWEG EMPLOYMENT PROGRAMMES,SKILLS TRAINING UK LIMITED,2019501967,"42,944.00"
Department for Work and Pensions,Corporate,18/02/2011,TEMPORARY (TEMP) STAFF COSTS,Corporate IT ,CAPITA RESOURCING LIMITED,2019589840,"42,941.63"
Department for Work and Pensions,Employment Programmes,02/02/2011,FND,WWEG EMPLOYMENT PROGRAMMES,INGEUS UK LTD,2019313233,"42,924.00"
Department for Work and Pensions,Employment Programmes,01/02/2011,WORKSTEP,WWEG EMPLOYMENT PROGRAMMES,MAXIMUS EMPLOYMENT & TRAINING LTD,2019282161,"42,909.40"
Department for Work and Pensions,Employment Programmes,07/02/2011,YOUNG PERSON'S GUARANTEE,WWEG EMPLOYMENT PROGRAMMES,NEWPORT CITY COUNCIL,2019383406,"42,900.00"
Department for Work and Pensions,Employment Programmes,11/02/2011,YOUNG PERSON'S GUARANTEE,WWEG EMPLOYMENT PROGRAMMES,RHYL CITY STRATEGY COMMUNITY INTEREST COMPANY,2019482646,"42,900.00"
Department for Work and Pensions,Employment Programmes,28/02/2011,YOUNG PERSON'S GUARANTEE,WWEG EMPLOYMENT PROGRAMMES,LINK ED LTD,2019709926,"42,900.00"
Department for Work and Pensions,Housing Benefits,14/02/2011,Housing Benefit Admin,WWG Housing Benefit,EAST CAMBRIDGESHIRE DISTRICT COUNCIL,2019485030,"42,841.00"
Department for Work and Pensions,Housing Benefits,14/02/2011,Housing Benefit Admin,WWG Housing Benefit,CLACKMANNANSHIRE COUNCIL,2019485002,"42,818.00"
Department for Work and Pensions,Housing Benefits,14/02/2011,Housing Benefit Admin,WWG Housing Benefit,MID DEVON DISTRICT COUNCIL,2019485139,"42,780.00"
Department for Work and Pensions,Corporate,08/02/2011,PENSIONS PROGRAMME COSTS,Corporate and Support Services,SOUTHAMPTON CITY COUNCIL,1004632,"42,535.50"
Department for Work and Pensions,Corporate,28/02/2011,ACCOMMODATION,Group Finance,TELEREAL TRILLIUM,2019711332,"42,475.04"
Department for Work and Pensions,Jobcentre Plus,07/02/2011,Accomodation Costs,Jobcentre Plus,TELEREAL TRILLIUM,2019381769,"42,336.82"
Department for Work and Pensions,Jobcentre Plus,08/02/2011,APPS DEV,Jobcentre Plus,HP ENTERPRISE SERVICES UK LTD,2019387423,"42,317.56"
Department for Work and Pensions,Housing Benefits,14/02/2011,Housing Benefit Admin,WWG Housing Benefit,SOUTH DERBYSHIRE DISTRICT COUNCIL,2019485222,"42,247.00"
Department for Work and Pensions,Employment Programmes,07/02/2011,FND,WWEG EMPLOYMENT PROGRAMMES,SERCO LTD,2019381535,"42,228.00"
Department for Work and Pensions,Employment Programmes,22/02/2011,HELP FOR UNEMPLOYED PEOPLE OTHER,WWEG EMPLOYMENT PROGRAMMES,NOTTINGHAM CITY STRATEGY,2019609240,"42,160.00"
Department for Work and Pensions,Employment Programmes,25/02/2011,HELP FOR UNEMPLOYED PEOPLE OTHER,WWEG EMPLOYMENT PROGRAMMES,RHYL CITY STRATEGY PATHFINDER,2019703164,"42,160.00"
Department for Work and Pensions,Housing Benefits,14/02/2011,Housing Benefit Admin,WWG Housing Benefit,RUNNYMEDE BOROUGH COUNCIL,2019485200,"42,100.00"
Department for Work and Pensions,Corporate,24/02/2011,TELEPHONE AND POSTAGE,Group Finance,UK MAIL,2019696735,"42,059.48"
Department for Work and Pensions,Jobcentre Plus,10/02/2011,EMPLOYMENT PROGRAMMES,Balance Sheet Payments,TRAINING WEST LANCASHIRE LTD,2019476240,"42,054.09"
Department for Work and Pensions,Corporate,16/02/2011,NETWORK,Corporate IT ,BT GLOBAL SERVICES,2019511758,"42,022.80"
Department for Work and Pensions,"Pension, Disability Carers Services",11/02/2011,PRINTING STATIONERY IT CONSUMABLES,Pensions & Disability Carers Service ,XEROX UK LTD 3W,2019483340,"41,949.38"
Department for Work and Pensions,Employment Programmes,16/02/2011,YOUNG PERSON'S GUARANTEE,WWEG EMPLOYMENT PROGRAMMES,WOLSELEY COMMUNITY ECONOMIC DEVELOPMENT TRUST,2019577979,"41,840.90"
Department for Work and Pensions,Employment Programmes,16/02/2011,YOUNG PERSON'S GUARANTEE,WWEG EMPLOYMENT PROGRAMMES,COMMUNITY SKILLS PARTNERSHIP,2019517374,"41,826.85"
Department for Work and Pensions,Jobcentre Plus,10/02/2011,EMPLOYMENT PROGRAMMES,Balance Sheet Payments,KENNEDY SCOTT LTD,2019474542,"41,721.92"
Department for Work and Pensions,Jobcentre Plus,15/02/2011,APPS DEV,Jobcentre Plus,HP ENTERPRISE SERVICES UK LTD,2019496556,"41,692.80"
Department for Work and Pensions,Corporate,14/02/2011,COMPUTER SERVICES,Corporate and Support Services,HP ENTERPRISE SERVICES UK LTD,2019487884,"41,508.00"
Department for Work and Pensions,Employment Programmes,09/02/2011,FND,WWEG EMPLOYMENT PROGRAMMES,SKILLS TRAINING UK LIMITED,2019463401,"41,506.00"
Department for Work and Pensions,Employment Programmes,03/02/2011,HELP FOR UNEMPLOYED PEOPLE OTHER,WWEG EMPLOYMENT PROGRAMMES,E & SE LONDON CITY STRATEGY PATHFINDER,2019366217,"41,500.00"
Department for Work and Pensions,Employment Programmes,03/02/2011,HELP FOR UNEMPLOYED PEOPLE OTHER,WWEG EMPLOYMENT PROGRAMMES,WEST MIDLANDS CITY REGION,2019369224,"41,500.00"
Department for Work and Pensions,Employment Programmes,18/02/2011,HELP FOR UNEMPLOYED PEOPLE OTHER,WWEG EMPLOYMENT PROGRAMMES,LIVERPOOL CITY STRATEGY PATHFINDER,2019592487,"41,500.00"
Department for Work and Pensions,Corporate,28/02/2011,ACCOMMODATION,Group Finance,TELEREAL TRILLIUM,2019711335,"41,442.03"
Department for Work and Pensions,Employment Programmes,21/02/2011,FND,WWEG EMPLOYMENT PROGRAMMES,SERCO LTD,2019600139,"41,418.00"
Department for Work and Pensions,Employment Programmes,11/02/2011,YOUNG PERSON'S GUARANTEE,WWEG EMPLOYMENT PROGRAMMES,NORTHAMPTONSHIRE ENTERPRISE LTD,2019482278,"41,400.00"
Department for Work and Pensions,Employment Programmes,16/02/2011,YOUNG PERSON'S GUARANTEE,WWEG EMPLOYMENT PROGRAMMES,SCOUT ENTERPRISES WESTERN LTD,2019572467,"41,400.00"
Department for Work and Pensions,Housing Benefits,14/02/2011,Housing Benefit Admin,WWG Housing Benefit,RUSHCLIFFE BOROUGH COUNCIL,2019485201,"41,183.00"
Department for Work and Pensions,Corporate,28/02/2011,ACCOMMODATION,SHARED SERVICES,TELEREAL TRILLIUM,2019711335,"41,047.80"
Department for Work and Pensions,Corporate,23/02/2011,MANAGEMENT CONSULTANCY,Corporate IT ,SIEMENS ENTERPRISE COMMUNICATIONS LTD,2019681768,"41,035.00"
Department for Work and Pensions,Employment Programmes,09/02/2011,ACCESS TO WORK,WWEG EMPLOYMENT PROGRAMMES,ROYAL BRITISH LEGION INDUSTRIES,2019454801,"41,019.86"
Department for Work and Pensions,Jobcentre Plus,03/02/2011,EMPLOYMENT PROGRAMMES,Balance Sheet Payments,MIDDLETON MURRAY BUSINESS SOLUTIONS LTD,2019367884,"40,950.00"
Department for Work and Pensions,Employment Programmes,21/02/2011,YOUNG PERSON'S GUARANTEE,WWEG EMPLOYMENT PROGRAMMES,TRAINING FOR LIFE LTD,2019600351,"40,950.00"
Department for Work and Pensions,Jobcentre Plus,28/02/2011,ACCOMMODATION,Jobcentre Plus,TELEREAL TRILLIUM,2019711335,"40,939.70"
Department for Work and Pensions,Housing Benefits,14/02/2011,Housing Benefit Admin,WWG Housing Benefit,EAST DORSET DISTRICT COUNCIL,2019485032,"40,747.00"
Department for Work and Pensions,Employment Programmes,10/02/2011,FND,WWEG EMPLOYMENT PROGRAMMES,FOURSTAR EMPLOYMENT & SKILLS LTD,2019473764,"40,629.00"
Department for Work and Pensions,Employment Programmes,17/02/2011,FND,WWEG EMPLOYMENT PROGRAMMES,FOURSTAR EMPLOYMENT & SKILLS LTD,2019583716,"40,598.00"
Department for Work and Pensions,Employment Programmes,01/02/2011,YOUNG PERSON'S GUARANTEE,WWEG EMPLOYMENT PROGRAMMES,URBAN FUTURES LONDON LTD,2019284808,"40,587.67"
Department for Work and Pensions,Housing Benefits,14/02/2011,Housing Benefit Admin,WWG Housing Benefit,CHILTERN DISTRICT COUNCIL,2019484995,"40,556.00"
Department for Work and Pensions,Employment Programmes,14/02/2011,FND,WWEG EMPLOYMENT PROGRAMMES,WORKING LINKS,2019490593,"40,534.00"
Department for Work and Pensions,Employment Programmes,08/02/2011,NDDP,WWEG EMPLOYMENT PROGRAMMES,REED,2019391547,"40,454.40"
Department for Work and Pensions,Housing Benefits,14/02/2011,Housing Benefit Admin,WWG Housing Benefit,SELBY DISTRICT COUNCIL,2019485211,"40,450.00"
Department for Work and Pensions,Corporate,28/02/2011,ACCOMMODATION,Group Finance,TELEREAL TRILLIUM,2019711332,"40,425.11"
Department for Work and Pensions,Employment Programmes,04/02/2011,YOUNG PERSON'S GUARANTEE,WWEG EMPLOYMENT PROGRAMMES,SWINDON BOROUGH COUNCIL,2019375208,"40,300.00"
Department for Work and Pensions,Employment Programmes,07/02/2011,YOUNG PERSON'S GUARANTEE,WWEG EMPLOYMENT PROGRAMMES,SCOTTISH WILDLIFE TRUST,2019381525,"40,238.00"
Department for Work and Pensions,Corporate,11/02/2011,STAFF COSTS,Corporate and Support Services,PREMIER PARTNERSHIP,2019482471,"40,188.00"
Department for Work and Pensions,Corporate,17/02/2011,CAPITAL GRANTS,Group Finance,BIRMINGHAM CREDIT UNION DEVELOPMENT AGENCY LTD,2019581677,"40,000.00"
Department for Work and Pensions,Corporate,18/02/2011,CAPITAL GRANTS,Group Finance,WEST SUSSEX CREDIT UNION,2019593937,"40,000.00"
Department for Work and Pensions,Corporate,24/02/2011,CAPITAL GRANTS,Group Finance,NOTTINGHAM CREDIT UNION LTD,2019695338,"40,000.00"
Department for Work and Pensions,Employment Programmes,01/02/2011,YOUNG PERSON'S GUARANTEE,WWEG EMPLOYMENT PROGRAMMES,WOLSELEY COMMUNITY ECONOMIC DEVELOPMENT TRUST,2019285007,"39,905.20"
Department for Work and Pensions,Jobcentre Plus,03/02/2011,EMPLOYMENT PROGRAMMES,Balance Sheet Payments,NORFOLK & WAVENEY ENTERPRISE SERVICES,2019368028,"39,793.05"
Department for Work and Pensions,Employment Programmes,23/02/2011,JSP ESF DEL P COSTS,WWEG EMPLOYMENT PROGRAMMES,SEETEC BUSINESS TECHNOLOGY CENTRE LTD,2019681740,"39,744.47"
Department for Work and Pensions,Housing Benefits,14/02/2011,Housing Benefit Admin,WWG Housing Benefit,HAMBLETON DISTRICT COUNCIL,2019485069,"39,530.00"
Department for Work and Pensions,Jobcentre Plus,07/02/2011,Accomodation Costs,Jobcentre Plus,TELEREAL TRILLIUM,2019381768,"39,520.38"
Department for Work and Pensions,Housing Benefits,14/02/2011,Housing Benefit Admin,WWG Housing Benefit,MID SUFFOLK DISTRICT COUNCIL,2019485140,"39,487.00"
Department for Work and Pensions,Housing Benefits,14/02/2011,Housing Benefit Admin,WWG Housing Benefit,MALVERN HILLS DISTRICT COUNCIL,2019485132,"39,486.00"
Department for Work and Pensions,Corporate,28/02/2011,ACCOMMODATION,Group Finance,TELEREAL TRILLIUM,2019711335,"39,405.41"
Department for Work and Pensions,"Pension, Disability Carers Services",08/02/2011,APPS DEV,Pensions & Disability Carers Service ,HP ENTERPRISE SERVICES UK LTD,2019387424,"39,382.31"
Department for Work and Pensions,Employment Programmes,08/02/2011,YOUNG PERSON'S GUARANTEE,WWEG EMPLOYMENT PROGRAMMES,CUMBRIA COUNTY COUNCIL,2019385103,"39,300.00"
Department for Work and Pensions,Corporate,18/02/2011,COMPUTER SERVICES,Corporate IT ,HUTCHISON 3G UK LTD,2019591716,"39,216.46"
Department for Work and Pensions,Corporate,18/02/2011,TEMPORARY (TEMP) STAFF COSTS,Corporate IT ,CAPITA RESOURCING LIMITED,2019589840,"39,164.00"
Department for Work and Pensions,Housing Benefits,14/02/2011,Housing Benefit Admin,WWG Housing Benefit,FYLDE BOROUGH COUNCIL,2019485058,"39,163.00"
Department for Work and Pensions,Corporate,04/02/2011,STAFF COSTS,Corporate and Support Services,XOR LTD,2019375443,"39,109.77"
Department for Work and Pensions,Jobcentre Plus,03/02/2011,EMPLOYMENT PROGRAMMES,Balance Sheet Payments,EMPLACEMENT RECRUITMENT,2019366343,"39,050.00"
Department for Work and Pensions,Corporate,28/02/2011,COMPUTER SERVICES,Corporate IT ,ATOS ORIGIN IT SERVICES UK LTD,2019705601,"39,038.50"
Department for Work and Pensions,Employment Programmes,04/02/2011,YOUNG PERSON'S GUARANTEE,WWEG EMPLOYMENT PROGRAMMES,THE FOOTBALL LEAGUE COMMUNITY LTD,2019375309,"39,000.00"
Department for Work and Pensions,Employment Programmes,07/02/2011,YOUNG PERSON'S GUARANTEE,WWEG EMPLOYMENT PROGRAMMES,LANCASHIRE COUNTY COUNCIL,2019380220,"39,000.00"
Department for Work and Pensions,Corporate,08/02/2011,PROFESSIONAL FEES,Corporate and Support Services,GHK CONSULTING LTD,2019387205,"39,000.00"
Department for Work and Pensions,Employment Programmes,08/02/2011,YOUNG PERSON'S GUARANTEE,WWEG EMPLOYMENT PROGRAMMES,INVERCLYDE COUNCIL,2019387557,"39,000.00"
Department for Work and Pensions,Employment Programmes,04/02/2011,FND,WWEG EMPLOYMENT PROGRAMMES,SERCO LTD,2019375158,"38,939.00"
Department for Work and Pensions,Employment Programmes,03/02/2011,YOUNG PERSON'S GUARANTEE,WWEG EMPLOYMENT PROGRAMMES,ENABLE,2019366345,"38,850.00"
Department for Work and Pensions,Employment Programmes,04/02/2011,FND,WWEG EMPLOYMENT PROGRAMMES,WORKING LINKS,2019375439,"38,764.00"
Department for Work and Pensions,Jobcentre Plus,15/02/2011,APPS DEV,Jobcentre Plus,HP ENTERPRISE SERVICES UK LTD,2019496556,"38,702.45"
Department for Work and Pensions,Employment Programmes,24/02/2011,FND,WWEG EMPLOYMENT PROGRAMMES,SKILLS TRAINING UK LIMITED,2019696442,"38,644.00"
Department for Work and Pensions,Corporate,02/02/2011,IS/IT,Group Finance,SPECIALIST COMPUTER CENTRE PLC,2019355518,"38,598.26"
Department for Work and Pensions,Housing Benefits,14/02/2011,Housing Benefit Admin,WWG Housing Benefit,BROMSGROVE DISTRICT COUNCIL,2019484972,"38,478.00"
Department for Work and Pensions,Employment Programmes,14/02/2011,YOUNG PERSON'S GUARANTEE,WWEG EMPLOYMENT PROGRAMMES,DONCASTER METROPOLITAN BOROUGH COUNCIL,2019486375,"38,400.00"
Department for Work and Pensions,Employment Programmes,02/02/2011,FND,WWEG EMPLOYMENT PROGRAMMES,INGEUS UK LTD,2019313233,"38,350.00"
Department for Work and Pensions,Employment Programmes,14/02/2011,FND,WWEG EMPLOYMENT PROGRAMMES,INGEUS UK LTD,2019487951,"38,350.00"
Department for Work and Pensions,Employment Programmes,23/02/2011,FND,WWEG EMPLOYMENT PROGRAMMES,INGEUS UK LTD,2019640243,"38,350.00"
Department for Work and Pensions,Jobcentre Plus,03/02/2011,EMPLOYMENT PROGRAMMES,Balance Sheet Payments,VOLUNTARY ACTION VALE ROYAL,2019369185,"38,330.94"
Department for Work and Pensions,Employment Programmes,16/02/2011,YOUNG PERSON'S GUARANTEE,WWEG EMPLOYMENT PROGRAMMES,SCOTTISH COUNCIL FOR VOLUNTARY ORGANISATIONS,2019572464,"38,100.00"
Department for Work and Pensions,Corporate,28/02/2011,ACCOMMODATION,Group Finance,TELEREAL TRILLIUM,2019711332,"38,032.84"
Department for Work and Pensions,Employment Programmes,10/02/2011,ACCESS TO WORK,WWEG EMPLOYMENT PROGRAMMES,ELLINGHAM EMPLOYMENT SERVICES,2019473701,"37,946.09"
Department for Work and Pensions,Housing Benefits,14/02/2011,Housing Benefit Admin,WWG Housing Benefit,BLABY DISTRICT COUNCIL,2019484952,"37,876.00"
Department for Work and Pensions,Employment Programmes,09/02/2011,FND,WWEG EMPLOYMENT PROGRAMMES,A4E LTD,2019400339,"37,860.00"
Department for Work and Pensions,Employment Programmes,18/02/2011,FND,WWEG EMPLOYMENT PROGRAMMES,A4E LTD,2019589471,"37,860.00"
Department for Work and Pensions,Employment Programmes,09/02/2011,YOUNG PERSON'S GUARANTEE,WWEG EMPLOYMENT PROGRAMMES,DEVON COUNTY COUNCIL,2019412310,"37,650.00"
Department for Work and Pensions,Employment Programmes,18/02/2011,FND,WWEG EMPLOYMENT PROGRAMMES,SERCO LTD,2019593656,"37,638.00"
Department for Work and Pensions,"Pension, Disability Carers Services",08/02/2011,TELEPHONE AND POSTAGE,Pensions & Disability Carers Service ,ROYAL MAIL GROUP PLC,2019391583,"37,623.45"
Department for Work and Pensions,Housing Benefits,14/02/2011,Housing Benefit Admin,WWG Housing Benefit,ROCHFORD DISTRICT COUNCIL,2019485194,"37,532.00"
Department for Work and Pensions,Corporate,22/02/2011,EMPLOYMENT ZONES,Group Finance,PARK ROAD COMMUNITY CREDIT UNION LTD,2019609664,"37,500.00"
Department for Work and Pensions,Housing Benefits,14/02/2011,Housing Benefit Admin,WWG Housing Benefit,ADUR DISTRICT COUNCIL,2019484934,"37,480.00"
Department for Work and Pensions,Housing Benefits,14/02/2011,Housing Benefit Admin,WWG Housing Benefit,DAVENTRY DISTRICT COUNCIL,2019485019,"37,415.00"
Department for Work and Pensions,Employment Programmes,07/02/2011,FND,WWEG EMPLOYMENT PROGRAMMES,SERCO LTD,2019381535,"37,375.00"
Department for Work and Pensions,Employment Programmes,23/02/2011,DAF,WWEG EMPLOYMENT PROGRAMMES,MICROCOM TRAINING LTD,2019664345,"37,331.32"
Department for Work and Pensions,Employment Programmes,16/02/2011,FND,WWEG EMPLOYMENT PROGRAMMES,CALDER UK LTD,2019517134,"37,328.00"
Department for Work and Pensions,Corporate,21/02/2011,STAFF COSTS,Corporate IT ,QA IT SERVICES LTD,2019599640,"37,019.60"
Department for Work and Pensions,Housing Benefits,14/02/2011,Housing Benefit Admin,WWG Housing Benefit,NORTH WARWICKSHIRE DISTRICT COUNCIL,2019485165,"36,918.00"
Department for Work and Pensions,Jobcentre Plus,03/02/2011,EMPLOYMENT PROGRAMMES,Balance Sheet Payments,SKILLS TRAINING UK LTD,2019368900,"36,902.24"
Department for Work and Pensions,Jobcentre Plus,10/02/2011,EMPLOYMENT PROGRAMMES,Balance Sheet Payments,SHAW TRUST LTD,2019476030,"36,892.28"
Department for Work and Pensions,"Pension, Disability Carers Services",01/02/2011,PUBLICITY,Pensions & Disability Carers Service ,COI CENTRAL OFFICE OF INFO,2019276375,"36,863.88"
Department for Work and Pensions,Employment Programmes,22/02/2011,EP GENERIC PROVIDER PAYMENTS,WWEG EMPLOYMENT PROGRAMMES,PERTEMPS,2019609678,"36,848.57"
Department for Work and Pensions,Employment Programmes,14/02/2011,FND,WWEG EMPLOYMENT PROGRAMMES,INGEUS UK LTD,2019487951,"36,792.00"
Department for Work and Pensions,Employment Programmes,02/02/2011,YOUNG PERSON'S GUARANTEE,WWEG EMPLOYMENT PROGRAMMES,AVON & SOMERSET PROBATION SERVICE,2019292491,"36,750.00"
Department for Work and Pensions,Jobcentre Plus,24/02/2011,EMPLOYMENT PROGRAMMES,Balance Sheet Payments,TOMORROWS PEOPLE LTD,2019696704,"36,738.09"
Department for Work and Pensions,Jobcentre Plus,28/02/2011,Accomodation Costs,Jobcentre Plus,COPELAND BOROUGH COUNCIL,1004662,"36,714.00"
Department for Work and Pensions,Jobcentre Plus,03/02/2011,EMPLOYMENT PROGRAMMES,Balance Sheet Payments,STANDGUIDE LTD,2019368930,"36,696.28"
Department for Work and Pensions,Employment Programmes,01/02/2011,FND,WWEG EMPLOYMENT PROGRAMMES,SERCO LTD,2019284406,"36,639.00"
Department for Work and Pensions,Employment Programmes,04/02/2011,FND,WWEG EMPLOYMENT PROGRAMMES,A4E LTD,2019371745,"36,598.00"
Department for Work and Pensions,Corporate,09/02/2011,MISCELLANEOUS EXPENDITURE,EG SUMMARY,UNIVERSITY OF WESTMINSTER PSI,2019466850,"36,357.50"
Department for Work and Pensions,Employment Programmes,08/02/2011,FND,WWEG EMPLOYMENT PROGRAMMES,A4E LTD,2019384167,"36,330.00"
Department for Work and Pensions,Employment Programmes,01/02/2011,FND,WWEG EMPLOYMENT PROGRAMMES,A4E LTD,2019275477,"36,282.00"
Department for Work and Pensions,Housing Benefits,14/02/2011,Housing Benefit Admin,WWG Housing Benefit,EAST RENFREWSHIRE COUNCIL,2019485039,"36,204.00"
Department for Work and Pensions,Corporate,11/02/2011,PUBLICITY,Corporate and Support Services,COI CENTRAL OFFICE OF INFO,2019479298,"36,179.08"
Department for Work and Pensions,Housing Benefits,14/02/2011,Housing Benefit Admin,WWG Housing Benefit,TANDRIDGE DISTRICT COUNCIL,2019485259,"36,176.00"
Department for Work and Pensions,Employment Programmes,25/02/2011,FND,WWEG EMPLOYMENT PROGRAMMES,REMPLOY LTD,2019703155,"36,168.00"
Department for Work and Pensions,Corporate,01/02/2011,AOS CONTRACTED OUT SERVICES,SHARED SERVICES,CREDIT SOLUTIONS,2019276391,"36,163.38"
Department for Work and Pensions,Employment Programmes,07/02/2011,FND,WWEG EMPLOYMENT PROGRAMMES,PERTEMPS,2019380944,"36,163.00"
Department for Work and Pensions,Corporate,24/02/2011,EU PROGRAMMES,WWG SUMMARY,DFE RM SHARED SERVICES,2002446,"36,158.00"
Department for Work and Pensions,Housing Benefits,14/02/2011,Housing Benefit Admin,WWG Housing Benefit,FOREST HEATH DISTRICT COUNCIL,2019485056,"36,143.00"
Department for Work and Pensions,Employment Programmes,23/02/2011,YOUNG PERSON'S GUARANTEE,WWEG EMPLOYMENT PROGRAMMES,NBP COMMUNITY INTEREST COMPANY,2019667200,"36,000.00"
Department for Work and Pensions,Jobcentre Plus,09/02/2011,Accomodation Costs,Jobcentre Plus,COPELAND BOROUGH COUNCIL,1004634,"35,949.13"
Department for Work and Pensions,Corporate,01/02/2011,AOS CONTRACTED OUT SERVICES,SHARED SERVICES,COMMERCIAL COLLECTION SERVICES LTD,2019276378,"35,926.39"
Department for Work and Pensions,Housing Benefits,14/02/2011,Housing Benefit Admin,WWG Housing Benefit,SURREY HEATH BOROUGH COUNCIL,2019485253,"35,889.00"
Department for Work and Pensions,Jobcentre Plus,10/02/2011,EMPLOYMENT PROGRAMMES,Balance Sheet Payments,SHAW TRUST LTD,2019476026,"35,863.30"
Department for Work and Pensions,Employment Programmes,07/02/2011,FND,WWEG EMPLOYMENT PROGRAMMES,MAXIMUS EMPLOYMENT UK LTD,2019380574,"35,750.00"
Department for Work and Pensions,Housing Benefits,14/02/2011,Housing Benefit Admin,WWG Housing Benefit,MOLE VALLEY DISTRICT COUNCIL,2019485145,"35,602.00"
Department for Work and Pensions,Employment Programmes,16/02/2011,YOUNG PERSON'S GUARANTEE,WWEG EMPLOYMENT PROGRAMMES,THE NATIONAL TRUST,2019575922,"35,550.00"
Department for Work and Pensions,Jobcentre Plus,15/02/2011,COMPUTER SERVICES,Jobcentre Plus,HP ENTERPRISE SERVICES UK LTD,2019496556,"35,442.30"
Department for Work and Pensions,Employment Programmes,07/02/2011,FND,WWEG EMPLOYMENT PROGRAMMES,WORKING LINKS,2019381946,"35,420.00"
Department for Work and Pensions,Employment Programmes,15/02/2011,YOUNG PERSON'S GUARANTEE,WWEG EMPLOYMENT PROGRAMMES,CITY OF EDINBURGH COUNCIL,2019493656,"35,400.00"
Department for Work and Pensions,Employment Programmes,24/02/2011,YOUNG PERSON'S GUARANTEE,WWEG EMPLOYMENT PROGRAMMES,WEST LOTHIAN COUNCIL,2019696869,"35,400.00"
Department for Work and Pensions,Employment Programmes,22/02/2011,FND,WWEG EMPLOYMENT PROGRAMMES,INGEUS UK LTD,2019606241,"35,282.00"
Department for Work and Pensions,Employment Programmes,09/02/2011,FND,WWEG EMPLOYMENT PROGRAMMES,WORKING LINKS,2019468734,"35,181.00"
Department for Work and Pensions,Employment Programmes,07/02/2011,YOUNG PERSON'S GUARANTEE,WWEG EMPLOYMENT PROGRAMMES,GATEWAY KNOWLEDGE ALLIANCE NORTH WEST KENT COLLEGE,2019379360,"35,100.00"
Department for Work and Pensions,Employment Programmes,24/02/2011,FND,WWEG EMPLOYMENT PROGRAMMES,SERCO LTD,2019696423,"35,046.00"
Department for Work and Pensions,Corporate,07/02/2011,PRINCES YOUTH TRUST,WWG SUMMARY,DEPARTMENT OF HEALTH,2002416,"34,992.00"
Department for Work and Pensions,Employment Programmes,01/02/2011,FND,WWEG EMPLOYMENT PROGRAMMES,TNG LTD,2019284781,"34,974.00"
Department for Work and Pensions,Employment Programmes,02/02/2011,FND,WWEG EMPLOYMENT PROGRAMMES,WORKING LINKS,2019360741,"34,875.00"
Department for Work and Pensions,Employment Programmes,21/02/2011,FND,WWEG EMPLOYMENT PROGRAMMES,WORKING LINKS,2019600476,"34,875.00"
Department for Work and Pensions,Employment Programmes,02/02/2011,FND,WWEG EMPLOYMENT PROGRAMMES,PERTEMPS,2019343332,"34,856.00"
Department for Work and Pensions,Employment Programmes,04/02/2011,FND,WWEG EMPLOYMENT PROGRAMMES,A4E LTD,2019371745,"34,742.00"
Department for Work and Pensions,Employment Programmes,25/02/2011,FND,WWEG EMPLOYMENT PROGRAMMES,A4E LTD,2019699227,"34,626.00"
Department for Work and Pensions,Employment Programmes,18/02/2011,FND,WWEG EMPLOYMENT PROGRAMMES,MAXIMUS EMPLOYMENT UK LTD,2019592776,"34,276.00"
Department for Work and Pensions,Employment Programmes,02/02/2011,FND,WWEG EMPLOYMENT PROGRAMMES,SERCO LTD,2019355193,"34,125.00"
Department for Work and Pensions,Employment Programmes,03/02/2011,FND,WWEG EMPLOYMENT PROGRAMMES,SERCO LTD,2019368882,"34,125.00"
Department for Work and Pensions,Employment Programmes,04/02/2011,FND,WWEG EMPLOYMENT PROGRAMMES,WORKING LINKS,2019375439,"34,125.00"
Department for Work and Pensions,Corporate,09/02/2011,EMPLOYMENT ZONES,Group Finance,NORTHAMPTON CREDIT UNION,2019448788,"34,112.00"
Department for Work and Pensions,"Pension, Disability Carers Services",07/02/2011,PROFESSIONAL FEES,Pensions & Disability Carers Service ,GFK NOP LTD,2019379368,"33,967.85"
Department for Work and Pensions,Corporate,16/02/2011,COMPUTER SERVICES,CHANGE MANAGEMENT DIRECTORATE,BT GLOBAL SERVICES,2019511758,"33,928.25"
Department for Work and Pensions,Employment Programmes,21/02/2011,YOUNG PERSON'S GUARANTEE,WWEG EMPLOYMENT PROGRAMMES,HARLOW DISTRICT COUNCIL,2019598268,"33,900.00"
Department for Work and Pensions,Corporate,21/02/2011,TELEPHONE AND POSTAGE,Group Finance,G3 WORLDWIDE MAIL UK LTD,2019598182,"33,896.76"
Department for Work and Pensions,Employment Programmes,14/02/2011,WORK PREPARATION,WWEG EMPLOYMENT PROGRAMMES,MENCAP CYMRU,2019491829,"33,892.30"
Department for Work and Pensions,Employment Programmes,16/02/2011,YOUNG PERSON'S GUARANTEE,WWEG EMPLOYMENT PROGRAMMES,CONSTRUCTION WORKS HULL LTD,2019517379,"33,843.91"
Department for Work and Pensions,Housing Benefits,14/02/2011,Housing Benefit Admin,WWG Housing Benefit,MALDON DISTRICT COUNCIL,2019485131,"33,831.00"
Department for Work and Pensions,Corporate,24/02/2011,PAYMENTS TO CSAS,Corporate and Support Services,ATOS ORIGIN IT SERVICES UK LTD,2019690853,"33,722.71"
Department for Work and Pensions,Employment Programmes,24/02/2011,FND,WWEG EMPLOYMENT PROGRAMMES,PERTEMPS,2019695586,"33,669.00"
Department for Work and Pensions,Employment Programmes,17/02/2011,PROGRESS TO WORK,WWEG EMPLOYMENT PROGRAMMES,WORKING LINKS,2019586788,"33,479.46"
Department for Work and Pensions,Employment Programmes,28/02/2011,EU PROGRAMMES,WWEG EMPLOYMENT PROGRAMMES,THE HIGHLAND COUNCIL,2019711339,"33,469.00"
Department for Work and Pensions,Employment Programmes,09/02/2011,FND,WWEG EMPLOYMENT PROGRAMMES,A4E LTD,2019400339,"33,432.00"
Department for Work and Pensions,Employment Programmes,07/02/2011,FND,WWEG EMPLOYMENT PROGRAMMES,A4E LTD,2019377262,"33,408.00"
Department for Work and Pensions,Jobcentre Plus,17/02/2011,EMPLOYMENT PROGRAMMES,Balance Sheet Payments,SCOUT ENTERPRISES WESTERN LTD,2019586348,"33,337.50"
Department for Work and Pensions,Jobcentre Plus,17/02/2011,EMPLOYMENT PROGRAMMES,Balance Sheet Payments,ARMSTRONG LEARNING LTD,2019581558,"33,266.93"
Department for Work and Pensions,Corporate,15/02/2011,COMPUTER SERVICES,Corporate IT ,HP ENTERPRISE SERVICES UK LTD,2019496557,"33,227.47"
Department for Work and Pensions,Jobcentre Plus,03/02/2011,EMPLOYMENT PROGRAMMES,Balance Sheet Payments,ASL RECRUITMENT LTD,2019364249,"33,200.00"
Department for Work and Pensions,Employment Programmes,28/02/2011,JSP ESF DEL P COSTS,WWEG EMPLOYMENT PROGRAMMES,INGEUS UK LTD,2019709170,"33,133.12"
Department for Work and Pensions,Housing Benefits,14/02/2011,Housing Benefit Admin,WWG Housing Benefit,BRENTWOOD DISTRICT COUNCIL,2019484967,"32,976.00"
Department for Work and Pensions,Employment Programmes,10/02/2011,FND,WWEG EMPLOYMENT PROGRAMMES,SKILLS TRAINING UK LIMITED,2019476041,"32,913.00"
Department for Work and Pensions,Housing Benefits,14/02/2011,Housing Benefit Admin,WWG Housing Benefit,NORTH DORSET DISTRICT COUNCIL,2019485155,"32,884.00"
Department for Work and Pensions,Jobcentre Plus,17/02/2011,EMPLOYMENT PROGRAMMES,Balance Sheet Payments,SHROPSHIRE COUNTY TRAINING,2019586379,"32,722.10"
Department for Work and Pensions,Employment Programmes,22/02/2011,YOUNG PERSON'S GUARANTEE,WWEG EMPLOYMENT PROGRAMMES,DEVON COUNTY COUNCIL,2019603909,"32,700.00"
Department for Work and Pensions,Employment Programmes,18/02/2011,FND,WWEG EMPLOYMENT PROGRAMMES,A4E LTD,2019589471,"32,673.00"
Department for Work and Pensions,Jobcentre Plus,11/02/2011,WORKSTEP,Jobcentre Plus,LINCOLNSHIRE COUNTY COUNCIL,2019481817,"32,643.60"
Department for Work and Pensions,Corporate,08/02/2011,APPS DEV,Corporate and Support Services,HP ENTERPRISE SERVICES UK LTD,2019387424,"32,620.69"
Department for Work and Pensions,Jobcentre Plus,03/02/2011,EMPLOYMENT PROGRAMMES,Balance Sheet Payments,THE INTRAINING GROUP,2019369064,"32,514.90"
Department for Work and Pensions,Employment Programmes,15/02/2011,FND,WWEG EMPLOYMENT PROGRAMMES,CALDER UK LTD,2019493597,"32,354.00"
Department for Work and Pensions,Corporate,10/02/2011,TEMPORARY (TEMP) STAFF COSTS,Corporate IT ,CAPITA RESOURCING LIMITED,2019472493,"32,349.54"
Department for Work and Pensions,Employment Programmes,25/02/2011,FND,WWEG EMPLOYMENT PROGRAMMES,A4E LTD,2019699227,"32,346.00"
Department for Work and Pensions,Corporate,14/02/2011,APPS DEV,EG SUMMARY,HP ENTERPRISE SERVICES UK LTD,2019487883,"32,261.60"
Department for Work and Pensions,Jobcentre Plus,07/02/2011,COMPUTER SERVICES,Jobcentre Plus,ACCENTURE UK LTD,2019377270,"32,196.07"
Department for Work and Pensions,Employment Programmes,02/02/2011,JSP ESF DEL P COSTS,WWEG EMPLOYMENT PROGRAMMES,INGEUS UK LTD,2019313233,"32,106.74"
Department for Work and Pensions,Employment Programmes,07/02/2011,FND,WWEG EMPLOYMENT PROGRAMMES,WORKING LINKS,2019381946,"32,085.00"
Department for Work and Pensions,Jobcentre Plus,24/02/2011,Accomodation Costs,Jobcentre Plus,WYCHAVON DISTRICT COUNCIL,2019696890,"31,995.24"
Department for Work and Pensions,Employment Programmes,17/02/2011,FND,WWEG EMPLOYMENT PROGRAMMES,SERCO LTD,2019586361,"31,860.00"
Department for Work and Pensions,Employment Programmes,22/02/2011,FND,WWEG EMPLOYMENT PROGRAMMES,SERCO LTD,2019611066,"31,860.00"
Department for Work and Pensions,Employment Programmes,11/02/2011,YOUNG PERSON'S GUARANTEE,WWEG EMPLOYMENT PROGRAMMES,MIDLOTHIAN COUNCIL,2019482137,"31,800.00"
Department for Work and Pensions,Employment Programmes,17/02/2011,YOUNG PERSON'S GUARANTEE,WWEG EMPLOYMENT PROGRAMMES,AVON & SOMERSET PROBATION SERVICE,2019581573,"31,800.00"
Department for Work and Pensions,Corporate,22/02/2011,ENCASHMENT COSTS ,Balance Sheet Payments,POST OFFICE LTD,1004648,"31,742.06"
Department for Work and Pensions,Employment Programmes,21/02/2011,YOUNG PERSON'S GUARANTEE,WWEG EMPLOYMENT PROGRAMMES,ARTSWORK LTD,2019595632,"31,584.00"
Department for Work and Pensions,Housing Benefits,14/02/2011,Housing Benefit Admin,WWG Housing Benefit,EPSOM & EWELL BOROUGH COUNCIL,2019485048,"31,561.00"
Department for Work and Pensions,Employment Programmes,21/02/2011,FND,WWEG EMPLOYMENT PROGRAMMES,A4E LTD,2019595583,"31,500.00"
Department for Work and Pensions,Housing Benefits,14/02/2011,Housing Benefit Admin,WWG Housing Benefit,UTTLESFORD DISTRICT COUNCIL,2019485276,"31,492.00"
Department for Work and Pensions,Employment Programmes,11/02/2011,FND,WWEG EMPLOYMENT PROGRAMMES,A4E LTD,2019478888,"31,486.00"
Department for Work and Pensions,Corporate,24/02/2011,PUBLICITY,Corporate and Support Services,COI CENTRAL OFFICE OF INFORMATION,2019691390,"31,485.00"
Department for Work and Pensions,Employment Programmes,17/02/2011,FND,WWEG EMPLOYMENT PROGRAMMES,SKILLS TRAINING UK LIMITED,2019586385,"31,482.00"
Department for Work and Pensions,Employment Programmes,28/02/2011,FND,WWEG EMPLOYMENT PROGRAMMES,SKILLS TRAINING UK LIMITED,2019711191,"31,482.00"
Department for Work and Pensions,Employment Programmes,15/02/2011,ACCESS TO WORK,WWEG EMPLOYMENT PROGRAMMES,SCOUT ENTERPRISES WESTERN LTD,2019501923,"31,366.08"
Department for Work and Pensions,Employment Programmes,04/02/2011,NDDP,WWEG EMPLOYMENT PROGRAMMES,REED,2019374871,"31,360.00"
Department for Work and Pensions,Employment Programmes,04/02/2011,YOUNG PERSON'S GUARANTEE,WWEG EMPLOYMENT PROGRAMMES,THE ROYAL SOCIETY OF WILDLIFE TRUSTS,2019375317,"31,200.00"
Department for Work and Pensions,Employment Programmes,10/02/2011,YOUNG PERSON'S GUARANTEE,WWEG EMPLOYMENT PROGRAMMES,MIDLOTHIAN COUNCIL,2019475080,"31,200.00"
Department for Work and Pensions,Employment Programmes,16/02/2011,YOUNG PERSON'S GUARANTEE,WWEG EMPLOYMENT PROGRAMMES,COVENTRY CITY COUNCIL,2019517388,"31,200.00"
Department for Work and Pensions,Employment Programmes,18/02/2011,FND,WWEG EMPLOYMENT PROGRAMMES,A4E LTD,2019589471,"31,044.00"
Department for Work and Pensions,Corporate,15/02/2011,APPS DEV,Corporate IT ,IMPROVEMENT & DEVELOPMENT AGENCY,2019496693,"31,000.00"
Department for Work and Pensions,Employment Programmes,18/02/2011,JSP ESF DEL P COSTS,WWEG EMPLOYMENT PROGRAMMES,INGEUS UK LTD,2019591770,"30,886.24"
Department for Work and Pensions,Employment Programmes,07/02/2011,FND,WWEG EMPLOYMENT PROGRAMMES,SERCO LTD,2019381535,"30,783.00"
Department for Work and Pensions,Employment Programmes,09/02/2011,YOUNG PERSON'S GUARANTEE,WWEG EMPLOYMENT PROGRAMMES,OXFORDSHIRE COUNTY COUNCIL,2019448999,"30,750.00"
Department for Work and Pensions,Employment Programmes,03/02/2011,FND,WWEG EMPLOYMENT PROGRAMMES,WORKING LINKS,2019369250,"30,690.00"
Department for Work and Pensions,Employment Programmes,04/02/2011,FND,WWEG EMPLOYMENT PROGRAMMES,WORKING LINKS,2019375439,"30,690.00"
Department for Work and Pensions,Employment Programmes,11/02/2011,PROGRESS TO WORK,WWEG EMPLOYMENT PROGRAMMES,WORKING LINKS,2019483333,"30,658.90"
Department for Work and Pensions,Corporate,01/02/2011,MISCELLANEOUS EXPENDITURE,EG SUMMARY,UNIVERSITY OF WESTMINSTER PSI,2019284806,"30,600.00"
Department for Work and Pensions,Employment Programmes,15/02/2011,YOUNG PERSON'S GUARANTEE,WWEG EMPLOYMENT PROGRAMMES,NORTH AYRSHIRE COUNCIL,2019499930,"30,600.00"
Department for Work and Pensions,Employment Programmes,03/02/2011,FND,WWEG EMPLOYMENT PROGRAMMES,SERCO LTD,2019368882,"30,474.00"
Department for Work and Pensions,Jobcentre Plus,24/02/2011,EMPLOYMENT PROGRAMMES,Balance Sheet Payments,WORKING LINKS EMPLOYMENT LIMITED,2019696886,"30,432.96"
Department for Work and Pensions,Jobcentre Plus,24/02/2011,EMPLOYMENT PROGRAMMES,Balance Sheet Payments,PERTEMPS EMPLOYMENT ALLIANCE,2019695587,"30,400.25"
Department for Work and Pensions,Jobcentre Plus,17/02/2011,EMPLOYMENT PROGRAMMES,Balance Sheet Payments,WORKING LINKS EMPLOYMENT LTD,2019586796,"30,400.00"
Department for Work and Pensions,Housing Benefits,14/02/2011,Housing Benefit Admin,WWG Housing Benefit,CHRISTCHURCH BOROUGH COUNCIL,2019484997,"30,359.00"
Department for Work and Pensions,Housing Benefits,14/02/2011,Housing Benefit Admin,WWG Housing Benefit,SOUTH NORTHANTS COUNCIL,2019485230,"30,357.00"
Department for Work and Pensions,Housing Benefits,14/02/2011,Housing Benefit Admin,WWG Housing Benefit,DERBYSHIRE DALES DISTRICT COUNCIL,2019485022,"30,340.00"
Department for Work and Pensions,Jobcentre Plus,03/02/2011,EMPLOYMENT PROGRAMMES,Balance Sheet Payments,NEWPORT CITY COUNCIL,2019371541,"30,332.98"
Department for Work and Pensions,Employment Programmes,07/02/2011,FND,WWEG EMPLOYMENT PROGRAMMES,DUDLEY MBC FUTURE SKILLS,2019379039,"30,210.00"
Department for Work and Pensions,Housing Benefits,14/02/2011,Housing Benefit Admin,WWG Housing Benefit,WEST DEVON BOROUGH COUNCIL,2019485289,"30,185.00"
Department for Work and Pensions,Employment Programmes,14/02/2011,FND,WWEG EMPLOYMENT PROGRAMMES,REMPLOY LTD,2019489807,"30,140.00"
Department for Work and Pensions,Employment Programmes,15/02/2011,FND,WWEG EMPLOYMENT PROGRAMMES,REMPLOY LTD,2019500947,"30,140.00"
Department for Work and Pensions,Employment Programmes,16/02/2011,FND,WWEG EMPLOYMENT PROGRAMMES,REMPLOY LTD,2019563982,"30,140.00"
Department for Work and Pensions,Employment Programmes,23/02/2011,PROGRESS TO WORK,WWEG EMPLOYMENT PROGRAMMES,COMPASS CROSSOVER,2019626100,"30,134.04"
Department for Work and Pensions,Corporate,09/02/2011,PROFESSIONAL FEES,Corporate and Support Services,RS CONSULTING LTD,2019454811,"30,000.00"
Department for Work and Pensions,Corporate,16/02/2011,PROFESSIONAL FEES,Corporate and Support Services,NATCEN,2019557898,"30,000.00"
Department for Work and Pensions,Corporate,18/02/2011,CAPITAL GRANTS,Group Finance,BLACKPOOL FYLDE & WYRE CREDIT UNION,2019589601,"30,000.00"
Department for Work and Pensions,Jobcentre Plus,24/02/2011,EMPLOYMENT PROGRAMMES,Balance Sheet Payments,ARMSTRONG LEARNING LTD,2019690844,"29,992.45"
Department for Work and Pensions,Corporate,28/02/2011,ACCOMMODATION,Group Finance,TELEREAL TRILLIUM,2019711335,"29,986.39"
Department for Work and Pensions,Employment Programmes,01/02/2011,FND,WWEG EMPLOYMENT PROGRAMMES,PERTEMPS,2019282981,"29,928.00"
Department for Work and Pensions,Employment Programmes,09/02/2011,FND,WWEG EMPLOYMENT PROGRAMMES,PERTEMPS,2019451442,"29,928.00"
Department for Work and Pensions,Employment Programmes,04/02/2011,YOUNG PERSON'S GUARANTEE,WWEG EMPLOYMENT PROGRAMMES,HASTINGS BOROUGH COUNCIL,2019373543,"29,900.00"
Department for Work and Pensions,Jobcentre Plus,24/02/2011,EMPLOYMENT PROGRAMMES,Balance Sheet Payments,SHROPSHIRE COUNTY TRAINING,2019696433,"29,876.70"
Department for Work and Pensions,Employment Programmes,14/02/2011,FND,WWEG EMPLOYMENT PROGRAMMES,A4E LTD,2019485627,"29,850.00"
Department for Work and Pensions,Jobcentre Plus,17/02/2011,EMPLOYMENT PROGRAMMES,Balance Sheet Payments,COMMUNITY  LINKS,2019582060,"29,837.32"
Department for Work and Pensions,Jobcentre Plus,09/02/2011,PROFESSIONAL FEES,Jobcentre Plus,CENTRE FOR ECONOMIC & SOCIAL INCLUSION,2019407490,"29,775.00"
Department for Work and Pensions,Employment Programmes,10/02/2011,YOUNG PERSON'S GUARANTEE,WWEG EMPLOYMENT PROGRAMMES,COMMUNITY SKILLS PARTNERSHIP,2019472540,"29,745.25"
Department for Work and Pensions,Employment Programmes,01/02/2011,FND,WWEG EMPLOYMENT PROGRAMMES,TNG LTD,2019284781,"29,718.00"
Department for Work and Pensions,Employment Programmes,17/02/2011,YOUNG PERSON'S GUARANTEE,WWEG EMPLOYMENT PROGRAMMES,DUNDEE CITY COUNCIL,2019583532,"29,679.35"
Department for Work and Pensions,Employment Programmes,14/02/2011,WORK PREPARATION,WWEG EMPLOYMENT PROGRAMMES,EMPLOYMENT & DISABILITY SERVICE,2019487564,"29,660.00"
Department for Work and Pensions,Employment Programmes,16/02/2011,PROGRESS TO WORK,WWEG EMPLOYMENT PROGRAMMES,THE LIVERPOOL SOCIAL PARTNERSHIP,2019575921,"29,621.20"
Department for Work and Pensions,Employment Programmes,02/02/2011,FND,WWEG EMPLOYMENT PROGRAMMES,WORKING LINKS,2019360741,"29,621.00"
Department for Work and Pensions,Employment Programmes,17/02/2011,FND,WWEG EMPLOYMENT PROGRAMMES,WORKING LINKS,2019586792,"29,621.00"
Department for Work and Pensions,Corporate,25/02/2011,TEMPORARY (TEMP) STAFF COSTS,Corporate IT ,CAPITA RESOURCING LIMITED,2019699610,"29,588.94"
Department for Work and Pensions,Employment Programmes,11/02/2011,FND,WWEG EMPLOYMENT PROGRAMMES,SEETEC BUSINESS TECHNOLOGY CENTRE LTD,2019483020,"29,542.00"
Department for Work and Pensions,Employment Programmes,01/02/2011,FND,WWEG EMPLOYMENT PROGRAMMES,FOURSTAR EMPLOYMENT & SKILLS LTD,2019278833,"29,523.00"
Department for Work and Pensions,Corporate,18/02/2011,OTHER EXPENDITURE,EG SUMMARY,ORC INTERNATIONAL,2019592934,"29,316.25"
Department for Work and Pensions,Employment Programmes,24/02/2011,JSP ESF DEL P COSTS,WWEG EMPLOYMENT PROGRAMMES,INGEUS UK LTD,2019693634,"29,228.97"
Department for Work and Pensions,Jobcentre Plus,03/02/2011,EMPLOYMENT PROGRAMMES,Balance Sheet Payments,TNG LTD,2019369095,"29,166.67"
Department for Work and Pensions,Corporate,28/02/2011,ACCOMMODATION,Group Finance,TELEREAL TRILLIUM,2019711335,"29,036.31"
Department for Work and Pensions,Employment Programmes,28/02/2011,FND,WWEG EMPLOYMENT PROGRAMMES,A4E LTD,2019705565,"29,026.00"
Department for Work and Pensions,Housing Benefits,14/02/2011,Housing Benefit Admin,WWG Housing Benefit,HARBOROUGH DISTRICT COUNCIL,2019485070,"29,004.00"
Department for Work and Pensions,Employment Programmes,25/02/2011,YOUNG PERSON'S GUARANTEE,WWEG EMPLOYMENT PROGRAMMES,LONDON BOROUGH OF TOWER HAMLETS,2019702315,"28,950.00"
Department for Work and Pensions,Corporate,28/02/2011,ACCOMMODATION,Group Finance,TELEREAL TRILLIUM,2019711332,"28,869.15"
Department for Work and Pensions,Employment Programmes,21/02/2011,FND,WWEG EMPLOYMENT PROGRAMMES,A4E LTD,2019595583,"28,752.00"
Department for Work and Pensions,Employment Programmes,02/02/2011,FND,WWEG EMPLOYMENT PROGRAMMES,SERCO LTD,2019355193,"28,674.00"
Department for Work and Pensions,Employment Programmes,21/02/2011,FND,WWEG EMPLOYMENT PROGRAMMES,SKILLS TRAINING UK LIMITED,2019600158,"28,620.00"
Department for Work and Pensions,Employment Programmes,04/02/2011,YOUNG PERSON'S GUARANTEE,WWEG EMPLOYMENT PROGRAMMES,BARNARDOS,2019371837,"28,600.00"
Department for Work and Pensions,Employment Programmes,07/02/2011,FND,WWEG EMPLOYMENT PROGRAMMES,CALDER UK LTD,2019377645,"28,557.00"
Department for Work and Pensions,Housing Benefits,14/02/2011,Housing Benefit Admin,WWG Housing Benefit,WEST SOMERSET DISTRICT COUNCIL,2019485296,"28,541.00"
Department for Work and Pensions,Employment Programmes,23/02/2011,YOUNG PERSON'S GUARANTEE,WWEG EMPLOYMENT PROGRAMMES,OXFORDSHIRE COUNTY COUNCIL,2019667512,"28,500.00"
Department for Work and Pensions,Corporate,22/02/2011,IS/IT,CHANGE MANAGEMENT DIRECTORATE,SPECIALIST COMPUTER CENTRE PLC,2019611108,"28,467.64"
Department for Work and Pensions,Employment Programmes,08/02/2011,YOUNG PERSON'S GUARANTEE,WWEG EMPLOYMENT PROGRAMMES,WORKERS EDUCATIONAL ASSOCIATION,2019393103,"28,389.80"
Department for Work and Pensions,Employment Programmes,18/02/2011,YOUNG PERSON'S GUARANTEE,WWEG EMPLOYMENT PROGRAMMES,PEMBROKESHIRE COUNTY COUNCIL,2019595315,"28,350.00"
Department for Work and Pensions,Employment Programmes,11/02/2011,FND,WWEG EMPLOYMENT PROGRAMMES,FOURSTAR EMPLOYMENT & SKILLS LTD,2019480802,"28,320.00"
Department for Work and Pensions,Jobcentre Plus,03/02/2011,EMPLOYMENT PROGRAMMES,Balance Sheet Payments,THE PLUS TEAM LTD,2019369072,"28,250.00"
Department for Work and Pensions,Corporate,08/02/2011,PRINTING STATIONERY IT CONSUMABLES,Group Finance,XEROX UK LTD 3W,2019393112,"28,229.40"
Department for Work and Pensions,Jobcentre Plus,24/02/2011,EMPLOYMENT PROGRAMMES,Balance Sheet Payments,WORKING LINKS,2019696882,"28,225.06"
Department for Work and Pensions,Employment Programmes,02/02/2011,YOUNG PERSON'S GUARANTEE,WWEG EMPLOYMENT PROGRAMMES,LINK ED LTD,2019331701,"28,200.00"
Department for Work and Pensions,Jobcentre Plus,17/02/2011,EMPLOYMENT PROGRAMMES,Balance Sheet Payments,INBIZ LTD,2019584019,"28,100.61"
Department for Work and Pensions,Employment Programmes,28/02/2011,FND,WWEG EMPLOYMENT PROGRAMMES,WORKING LINKS,2019711489,"28,062.00"
Department for Work and Pensions,Corporate,15/02/2011,PROFESSIONAL FEES,LSPG,FIELD FISHER WATERHOUSE LLP,2019496015,"28,036.25"
Department for Work and Pensions,Employment Programmes,03/02/2011,YOUNG PERSON'S GUARANTEE,WWEG EMPLOYMENT PROGRAMMES,THE SALVATION ARMY,2019369077,"27,989.14"
Department for Work and Pensions,Jobcentre Plus,03/02/2011,EMPLOYMENT PROGRAMMES,Balance Sheet Payments,MACLEOD ASSOCIATES VIA INTERIM,2019367862,"27,900.00"
Department for Work and Pensions,Employment Programmes,14/02/2011,YOUNG PERSON'S GUARANTEE,WWEG EMPLOYMENT PROGRAMMES,LONDON BOROUGH OF BARKING & DAGENHAM MEMORANDUM ACCOUNT CAMDEN COUNCIL,2019488832,"27,900.00"
